Body Name,Body,Service Label,Service Code,CIPFA Detailed Expenditure Type,CIPFA Detailed Expenditure Code,Date,Transaction Number,Net Amount,Supplier Name,,,,,,,,,,#REF!
Nottinghamshire County Council,1111/1001,Surplus or Deficit from Trading Undertak,TRADING,Premises Related,BJA,15/04/2015,01-10001,713.2,Biffa Waste Services Ltd,,,,,,,,,,
Nottinghamshire County Council,1111/1001,Surplus or Deficit from Trading Undertak,TRADING,Supplies & Services,DDA,30/04/2015,01-10001,4500.64,Henkel Loctite Adhesives Ltd,,,,,,,,,,
Nottinghamshire County Council,1111/1001,Surplus or Deficit from Trading Undertak,TRADING,Supplies & Services,DDA,07/04/2015,01-10001,2996.14,Hamelin Paperbrands Ltd,,,,,,,,,,
Nottinghamshire County Council,1111/1001,Surplus or Deficit from Trading Undertak,TRADING,Supplies & Services,DDA,14/04/2015,01-10001,864.1,Hamelin Paperbrands Ltd,,,,,,,,,,
Nottinghamshire County Council,1111/1001,Surplus or Deficit from Trading Undertak,TRADING,Supplies & Services,DDA,28/04/2015,01-10001,875.33,Hamelin Paperbrands Ltd,,,,,,,,,,
Nottinghamshire County Council,1111/1001,Surplus or Deficit from Trading Undertak,TRADING,Supplies & Services,DDA,07/04/2015,01-10001,563.92,Plastoreg Smidt Gmbh,,,,,,,,,,
Nottinghamshire County Council,1111/1001,Surplus or Deficit from Trading Undertak,TRADING,Supplies & Services,DDA,16/04/2015,01-10001,510.36,Pukka Filing Products Ltd,,,,,,,,,,
Nottinghamshire County Council,1111/1001,Surplus or Deficit from Trading Undertak,TRADING,Supplies & Services,DDA,09/04/2015,01-10001,1363,Flb Group Ltd,,,,,,,,,,
Nottinghamshire County Council,1111/1001,Surplus or Deficit from Trading Undertak,TRADING,Supplies & Services,DAA,10/04/2015,01-10001,720.12,Bostik Ltd,,,,,,,,,,
Nottinghamshire County Council,1111/1001,Surplus or Deficit from Trading Undertak,TRADING,Supplies & Services,DAA,22/04/2015,01-10001,634.55,Reliance Medical Ltd,,,,,,,,,,
Nottinghamshire County Council,1111/1001,Surplus or Deficit from Trading Undertak,TRADING,Supplies & Services,DFA,27/04/2015,01-10001,1520,Capita Business Services Ltd,,,,,,,,,,
Nottinghamshire County Council,1111/1001,Surplus or Deficit from Trading Undertak,TRADING,Supplies & Services,DAA,16/04/2015,01-10001,1555.37,Vivid Laminating Technologies Ltd,,,,,,,,,,
Nottinghamshire County Council,1111/1001,Surplus or Deficit from Trading Undertak,TRADING,Supplies & Services,DAA,09/04/2015,01-10001,766.26,Xma Ltd,,,,,,,,,,
Nottinghamshire County Council,1111/1001,Surplus or Deficit from Trading Undertak,TRADING,Supplies & Services,DAA,07/04/2015,01-10001,1330,Premier Paper Group Ltd,,,,,,,,,,
Nottinghamshire County Council,1111/1001,Surplus or Deficit from Trading Undertak,TRADING,Supplies & Services,DAA,14/04/2015,01-10001,1989.95,Antalis Key Accounts,,,,,,,,,,
Nottinghamshire County Council,1111/1001,Surplus or Deficit from Trading Undertak,TRADING,Supplies & Services,DAA,14/04/2015,01-10001,669.6,Heritage Envelopes Ltd,,,,,,,,,,
Nottinghamshire County Council,1111/1001,Surplus or Deficit from Trading Undertak,TRADING,Supplies & Services,DAA,15/04/2015,01-10001,11861,Sterling Solutions,,,,,,,,,,
Nottinghamshire County Council,1111/1001,Surplus or Deficit from Trading Undertak,TRADING,Supplies & Services,DAA,09/04/2015,01-10001,601.25,Coomber Electronic Equipment Ltd.,,,,,,,,,,
Nottinghamshire County Council,1111/1001,Surplus or Deficit from Trading Undertak,TRADING,Supplies & Services,DAA,27/04/2015,01-10001,1479,Cbc,,,,,,,,,,
Nottinghamshire County Council,1111/1001,Surplus or Deficit from Trading Undertak,TRADING,Premises Related,BAA,09/04/2015,01-10001,1771.24,Flexiform Business Furniture,,,,,,,,,,
Nottinghamshire County Council,1111/1001,Surplus or Deficit from Trading Undertak,TRADING,Premises Related,BAA,09/04/2015,01-10001,1771.24,Flexiform Business Furniture,,,,,,,,,,
Nottinghamshire County Council,1111/1001,Surplus or Deficit from Trading Undertak,TRADING,Premises Related,BJA,22/04/2015,01-10001,602.33,Numatic International Ltd,,,,,,,,,,
Nottinghamshire County Council,1111/1001,Surplus or Deficit from Trading Undertak,TRADING,Premises Related,BJA,09/04/2015,01-10001,2465.9,Premiere Products,,,,,,,,,,
Nottinghamshire County Council,1111/1001,Surplus or Deficit from Trading Undertak,TRADING,Premises Related,BJA,09/04/2015,01-10001,538.8,Premiere Products,,,,,,,,,,
Nottinghamshire County Council,1111/1001,Surplus or Deficit from Trading Undertak,TRADING,Premises Related,BJA,22/04/2015,01-10001,3346.23,Premiere Products,,,,,,,,,,
Nottinghamshire County Council,1111/1001,Surplus or Deficit from Trading Undertak,TRADING,Premises Related,BJA,22/04/2015,01-10001,1301.5,Premiere Products,,,,,,,,,,
Nottinghamshire County Council,1111/1001,Surplus or Deficit from Trading Undertak,TRADING,Premises Related,BJA,22/04/2015,01-10001,1442.6,Johnson Diversey,,,,,,,,,,
Nottinghamshire County Council,1111/1001,Surplus or Deficit from Trading Undertak,TRADING,Premises Related,BJA,28/04/2015,01-10001,2533.47,Johnson Diversey,,,,,,,,,,
Nottinghamshire County Council,1111/1001,Surplus or Deficit from Trading Undertak,TRADING,Premises Related,BJA,22/04/2015,01-10001,698.02,Midland Wiper Manufacturing Co Ltd,,,,,,,,,,
Nottinghamshire County Council,1111/1001,Surplus or Deficit from Trading Undertak,TRADING,Premises Related,BJA,22/04/2015,01-10001,600.72,Evans Vanodine International Ltd,,,,,,,,,,
Nottinghamshire County Council,1111/1001,Surplus or Deficit from Trading Undertak,TRADING,Premises Related,BJA,27/04/2015,01-10001,501.44,Wilson Electrics,,,,,,,,,,
Nottinghamshire County Council,1111/1001,Surplus or Deficit from Trading Undertak,TRADING,Premises Related,BJA,30/04/2015,01-10001,1923.8,Candor Services,,,,,,,,,,
Nottinghamshire County Council,1111/1001,Surplus or Deficit from Trading Undertak,TRADING,Premises Related,BJA,28/04/2015,01-10001,1399.32,Polystar Plastics Ltd,,,,,,,,,,
Nottinghamshire County Council,1111/1001,Surplus or Deficit from Trading Undertak,TRADING,Premises Related,BJA,28/04/2015,01-10001,4726.89,Polystar Plastics Ltd,,,,,,,,,,
Nottinghamshire County Council,1111/1001,Surplus or Deficit from Trading Undertak,TRADING,Premises Related,BJA,07/04/2015,01-10001,501.69,Ecover (Uk) Ltd,,,,,,,,,,
Nottinghamshire County Council,1111/1001,Surplus or Deficit from Trading Undertak,TRADING,Premises Related,BJA,27/04/2015,01-10001,753.58,Ecover (Uk) Ltd,,,,,,,,,,
Nottinghamshire County Council,1111/1001,Surplus or Deficit from Trading Undertak,TRADING,Premises Related,BJA,07/04/2015,01-10001,1447.96,Cromwell Polythene Ltd,,,,,,,,,,
Nottinghamshire County Council,1111/1001,Surplus or Deficit from Trading Undertak,TRADING,Premises Related,BJA,27/04/2015,01-10001,1785.8,Kimberley Clark European Services Ltd,,,,,,,,,,
Nottinghamshire County Council,1111/1001,Surplus or Deficit from Trading Undertak,TRADING,Supplies & Services,DAA,27/04/2015,01-10001,514.08,Dudson Bros Ltd,,,,,,,,,,
Nottinghamshire County Council,1111/1001,Surplus or Deficit from Trading Undertak,TRADING,Supplies & Services,DAA,16/04/2015,01-10001,714.6,Catering Supplies (Wakefield) Ltd,,,,,,,,,,
Nottinghamshire County Council,1111/1001,Surplus or Deficit from Trading Undertak,TRADING,Supplies & Services,DAA,10/04/2015,01-10001,2600.4,Sca Hygiene,,,,,,,,,,
Nottinghamshire County Council,1111/1001,Surplus or Deficit from Trading Undertak,TRADING,Supplies & Services,DAA,10/04/2015,01-10001,2503.8,Sca Hygiene,,,,,,,,,,
Nottinghamshire County Council,1111/1001,Surplus or Deficit from Trading Undertak,TRADING,Supplies & Services,DAA,10/04/2015,01-10001,3148.91,Sca Hygiene,,,,,,,,,,
Nottinghamshire County Council,1111/1001,Surplus or Deficit from Trading Undertak,TRADING,Supplies & Services,DAA,16/04/2015,01-10001,1015.92,Sca Hygiene,,,,,,,,,,
Nottinghamshire County Council,1111/1001,Surplus or Deficit from Trading Undertak,TRADING,Supplies & Services,DAA,27/04/2015,01-10001,2655.15,Sca Hygiene,,,,,,,,,,
Nottinghamshire County Council,1111/1001,Surplus or Deficit from Trading Undertak,TRADING,Supplies & Services,DAA,28/04/2015,01-10001,3382.01,Sca Hygiene,,,,,,,,,,
Nottinghamshire County Council,1111/1001,Surplus or Deficit from Trading Undertak,TRADING,Supplies & Services,DAA,28/04/2015,01-10001,5378.21,Sca Hygiene,,,,,,,,,,
Nottinghamshire County Council,1111/1001,Surplus or Deficit from Trading Undertak,TRADING,Supplies & Services,DAA,16/04/2015,01-10001,501,Prostar Sports Ltd,,,,,,,,,,
Nottinghamshire County Council,1111/1001,Surplus or Deficit from Trading Undertak,TRADING,Supplies & Services,DBA,22/04/2015,01-10001,648.78,North West Tea Service Ltd,,,,,,,,,,
Nottinghamshire County Council,1111/1001,Surplus or Deficit from Trading Undertak,TRADING,Supplies & Services,DAA,09/04/2015,01-10001,519.31,Dualit Ltd,,,,,,,,,,
Nottinghamshire County Council,1111/1001,Surplus or Deficit from Trading Undertak,TRADING,Supplies & Services,DCA,07/04/2015,01-10001,782.93,Nisbets,,,,,,,,,,
Nottinghamshire County Council,1111/1001,Surplus or Deficit from Trading Undertak,TRADING,Supplies & Services,DCA,09/04/2015,01-10001,523.7,Shermond,,,,,,,,,,
Nottinghamshire County Council,1111/1001,Surplus or Deficit from Trading Undertak,TRADING,Supplies & Services,DCA,27/04/2015,01-10001,1830.33,Shermond,,,,,,,,,,
Nottinghamshire County Council,1111/1001,Surplus or Deficit from Trading Undertak,TRADING,Supplies & Services,DCA,30/04/2015,01-10001,560.55,Shermond,,,,,,,,,,
Nottinghamshire County Council,1111/1001,Surplus or Deficit from Trading Undertak,TRADING,Supplies & Services,DKA,07/04/2015,01-10001,531.5,Bunzl Cleaning & Hygiene Supplies,,,,,,,,,,
Nottinghamshire County Council,1111/1001,Surplus or Deficit from Trading Undertak,TRADING,Supplies & Services,DKA,27/04/2015,01-10001,531.5,Bunzl Cleaning & Hygiene Supplies,,,,,,,,,,
Nottinghamshire County Council,1111/1001,Surplus or Deficit from Trading Undertak,TRADING,Supplies & Services,DAA,07/04/2015,01-10001,566.75,R Scott & Sons Ltd,,,,,,,,,,
Nottinghamshire County Council,1111/1001,Surplus or Deficit from Trading Undertak,TRADING,Supplies & Services,DAA,22/04/2015,01-10001,1025.1,R Scott & Sons Ltd,,,,,,,,,,
Nottinghamshire County Council,1111/1001,Surplus or Deficit from Trading Undertak,TRADING,Supplies & Services,DAA,27/04/2015,01-10001,5184.4,R Scott & Sons Ltd,,,,,,,,,,
Nottinghamshire County Council,1111/1001,Surplus or Deficit from Trading Undertak,TRADING,Supplies & Services,DAA,27/04/2015,01-10001,2622,Dale Office Interiors,,,,,,,,,,
Nottinghamshire County Council,1111/1001,Surplus or Deficit from Trading Undertak,TRADING,Supplies & Services,DAA,22/04/2015,01-10001,560.13,Niels Larsen Ltd,,,,,,,,,,
Nottinghamshire County Council,1111/1001,Surplus or Deficit from Trading Undertak,TRADING,Supplies & Services,DAA,22/04/2015,01-10001,1389.6,Butler&Willow,,,,,,,,,,
Nottinghamshire County Council,1111/1001,Surplus or Deficit from Trading Undertak,TRADING,Supplies & Services,DAA,27/04/2015,01-10001,557.12,Office Depot Uk,,,,,,,,,,
Nottinghamshire County Council,1111/1001,Surplus or Deficit from Trading Undertak,TRADING,Supplies & Services,DAA,27/04/2015,01-10001,511.35,Office Innovations,,,,,,,,,,
Nottinghamshire County Council,1111/1001,Surplus or Deficit from Trading Undertak,TRADING,Supplies & Services,DAA,10/04/2015,01-10001,688.8,Posturite Uk Ltd,,,,,,,,,,
Nottinghamshire County Council,1111/1001,Surplus or Deficit from Trading Undertak,TRADING,Supplies & Services,DAA,16/04/2015,01-10001,679.9,Posturite Uk Ltd,,,,,,,,,,
Nottinghamshire County Council,1111/1001,Surplus or Deficit from Trading Undertak,TRADING,Supplies & Services,DAA,09/04/2015,01-10001,596.5,Newclay Products Ltd,,,,,,,,,,
Nottinghamshire County Council,1111/1001,Surplus or Deficit from Trading Undertak,TRADING,Supplies & Services,DAA,28/04/2015,01-10001,813.06,R.H.Ritchings Ltd,,,,,,,,,,
Nottinghamshire County Council,1111/1001,Surplus or Deficit from Trading Undertak,TRADING,Supplies & Services,DAA,22/04/2015,01-10001,1076.75,Staedtler (Uk) Ltd,,,,,,,,,,
Nottinghamshire County Council,1111/1001,Surplus or Deficit from Trading Undertak,TRADING,Supplies & Services,DAA,30/04/2015,01-10001,2871.99,Staedtler (Uk) Ltd,,,,,,,,,,
Nottinghamshire County Council,1111/1001,Surplus or Deficit from Trading Undertak,TRADING,Supplies & Services,DAA,09/04/2015,01-10001,513.36,Bic U.K. Ltd,,,,,,,,,,
Nottinghamshire County Council,1111/1001,Surplus or Deficit from Trading Undertak,TRADING,Supplies & Services,DAA,07/04/2015,01-10001,534.96,Allen Glenold Ltd,,,,,,,,,,
Nottinghamshire County Council,1111/1001,Surplus or Deficit from Trading Undertak,TRADING,Supplies & Services,DAA,07/04/2015,01-10001,538.76,Allen Glenold Ltd,,,,,,,,,,
Nottinghamshire County Council,1111/1001,Surplus or Deficit from Trading Undertak,TRADING,Supplies & Services,DAA,09/04/2015,01-10001,635.4,Grosvenor House Papers Ltd,,,,,,,,,,
Nottinghamshire County Council,1111/1001,Surplus or Deficit from Trading Undertak,TRADING,Supplies & Services,DAA,27/04/2015,01-10001,608.62,Grosvenor House Papers Ltd,,,,,,,,,,
Nottinghamshire County Council,1111/1001,Surplus or Deficit from Trading Undertak,TRADING,Supplies & Services,DAA,10/04/2015,01-10001,1877.56,Higher Kings Mill Ltd,,,,,,,,,,
Nottinghamshire County Council,1111/1001,Surplus or Deficit from Trading Undertak,TRADING,Supplies & Services,DAA,22/04/2015,01-10001,665.14,Creativity International Ltd,,,,,,,,,,
Nottinghamshire County Council,1111/1001,Surplus or Deficit from Trading Undertak,TRADING,Supplies & Services,DAA,30/04/2015,01-10001,715.15,Creativity International Ltd,,,,,,,,,,
Nottinghamshire County Council,1111/1001,Surplus or Deficit from Trading Undertak,TRADING,Supplies & Services,DAA,07/04/2015,01-10001,666.91,Newell Rubbermaid,,,,,,,,,,
Nottinghamshire County Council,1111/1001,Surplus or Deficit from Trading Undertak,TRADING,Supplies & Services,DAA,09/04/2015,01-10001,1013.33,Newell Rubbermaid,,,,,,,,,,
Nottinghamshire County Council,1111/1001,Surplus or Deficit from Trading Undertak,TRADING,Supplies & Services,DAA,30/04/2015,01-10001,1098.8,Newell Rubbermaid,,,,,,,,,,
Nottinghamshire County Council,1111/1001,Surplus or Deficit from Trading Undertak,TRADING,Supplies & Services,DAA,30/04/2015,01-10001,1516.84,Newell Rubbermaid,,,,,,,,,,
Nottinghamshire County Council,1111/1001,Surplus or Deficit from Trading Undertak,TRADING,Supplies & Services,DAA,22/04/2015,01-10001,635.87,Slater Harrison & Co Ltd,,,,,,,,,,
Nottinghamshire County Council,1111/1001,Surplus or Deficit from Trading Undertak,TRADING,Supplies & Services,DAA,22/04/2015,01-10001,1044.74,Kent County Supplies,,,,,,,,,,
Nottinghamshire County Council,1111/1001,Surplus or Deficit from Trading Undertak,TRADING,Supplies & Services,DAA,28/04/2015,01-10001,1354.32,Kent County Supplies,,,,,,,,,,
Nottinghamshire County Council,1111/1001,Surplus or Deficit from Trading Undertak,TRADING,Supplies & Services,DAA,30/04/2015,01-10001,531.9,Kent County Supplies,,,,,,,,,,
Nottinghamshire County Council,1111/1001,Surplus or Deficit from Trading Undertak,TRADING,Supplies & Services,DAA,28/04/2015,01-10001,676.4,Primo Play Ltd,,,,,,,,,,
Nottinghamshire County Council,1111/1001,Surplus or Deficit from Trading Undertak,TRADING,Supplies & Services,DAA,07/04/2015,01-10001,2096.68,Eastpoint,,,,,,,,,,
Nottinghamshire County Council,1111/1001,Surplus or Deficit from Trading Undertak,TRADING,Supplies & Services,DAA,30/04/2015,01-10001,1481.78,Eastpoint,,,,,,,,,,
Nottinghamshire County Council,1111/1001,Surplus or Deficit from Trading Undertak,TRADING,Supplies & Services,DAA,30/04/2015,01-10001,2715.28,Eastpoint,,,,,,,,,,
Nottinghamshire County Council,1111/1001,Surplus or Deficit from Trading Undertak,TRADING,Supplies & Services,DAA,09/04/2015,01-10001,770,Spaceright Europe Ltd,,,,,,,,,,
Nottinghamshire County Council,1111/1001,Surplus or Deficit from Trading Undertak,TRADING,Supplies & Services,DAA,27/04/2015,01-10001,620,Spaceright Europe Ltd,,,,,,,,,,
Nottinghamshire County Council,1111/1001,Surplus or Deficit from Trading Undertak,TRADING,Supplies & Services,DAA,09/04/2015,01-10001,1076.4,William Sinclair Horticulture Ltd,,,,,,,,,,
Nottinghamshire County Council,1111/1001,Surplus or Deficit from Trading Undertak,TRADING,Supplies & Services,DAA,14/04/2015,01-10001,3110.34,Monarch Computer Furniture,,,,,,,,,,
Nottinghamshire County Council,1111/1001,Surplus or Deficit from Trading Undertak,TRADING,Supplies & Services,DAA,22/04/2015,01-10001,502.64,Monarch Computer Furniture,,,,,,,,,,
Nottinghamshire County Council,1111/1001,Surplus or Deficit from Trading Undertak,TRADING,Premises Related,BDA,27/04/2015,01-10001,1510.11,Ng Chartered Surveyors,,,,,,,,,,
Nottinghamshire County Council,1111/1001,Surplus or Deficit from Trading Undertak,TRADING,Premises Related,BDA,27/04/2015,01-10001,1510.11,Ng Chartered Surveyors,,,,,,,,,,
Nottinghamshire County Council,1111/1001,Surplus or Deficit from Trading Undertak,TRADING,Premises Related,BDA,27/04/2015,01-10001,1510.11,Ng Chartered Surveyors,,,,,,,,,,
Nottinghamshire County Council,1111/1001,Children and Young People,CYP,Premises Related,BDA,07/04/2015,01-10004,1099.99,Nottingham City Council,,,,,,,,,,
Nottinghamshire County Council,1111/1001,Children and Young People,CYP,Premises Related,BDA,07/04/2015,01-10013,1857.42,University Of Leeds,,,,,,,,,,
Nottinghamshire County Council,1111/1001,Children and Young People,CYP,Premises Related,BDA,08/04/2015,01-10003,5747.54,Making It! Enterprises Ltd,,,,,,,,,,
Nottinghamshire County Council,1111/1001,Children and Young People,CYP,Premises Related,BDA,08/04/2015,01-10011,4674.76,Making It! Enterprises Ltd,,,,,,,,,,
Nottinghamshire County Council,1111/1001,Children and Young People,CYP,Premises Related,BDA,08/04/2015,01-10012,650,[Redacted],,,,,,,,,,
Nottinghamshire County Council,1111/1001,Children and Young People,CYP,Premises Related,BDA,08/04/2015,01-10015,606.67,J Sedoo t/a Sedoo Investments,,,,,,,,,,
Nottinghamshire County Council,1111/1001,Children and Young People,CYP,Premises Related,BDA,08/04/2015,01-10016,606.67,J Sedoo t/a Sedoo Investments,,,,,,,,,,
Nottinghamshire County Council,1111/1001,Children and Young People,CYP,Premises Related,BDA,08/04/2015,01-10017,606.67,J Sedoo t/a Sedoo Investments,,,,,,,,,,
Nottinghamshire County Council,1111/1001,Children and Young People,CYP,Premises Related,BDA,16/04/2015,01-10023,3614.34,Making It! Enterprises Ltd,,,,,,,,,,
Nottinghamshire County Council,1111/1001,Children and Young People,CYP,Premises Related,BDA,21/04/2015,01-10025,960,[Redacted],,,,,,,,,,
Nottinghamshire County Council,1111/1001,Children and Young People,CYP,Premises Related,BDA,21/04/2015,01-10026,960,[Redacted],,,,,,,,,,
Nottinghamshire County Council,1111/1001,Children and Young People,CYP,Premises Related,BDA,21/04/2015,01-10027,960,[Redacted],,,,,,,,,,
Nottinghamshire County Council,1111/1001,Children and Young People,CYP,Premises Related,BDA,21/04/2015,01-10028,960,[Redacted],,,,,,,,,,
Nottinghamshire County Council,1111/1001,Children and Young People,CYP,Transport Related,CCA,07/04/2015,01-10050,3263.7,Taxicover Uk Ltd,,,,,,,,,,
Nottinghamshire County Council,1111/1001,Children and Young People,CYP,Transport Related,CCA,07/04/2015,01-10051,4194.96,Taxicover Uk Ltd,,,,,,,,,,
Nottinghamshire County Council,1111/1001,Children and Young People,CYP,Transport Related,CCA,07/04/2015,01-10052,3246.54,Taxicover Uk Ltd,,,,,,,,,,
Nottinghamshire County Council,1111/1001,Children and Young People,CYP,Transport Related,CCA,07/04/2015,01-10053,3663.66,Taxicover Uk Ltd,,,,,,,,,,
Nottinghamshire County Council,1111/1001,Children and Young People,CYP,Transport Related,CCA,07/04/2015,01-10054,3380.3,Taxicover Uk Ltd,,,,,,,,,,
Nottinghamshire County Council,1111/1001,Children and Young People,CYP,Transport Related,CCA,07/04/2015,01-10055,4066.7,Taxicover Uk Ltd,,,,,,,,,,
Nottinghamshire County Council,1111/1001,Children and Young People,CYP,Transport Related,CCA,07/04/2015,01-10056,3468.52,Taxicover Uk Ltd,,,,,,,,,,
Nottinghamshire County Council,1111/1001,Children and Young People,CYP,Transport Related,CCA,07/04/2015,01-10058,3127.74,Taxicover Uk Ltd,,,,,,,,,,
Nottinghamshire County Council,1111/1001,Children and Young People,CYP,Transport Related,CCA,07/04/2015,01-10059,3141.6,Taxicover Uk Ltd,,,,,,,,,,
Nottinghamshire County Council,1111/1001,Children and Young People,CYP,Transport Related,CCA,07/04/2015,01-10060,3490.3,Taxicover Uk Ltd,,,,,,,,,,
Nottinghamshire County Council,1111/1001,Children and Young People,CYP,Transport Related,CCA,07/04/2015,01-10061,3213.76,Taxicover Uk Ltd,,,,,,,,,,
Nottinghamshire County Council,1111/1001,Children and Young People,CYP,Transport Related,CCA,07/04/2015,01-10062,3298.9,Taxicover Uk Ltd,,,,,,,,,,
Nottinghamshire County Council,1111/1001,Children and Young People,CYP,Transport Related,CCA,07/04/2015,01-10063,1315.8,Southside Cars,,,,,,,,,,
Nottinghamshire County Council,1111/1001,Children and Young People,CYP,Transport Related,CCA,07/04/2015,01-10064,1693.35,Southside Cars,,,,,,,,,,
Nottinghamshire County Council,1111/1001,Children and Young People,CYP,Transport Related,CCA,07/04/2015,01-10065,1296.45,Southside Cars,,,,,,,,,,
Nottinghamshire County Council,1111/1001,Children and Young People,CYP,Transport Related,CCA,07/04/2015,01-10066,2061.85,Southside Cars,,,,,,,,,,
Nottinghamshire County Council,1111/1001,Children and Young People,CYP,Transport Related,CCA,07/04/2015,01-10067,2173.5,Southside Cars,,,,,,,,,,
Nottinghamshire County Council,1111/1001,Children and Young People,CYP,Transport Related,CCA,07/04/2015,01-10068,1977.6,Southside Cars,,,,,,,,,,
Nottinghamshire County Council,1111/1001,Children and Young People,CYP,Transport Related,CCA,07/04/2015,01-10069,1067.88,Southside Cars,,,,,,,,,,
Nottinghamshire County Council,1111/1001,Children and Young People,CYP,Transport Related,CCA,07/04/2015,01-10070,2321.3,All Wayz Travel,,,,,,,,,,
Nottinghamshire County Council,1111/1001,Children and Young People,CYP,Transport Related,CCA,07/04/2015,01-10074,3590.16,Marriotts Travel,,,,,,,,,,
Nottinghamshire County Council,1111/1001,Children and Young People,CYP,Transport Related,CCA,07/04/2015,01-10075,1040,Alpha Cars,,,,,,,,,,
Nottinghamshire County Council,1111/1001,Children and Young People,CYP,Transport Related,CCA,07/04/2015,01-10077,732.16,Alpha Cars,,,,,,,,,,
Nottinghamshire County Council,1111/1001,Children and Young People,CYP,Transport Related,CCA,07/04/2015,01-10078,1449.63,Alpha Cars,,,,,,,,,,
Nottinghamshire County Council,1111/1001,Children and Young People,CYP,Transport Related,CCA,07/04/2015,01-10080,2343.44,Arrow Specialised Transport Ltd,,,,,,,,,,
Nottinghamshire County Council,1111/1001,Children and Young People,CYP,Transport Related,CCA,07/04/2015,01-10081,2171.4,Arrow Specialised Transport Ltd,,,,,,,,,,
Nottinghamshire County Council,1111/1001,Children and Young People,CYP,Transport Related,CCA,07/04/2015,01-10082,2810.06,Arrow Specialised Transport Ltd,,,,,,,,,,
Nottinghamshire County Council,1111/1001,Children and Young People,CYP,Transport Related,CCA,07/04/2015,01-10083,3190,Arrow Specialised Transport Ltd,,,,,,,,,,
Nottinghamshire County Council,1111/1001,Children and Young People,CYP,Transport Related,CCA,07/04/2015,01-10084,2552,Arrow Specialised Transport Ltd,,,,,,,,,,
Nottinghamshire County Council,1111/1001,Children and Young People,CYP,Transport Related,CCA,07/04/2015,01-10085,1862.3,Arrow Specialised Transport Ltd,,,,,,,,,,
Nottinghamshire County Council,1111/1001,Children and Young People,CYP,Transport Related,CCA,07/04/2015,01-10086,2956.14,Arrow Specialised Transport Ltd,,,,,,,,,,
Nottinghamshire County Council,1111/1001,Children and Young People,CYP,Transport Related,CCA,07/04/2015,01-10087,2125.2,Arrow Specialised Transport Ltd,,,,,,,,,,
Nottinghamshire County Council,1111/1001,Children and Young People,CYP,Transport Related,CCA,07/04/2015,01-10088,2737.68,Arrow Specialised Transport Ltd,,,,,,,,,,
Nottinghamshire County Council,1111/1001,Children and Young People,CYP,Transport Related,CCA,07/04/2015,01-10090,3628.46,Arrow Specialised Transport Ltd,,,,,,,,,,
Nottinghamshire County Council,1111/1001,Children and Young People,CYP,Transport Related,CCA,07/04/2015,01-10091,3146,Arrow Specialised Transport Ltd,,,,,,,,,,
Nottinghamshire County Council,1111/1001,Children and Young People,CYP,Transport Related,CCA,07/04/2015,01-10092,2623.28,Arrow Specialised Transport Ltd,,,,,,,,,,
Nottinghamshire County Council,1111/1001,Children and Young People,CYP,Transport Related,CCA,07/04/2015,01-10093,1053.57,Arrow Specialised Transport Ltd,,,,,,,,,,
Nottinghamshire County Council,1111/1001,Children and Young People,CYP,Transport Related,CCA,07/04/2015,01-10094,2925.3,Arrow Specialised Transport Ltd,,,,,,,,,,
Nottinghamshire County Council,1111/1001,Children and Young People,CYP,Transport Related,CCA,07/04/2015,01-10095,3347.61,Arrow Specialised Transport Ltd,,,,,,,,,,
Nottinghamshire County Council,1111/1001,Children and Young People,CYP,Transport Related,CCA,07/04/2015,01-10096,2442.93,Arrow Specialised Transport Ltd,,,,,,,,,,
Nottinghamshire County Council,1111/1001,Children and Young People,CYP,Transport Related,CCA,07/04/2015,01-10097,2128.56,Arrow Specialised Transport Ltd,,,,,,,,,,
Nottinghamshire County Council,1111/1001,Children and Young People,CYP,Transport Related,CCA,07/04/2015,01-10098,2003.4,Arrow Specialised Transport Ltd,,,,,,,,,,
Nottinghamshire County Council,1111/1001,Children and Young People,CYP,Transport Related,CCA,07/04/2015,01-10099,2429.7,Arrow Specialised Transport Ltd,,,,,,,,,,
Nottinghamshire County Council,1111/1001,Children and Young People,CYP,Transport Related,CCA,07/04/2015,01-10100,2142,Arrow Specialised Transport Ltd,,,,,,,,,,
Nottinghamshire County Council,1111/1001,Children and Young People,CYP,Transport Related,CCA,07/04/2015,01-10101,2085.16,Arrow Specialised Transport Ltd,,,,,,,,,,
Nottinghamshire County Council,1111/1001,Children and Young People,CYP,Transport Related,CCA,07/04/2015,01-10102,2600.84,Arrow Specialised Transport Ltd,,,,,,,,,,
Nottinghamshire County Council,1111/1001,Children and Young People,CYP,Transport Related,CCA,07/04/2015,01-10103,2498.54,Arrow Specialised Transport Ltd,,,,,,,,,,
Nottinghamshire County Council,1111/1001,Children and Young People,CYP,Transport Related,CCA,07/04/2015,01-10104,1964.38,Arrow Specialised Transport Ltd,,,,,,,,,,
Nottinghamshire County Council,1111/1001,Children and Young People,CYP,Transport Related,CCA,07/04/2015,01-10105,2409.22,Arrow Specialised Transport Ltd,,,,,,,,,,
Nottinghamshire County Council,1111/1001,Children and Young People,CYP,Transport Related,CCA,07/04/2015,01-10106,2255.22,Arrow Specialised Transport Ltd,,,,,,,,,,
Nottinghamshire County Council,1111/1001,Children and Young People,CYP,Transport Related,CCA,07/04/2015,01-10107,2176.68,Arrow Specialised Transport Ltd,,,,,,,,,,
Nottinghamshire County Council,1111/1001,Children and Young People,CYP,Transport Related,CCA,07/04/2015,01-10108,2547.16,Arrow Specialised Transport Ltd,,,,,,,,,,
Nottinghamshire County Council,1111/1001,Children and Young People,CYP,Transport Related,CCA,07/04/2015,01-10109,2196.04,Arrow Specialised Transport Ltd,,,,,,,,,,
Nottinghamshire County Council,1111/1001,Children and Young People,CYP,Transport Related,CCA,07/04/2015,01-10110,1188,Arrow Specialised Transport Ltd,,,,,,,,,,
Nottinghamshire County Council,1111/1001,Children and Young People,CYP,Transport Related,CCA,07/04/2015,01-10112,1960.64,Arrow Specialised Transport Ltd,,,,,,,,,,
Nottinghamshire County Council,1111/1001,Children and Young People,CYP,Transport Related,CCA,07/04/2015,01-10114,1318.9,Arrow Specialised Transport Ltd,,,,,,,,,,
Nottinghamshire County Council,1111/1001,Children and Young People,CYP,Transport Related,CCA,07/04/2015,01-10116,3696,Arrow Specialised Transport Ltd,,,,,,,,,,
Nottinghamshire County Council,1111/1001,Children and Young People,CYP,Transport Related,CCA,07/04/2015,01-10117,3059.76,Arrow Specialised Transport Ltd,,,,,,,,,,
Nottinghamshire County Council,1111/1001,Children and Young People,CYP,Transport Related,CCA,07/04/2015,01-10118,2995.52,Arrow Specialised Transport Ltd,,,,,,,,,,
Nottinghamshire County Council,1111/1001,Children and Young People,CYP,Transport Related,CCA,07/04/2015,01-10120,1680,Arrow Specialised Transport Ltd,,,,,,,,,,
Nottinghamshire County Council,1111/1001,Children and Young People,CYP,Transport Related,CCA,07/04/2015,01-10121,2144.78,Arrow Specialised Transport Ltd,,,,,,,,,,
Nottinghamshire County Council,1111/1001,Children and Young People,CYP,Transport Related,CCA,07/04/2015,01-10122,1608.86,Arrow Specialised Transport Ltd,,,,,,,,,,
Nottinghamshire County Council,1111/1001,Children and Young People,CYP,Transport Related,CCA,07/04/2015,01-10123,2752.2,Arrow Specialised Transport Ltd,,,,,,,,,,
Nottinghamshire County Council,1111/1001,Children and Young People,CYP,Transport Related,CCA,07/04/2015,01-10124,2750,Arrow Specialised Transport Ltd,,,,,,,,,,
Nottinghamshire County Council,1111/1001,Children and Young People,CYP,Transport Related,CCA,07/04/2015,01-10125,1958,Arrow Specialised Transport Ltd,,,,,,,,,,
Nottinghamshire County Council,1111/1001,Children and Young People,CYP,Transport Related,CCA,07/04/2015,01-10126,2442,Arrow Specialised Transport Ltd,,,,,,,,,,
Nottinghamshire County Council,1111/1001,Children and Young People,CYP,Transport Related,CCA,07/04/2015,01-10127,2156,Arrow Specialised Transport Ltd,,,,,,,,,,
Nottinghamshire County Council,1111/1001,Children and Young People,CYP,Transport Related,CCA,07/04/2015,01-10128,2816,Arrow Specialised Transport Ltd,,,,,,,,,,
Nottinghamshire County Council,1111/1001,Children and Young People,CYP,Transport Related,CCA,07/04/2015,01-10129,2217.6,Arrow Specialised Transport Ltd,,,,,,,,,,
Nottinghamshire County Council,1111/1001,Children and Young People,CYP,Transport Related,CCA,07/04/2015,01-10130,2614.92,Arrow Specialised Transport Ltd,,,,,,,,,,
Nottinghamshire County Council,1111/1001,Children and Young People,CYP,Transport Related,CCA,07/04/2015,01-10131,2309.34,Arrow Specialised Transport Ltd,,,,,,,,,,
Nottinghamshire County Council,1111/1001,Children and Young People,CYP,Transport Related,CCA,07/04/2015,01-10132,2546.94,Arrow Specialised Transport Ltd,,,,,,,,,,
Nottinghamshire County Council,1111/1001,Children and Young People,CYP,Transport Related,CCA,07/04/2015,01-10133,3256,Arrow Specialised Transport Ltd,,,,,,,,,,
Nottinghamshire County Council,1111/1001,Children and Young People,CYP,Transport Related,CCA,07/04/2015,01-10143,1801.8,Bridges Transport Services,,,,,,,,,,
Nottinghamshire County Council,1111/1001,Children and Young People,CYP,Transport Related,CCA,07/04/2015,01-10144,3574.78,Bridges Transport Services,,,,,,,,,,
Nottinghamshire County Council,1111/1001,Children and Young People,CYP,Transport Related,CCA,07/04/2015,01-10145,3017.96,Bridges Transport Services,,,,,,,,,,
Nottinghamshire County Council,1111/1001,Children and Young People,CYP,Transport Related,CCA,07/04/2015,01-10146,1195.7,Bridges Transport Services,,,,,,,,,,
Nottinghamshire County Council,1111/1001,Children and Young People,CYP,Transport Related,CCA,07/04/2015,01-10147,1772.54,Bridges Transport Services,,,,,,,,,,
Nottinghamshire County Council,1111/1001,Children and Young People,CYP,Transport Related,CCA,07/04/2015,01-10148,1554.52,Bridges Transport Services,,,,,,,,,,
Nottinghamshire County Council,1111/1001,Children and Young People,CYP,Transport Related,CCA,07/04/2015,01-10149,3057.56,Bridges Transport Services,,,,,,,,,,
Nottinghamshire County Council,1111/1001,Children and Young People,CYP,Transport Related,CCA,07/04/2015,01-10150,1586.42,Bridges Transport Services,,,,,,,,,,
Nottinghamshire County Council,1111/1001,Children and Young People,CYP,Transport Related,CCA,07/04/2015,01-10151,3300,Bridges Transport Services,,,,,,,,,,
Nottinghamshire County Council,1111/1001,Children and Young People,CYP,Transport Related,CCA,07/04/2015,01-10152,4487.78,Bridges Transport Services,,,,,,,,,,
Nottinghamshire County Council,1111/1001,Children and Young People,CYP,Transport Related,CCA,07/04/2015,01-10153,984.5,Bridges Transport Services,,,,,,,,,,
Nottinghamshire County Council,1111/1001,Children and Young People,CYP,Transport Related,CCA,07/04/2015,01-10154,656.37,Bridges Transport Services,,,,,,,,,,
Nottinghamshire County Council,1111/1001,Children and Young People,CYP,Transport Related,CCA,07/04/2015,01-10156,3291.2,Bridges Transport Services,,,,,,,,,,
Nottinghamshire County Council,1111/1001,Children and Young People,CYP,Transport Related,CCA,07/04/2015,01-10157,2591.82,Bridges Transport Services,,,,,,,,,,
Nottinghamshire County Council,1111/1001,Children and Young People,CYP,Transport Related,CCA,07/04/2015,01-10158,2720.99,Bridges Transport Services,,,,,,,,,,
Nottinghamshire County Council,1111/1001,Children and Young People,CYP,Transport Related,CCA,07/04/2015,01-10159,1777.38,Bridges Transport Services,,,,,,,,,,
Nottinghamshire County Council,1111/1001,Children and Young People,CYP,Transport Related,CCA,07/04/2015,01-10160,1387.1,Bridges Transport Services,,,,,,,,,,
Nottinghamshire County Council,1111/1001,Children and Young People,CYP,Transport Related,CCA,07/04/2015,01-10162,1794.54,Bridges Transport Services,,,,,,,,,,
Nottinghamshire County Council,1111/1001,Children and Young People,CYP,Transport Related,CCA,07/04/2015,01-10164,2377.62,D G Private Hire Ltd,,,,,,,,,,
Nottinghamshire County Council,1111/1001,Children and Young People,CYP,Transport Related,CCA,07/04/2015,01-10165,1980,D G Private Hire Ltd,,,,,,,,,,
Nottinghamshire County Council,1111/1001,Children and Young People,CYP,Transport Related,CCA,07/04/2015,01-10166,2715.24,D G Private Hire Ltd,,,,,,,,,,
Nottinghamshire County Council,1111/1001,Children and Young People,CYP,Transport Related,CCA,07/04/2015,01-10167,1215,D G Private Hire Ltd,,,,,,,,,,
Nottinghamshire County Council,1111/1001,Children and Young People,CYP,Transport Related,CCA,07/04/2015,01-10168,1224,D G Private Hire Ltd,,,,,,,,,,
Nottinghamshire County Council,1111/1001,Children and Young People,CYP,Transport Related,CCA,07/04/2015,01-10171,576,Fozcabs Newark Taxis,,,,,,,,,,
Nottinghamshire County Council,1111/1001,Children and Young People,CYP,Transport Related,CCA,07/04/2015,01-10173,1806.4,Fozcabs Newark Taxis,,,,,,,,,,
Nottinghamshire County Council,1111/1001,Children and Young People,CYP,Transport Related,CCA,07/04/2015,01-10174,1408,Fozcabs Newark Taxis,,,,,,,,,,
Nottinghamshire County Council,1111/1001,Children and Young People,CYP,Transport Related,CCA,07/04/2015,01-10175,1927.2,Fozcabs Newark Taxis,,,,,,,,,,
Nottinghamshire County Council,1111/1001,Children and Young People,CYP,Transport Related,CCA,07/04/2015,01-10176,1728.54,Fozcabs Newark Taxis,,,,,,,,,,
Nottinghamshire County Council,1111/1001,Children and Young People,CYP,Transport Related,CCA,07/04/2015,01-10177,1808.4,Fozcabs Newark Taxis,,,,,,,,,,
Nottinghamshire County Council,1111/1001,Children and Young People,CYP,Transport Related,CCA,07/04/2015,01-10178,980,Fozcabs Newark Taxis,,,,,,,,,,
Nottinghamshire County Council,1111/1001,Children and Young People,CYP,Transport Related,CCA,07/04/2015,01-10179,852,Fozcabs Newark Taxis,,,,,,,,,,
Nottinghamshire County Council,1111/1001,Children and Young People,CYP,Transport Related,CCA,07/04/2015,01-10180,750,Fozcabs Newark Taxis,,,,,,,,,,
Nottinghamshire County Council,1111/1001,Children and Young People,CYP,Transport Related,CCA,07/04/2015,01-10182,1320,Fozcabs Newark Taxis,,,,,,,,,,
Nottinghamshire County Council,1111/1001,Children and Young People,CYP,Transport Related,CCA,07/04/2015,01-10184,900,Fozcabs Newark Taxis,,,,,,,,,,
Nottinghamshire County Council,1111/1001,Children and Young People,CYP,Transport Related,CCA,07/04/2015,01-10185,900,Galaxy Cabs,,,,,,,,,,
Nottinghamshire County Council,1111/1001,Children and Young People,CYP,Transport Related,CCA,07/04/2015,01-10186,1200,Galaxy Cabs,,,,,,,,,,
Nottinghamshire County Council,1111/1001,Children and Young People,CYP,Transport Related,CCA,07/04/2015,01-10189,2310,Horizon Travel,,,,,,,,,,
Nottinghamshire County Council,1111/1001,Children and Young People,CYP,Transport Related,CCA,07/04/2015,01-10190,3013.12,Horizon Travel,,,,,,,,,,
Nottinghamshire County Council,1111/1001,Children and Young People,CYP,Transport Related,CCA,07/04/2015,01-10191,3183.84,Midfield Travel,,,,,,,,,,
Nottinghamshire County Council,1111/1001,Children and Young People,CYP,Transport Related,CCA,07/04/2015,01-10194,2774.4,Oasis Taxis Mansfield Ltd,,,,,,,,,,
Nottinghamshire County Council,1111/1001,Children and Young People,CYP,Transport Related,CCA,07/04/2015,01-10195,1496,Oasis Taxis Mansfield Ltd,,,,,,,,,,
Nottinghamshire County Council,1111/1001,Children and Young People,CYP,Transport Related,CCA,07/04/2015,01-10196,1496,Oasis Taxis Mansfield Ltd,,,,,,,,,,
Nottinghamshire County Council,1111/1001,Children and Young People,CYP,Transport Related,CCA,07/04/2015,01-10197,684,Oasis Taxis Mansfield Ltd,,,,,,,,,,
Nottinghamshire County Council,1111/1001,Children and Young People,CYP,Transport Related,CCA,07/04/2015,01-10198,2572.6,Oasis Taxis Mansfield Ltd,,,,,,,,,,
Nottinghamshire County Council,1111/1001,Children and Young People,CYP,Transport Related,CCA,07/04/2015,01-10199,2576.2,Carlton Cars Ltd T/A Trent Cars,,,,,,,,,,
Nottinghamshire County Council,1111/1001,Children and Young People,CYP,Transport Related,CCA,07/04/2015,01-10200,3397.02,K & S Coaches,,,,,,,,,,
Nottinghamshire County Council,1111/1001,Children and Young People,CYP,Transport Related,CCA,07/04/2015,01-10201,2067.04,D G Private Hire Ltd,,,,,,,,,,
Nottinghamshire County Council,1111/1001,Children and Young People,CYP,Transport Related,CCA,07/04/2015,01-10202,1380,D G Private Hire Ltd,,,,,,,,,,
Nottinghamshire County Council,1111/1001,Children and Young People,CYP,Transport Related,CCA,07/04/2015,01-10203,679.8,D G Private Hire Ltd,,,,,,,,,,
Nottinghamshire County Council,1111/1001,Children and Young People,CYP,Transport Related,CCA,07/04/2015,01-10204,1768.8,D G Private Hire Ltd,,,,,,,,,,
Nottinghamshire County Council,1111/1001,Children and Young People,CYP,Transport Related,CCA,07/04/2015,01-10205,1907.4,D G Private Hire Ltd,,,,,,,,,,
Nottinghamshire County Council,1111/1001,Children and Young People,CYP,Transport Related,CCA,07/04/2015,01-10206,1500,D G Private Hire Ltd,,,,,,,,,,
Nottinghamshire County Council,1111/1001,Children and Young People,CYP,Transport Related,CCA,07/04/2015,01-10207,1600,D G Private Hire Ltd,,,,,,,,,,
Nottinghamshire County Council,1111/1001,Children and Young People,CYP,Transport Related,CCA,07/04/2015,01-10208,2200,D G Private Hire Ltd,,,,,,,,,,
Nottinghamshire County Council,1111/1001,Children and Young People,CYP,Transport Related,CCA,07/04/2015,01-10225,957,P & P Taxis,,,,,,,,,,
Nottinghamshire County Council,1111/1001,Children and Young People,CYP,Transport Related,CCA,07/04/2015,01-10227,3960,P & P Taxis,,,,,,,,,,
Nottinghamshire County Council,1111/1001,Children and Young People,CYP,Transport Related,CCA,07/04/2015,01-10228,1264.8,P & P Taxis,,,,,,,,,,
Nottinghamshire County Council,1111/1001,Children and Young People,CYP,Transport Related,CCA,07/04/2015,01-10247,8140,Kettlewell Retford Ltd,,,,,,,,,,
Nottinghamshire County Council,1111/1001,Children and Young People,CYP,Transport Related,CCA,07/04/2015,01-10248,600,Kettlewell Retford Ltd,,,,,,,,,,
Nottinghamshire County Council,1111/1001,Children and Young People,CYP,Transport Related,CCA,07/04/2015,01-10255,2181,Rio Cabs,,,,,,,,,,
Nottinghamshire County Council,1111/1001,Children and Young People,CYP,Transport Related,CCA,07/04/2015,01-10256,1214.4,Rio Cabs,,,,,,,,,,
Nottinghamshire County Council,1111/1001,Children and Young People,CYP,Transport Related,CCA,07/04/2015,01-10258,1544.48,Rio Cabs,,,,,,,,,,
Nottinghamshire County Council,1111/1001,Children and Young People,CYP,Transport Related,CCA,07/04/2015,01-10259,638,Cable Cars Taxis Nottm Ltd,,,,,,,,,,
Nottinghamshire County Council,1111/1001,Children and Young People,CYP,Transport Related,CCA,07/04/2015,01-10260,1800.92,Ace Cars,,,,,,,,,,
Nottinghamshire County Council,1111/1001,Children and Young People,CYP,Transport Related,CCA,07/04/2015,01-10261,1087.9,Ace Cars,,,,,,,,,,
Nottinghamshire County Council,1111/1001,Children and Young People,CYP,Transport Related,CCA,07/04/2015,01-10263,1835.9,Ace Cars,,,,,,,,,,
Nottinghamshire County Council,1111/1001,Children and Young People,CYP,Transport Related,CCA,07/04/2015,01-10264,1100,Ace Cars,,,,,,,,,,
Nottinghamshire County Council,1111/1001,Children and Young People,CYP,Transport Related,CCA,07/04/2015,01-10265,3409.78,L A Travel,,,,,,,,,,
Nottinghamshire County Council,1111/1001,Children and Young People,CYP,Transport Related,CCA,07/04/2015,01-10274,1900,Target Taxis,,,,,,,,,,
Nottinghamshire County Council,1111/1001,Children and Young People,CYP,Transport Related,CCA,07/04/2015,01-10334,2716.34,Martins Travel,,,,,,,,,,
Nottinghamshire County Council,1111/1001,Children and Young People,CYP,Transport Related,CCA,07/04/2015,01-10335,2590.4,Martins Travel,,,,,,,,,,
Nottinghamshire County Council,1111/1001,Children and Young People,CYP,Transport Related,CCA,07/04/2015,01-10339,3195.78,CBC Taxis Ltd,,,,,,,,,,
Nottinghamshire County Council,1111/1001,Children and Young People,CYP,Transport Related,CCA,07/04/2015,01-10340,1538.24,CBC Taxis Ltd,,,,,,,,,,
Nottinghamshire County Council,1111/1001,Children and Young People,CYP,Transport Related,CCA,07/04/2015,01-10341,1077.34,CBC Taxis Ltd,,,,,,,,,,
Nottinghamshire County Council,1111/1001,Children and Young People,CYP,Transport Related,CCA,07/04/2015,01-10342,619.74,CBC Taxis Ltd,,,,,,,,,,
Nottinghamshire County Council,1111/1001,Children and Young People,CYP,Transport Related,CCA,07/04/2015,01-10343,587.52,CBC Taxis Ltd,,,,,,,,,,
Nottinghamshire County Council,1111/1001,Children and Young People,CYP,Transport Related,CCA,07/04/2015,01-10344,570.18,CBC Taxis Ltd,,,,,,,,,,
Nottinghamshire County Council,1111/1001,Children and Young People,CYP,Transport Related,CCA,07/04/2015,01-10348,2148.3,Arrow Specialised Transport Ltd,,,,,,,,,,
Nottinghamshire County Council,1111/1001,Children and Young People,CYP,Transport Related,CCA,07/04/2015,01-10349,2304.06,Arrow Specialised Transport Ltd,,,,,,,,,,
Nottinghamshire County Council,1111/1001,Children and Young People,CYP,Transport Related,CCA,07/04/2015,01-10350,2376.56,Arrow Specialised Transport Ltd,,,,,,,,,,
Nottinghamshire County Council,1111/1001,Children and Young People,CYP,Transport Related,CCA,07/04/2015,01-10351,2792,Arrow Specialised Transport Ltd,,,,,,,,,,
Nottinghamshire County Council,1111/1001,Children and Young People,CYP,Transport Related,CCA,07/04/2015,01-10352,12716,Arrow Specialised Transport Ltd,,,,,,,,,,
Nottinghamshire County Council,1111/1001,Children and Young People,CYP,Transport Related,CCA,07/04/2015,01-10353,2102.76,Arrow Specialised Transport Ltd,,,,,,,,,,
Nottinghamshire County Council,1111/1001,Children and Young People,CYP,Transport Related,CCA,07/04/2015,01-10355,1332.94,Arrow Specialised Transport Ltd,,,,,,,,,,
Nottinghamshire County Council,1111/1001,Children and Young People,CYP,Transport Related,CCA,07/04/2015,01-10357,3768.82,Arrow Specialised Transport Ltd,,,,,,,,,,
Nottinghamshire County Council,1111/1001,Children and Young People,CYP,Transport Related,CCA,07/04/2015,01-10358,1333.64,Arrow Specialised Transport Ltd,,,,,,,,,,
Nottinghamshire County Council,1111/1001,Children and Young People,CYP,Transport Related,CCA,07/04/2015,01-10360,1631.74,Arrow Specialised Transport Ltd,,,,,,,,,,
Nottinghamshire County Council,1111/1001,Children and Young People,CYP,Transport Related,CCA,07/04/2015,01-10361,2720,Arrow Specialised Transport Ltd,,,,,,,,,,
Nottinghamshire County Council,1111/1001,Children and Young People,CYP,Transport Related,CCA,07/04/2015,01-10362,2143.4,Arrow Specialised Transport Ltd,,,,,,,,,,
Nottinghamshire County Council,1111/1001,Children and Young People,CYP,Transport Related,CCA,07/04/2015,01-10363,3029.8,Arrow Specialised Transport Ltd,,,,,,,,,,
Nottinghamshire County Council,1111/1001,Children and Young People,CYP,Transport Related,CCA,07/04/2015,01-10364,1557.49,Arrow Specialised Transport Ltd,,,,,,,,,,
Nottinghamshire County Council,1111/1001,Children and Young People,CYP,Transport Related,CCA,07/04/2015,01-10366,1835.9,Arrow Specialised Transport Ltd,,,,,,,,,,
Nottinghamshire County Council,1111/1001,Children and Young People,CYP,Transport Related,CCA,07/04/2015,01-10367,821.59,Arrow Specialised Transport Ltd,,,,,,,,,,
Nottinghamshire County Council,1111/1001,Children and Young People,CYP,Transport Related,CCA,07/04/2015,01-10369,1926.54,Arrow Specialised Transport Ltd,,,,,,,,,,
Nottinghamshire County Council,1111/1001,Children and Young People,CYP,Transport Related,CCA,07/04/2015,01-10370,1722.6,Arrow Specialised Transport Ltd,,,,,,,,,,
Nottinghamshire County Council,1111/1001,Children and Young People,CYP,Transport Related,CCA,07/04/2015,01-10371,2872.32,Arrow Specialised Transport Ltd,,,,,,,,,,
Nottinghamshire County Council,1111/1001,Children and Young People,CYP,Transport Related,CCA,07/04/2015,01-10373,945,Ng11 Cars,,,,,,,,,,
Nottinghamshire County Council,1111/1001,Children and Young People,CYP,Transport Related,CCA,07/04/2015,01-10374,1870,Ng11 Cars,,,,,,,,,,
Nottinghamshire County Council,1111/1001,Children and Young People,CYP,Transport Related,CCA,07/04/2015,01-10377,2450,Sprays Transport Ltd,,,,,,,,,,
Nottinghamshire County Council,1111/1001,Children and Young People,CYP,Transport Related,CCA,07/04/2015,01-10378,3091.66,Sprays Transport Ltd,,,,,,,,,,
Nottinghamshire County Council,1111/1001,Children and Young People,CYP,Transport Related,CCA,07/04/2015,01-10379,2339.48,Sprays Transport Ltd,,,,,,,,,,
Nottinghamshire County Council,1111/1001,Children and Young People,CYP,Transport Related,CCA,07/04/2015,01-10380,2486,Sprays Transport Ltd,,,,,,,,,,
Nottinghamshire County Council,1111/1001,Children and Young People,CYP,Transport Related,CCA,07/04/2015,01-10381,1960,Sprays Transport Ltd,,,,,,,,,,
Nottinghamshire County Council,1111/1001,Children and Young People,CYP,Transport Related,CCA,07/04/2015,01-10382,2310,Sprays Transport Ltd,,,,,,,,,,
Nottinghamshire County Council,1111/1001,Children and Young People,CYP,Transport Related,CCA,07/04/2015,01-10383,1932,Sprays Transport Ltd,,,,,,,,,,
Nottinghamshire County Council,1111/1001,Children and Young People,CYP,Transport Related,CCA,07/04/2015,01-10384,1858.56,Sprays Transport Ltd,,,,,,,,,,
Nottinghamshire County Council,1111/1001,Children and Young People,CYP,Transport Related,CCA,07/04/2015,01-10385,1833.92,Sprays Transport Ltd,,,,,,,,,,
Nottinghamshire County Council,1111/1001,Children and Young People,CYP,Transport Related,CCA,07/04/2015,01-10386,2039.84,Sprays Transport Ltd,,,,,,,,,,
Nottinghamshire County Council,1111/1001,Children and Young People,CYP,Transport Related,CCA,07/04/2015,01-10387,1756.59,Sprays Transport Ltd,,,,,,,,,,
Nottinghamshire County Council,1111/1001,Children and Young People,CYP,Transport Related,CCA,07/04/2015,01-10389,2018.28,Sprays Transport Ltd,,,,,,,,,,
Nottinghamshire County Council,1111/1001,Children and Young People,CYP,Transport Related,CCA,07/04/2015,01-10390,1903.88,Sprays Transport Ltd,,,,,,,,,,
Nottinghamshire County Council,1111/1001,Children and Young People,CYP,Transport Related,CCA,07/04/2015,01-10391,1995,Sprays Transport Ltd,,,,,,,,,,
Nottinghamshire County Council,1111/1001,Children and Young People,CYP,Transport Related,CCA,07/04/2015,01-10392,1994.52,Sprays Transport Ltd,,,,,,,,,,
Nottinghamshire County Council,1111/1001,Children and Young People,CYP,Transport Related,CCA,07/04/2015,01-10393,2130.48,Sprays Transport Ltd,,,,,,,,,,
Nottinghamshire County Council,1111/1001,Children and Young People,CYP,Transport Related,CCA,07/04/2015,01-10394,1926.54,Sprays Transport Ltd,,,,,,,,,,
Nottinghamshire County Council,1111/1001,Children and Young People,CYP,Transport Related,CCA,07/04/2015,01-10395,2064.48,Sprays Transport Ltd,,,,,,,,,,
Nottinghamshire County Council,1111/1001,Children and Young People,CYP,Transport Related,CCA,07/04/2015,01-10396,2320.12,Sprays Transport Ltd,,,,,,,,,,
Nottinghamshire County Council,1111/1001,Children and Young People,CYP,Transport Related,CCA,07/04/2015,01-10397,2104.3,Sprays Transport Ltd,,,,,,,,,,
Nottinghamshire County Council,1111/1001,Children and Young People,CYP,Transport Related,CCA,07/04/2015,01-10398,2618,Sprays Transport Ltd,,,,,,,,,,
Nottinghamshire County Council,1111/1001,Children and Young People,CYP,Transport Related,CCA,07/04/2015,01-10399,2596,Sprays Transport Ltd,,,,,,,,,,
Nottinghamshire County Council,1111/1001,Children and Young People,CYP,Transport Related,CCA,07/04/2015,01-10400,1997.16,Sprays Transport Ltd,,,,,,,,,,
Nottinghamshire County Council,1111/1001,Children and Young People,CYP,Transport Related,CCA,07/04/2015,01-10401,2429.46,Sprays Transport Ltd,,,,,,,,,,
Nottinghamshire County Council,1111/1001,Children and Young People,CYP,Transport Related,CCA,07/04/2015,01-10402,2130.48,Sprays Transport Ltd,,,,,,,,,,
Nottinghamshire County Council,1111/1001,Children and Young People,CYP,Transport Related,CCA,07/04/2015,01-10403,3257.1,Sprays Transport Ltd,,,,,,,,,,
Nottinghamshire County Council,1111/1001,Children and Young People,CYP,Transport Related,CCA,07/04/2015,01-10404,1705.44,Sprays Transport Ltd,,,,,,,,,,
Nottinghamshire County Council,1111/1001,Children and Young People,CYP,Transport Related,CCA,07/04/2015,01-10405,2199.12,Sprays Transport Ltd,,,,,,,,,,
Nottinghamshire County Council,1111/1001,Children and Young People,CYP,Transport Related,CCA,07/04/2015,01-10406,2530,Sprays Transport Ltd,,,,,,,,,,
Nottinghamshire County Council,1111/1001,Children and Young People,CYP,Transport Related,CCA,07/04/2015,01-10410,2970,F & J Marriott T/A Unity Coaches,,,,,,,,,,
Nottinghamshire County Council,1111/1001,Children and Young People,CYP,Transport Related,CCA,07/04/2015,01-10411,2970,F & J Marriott T/A Unity Coaches,,,,,,,,,,
Nottinghamshire County Council,1111/1001,Children and Young People,CYP,Transport Related,CCA,07/04/2015,01-10412,3059.76,F & J Marriott T/A Unity Coaches,,,,,,,,,,
Nottinghamshire County Council,1111/1001,Children and Young People,CYP,Transport Related,CCA,07/04/2015,01-10436,3346.2,Marshalls Of Sutton On Trent Ltd,,,,,,,,,,
Nottinghamshire County Council,1111/1001,Children and Young People,CYP,Transport Related,CCA,07/04/2015,01-10447,672,Town Cars (UK) Ltd,,,,,,,,,,
Nottinghamshire County Council,1111/1001,Children and Young People,CYP,Transport Related,CCA,07/04/2015,01-10448,673.2,Town Cars (UK) Ltd,,,,,,,,,,
Nottinghamshire County Council,1111/1001,Children and Young People,CYP,Transport Related,CCA,07/04/2015,01-10450,1464,Town Cars (UK) Ltd,,,,,,,,,,
Nottinghamshire County Council,1111/1001,Children and Young People,CYP,Transport Related,CCA,07/04/2015,01-10457,1936,Eurocab 2000 Ltd,,,,,,,,,,
Nottinghamshire County Council,1111/1001,Children and Young People,CYP,Transport Related,CCA,07/04/2015,01-10459,1400,Eurocab 2000 Ltd,,,,,,,,,,
Nottinghamshire County Council,1111/1001,Children and Young People,CYP,Transport Related,CCA,07/04/2015,01-10460,2384,Eurocab 2000 Ltd,,,,,,,,,,
Nottinghamshire County Council,1111/1001,Children and Young People,CYP,Transport Related,CCA,07/04/2015,01-10461,2900,Eurocab 2000 Ltd,,,,,,,,,,
Nottinghamshire County Council,1111/1001,Children and Young People,CYP,Transport Related,CCA,09/04/2015,01-10614,600,Ace Of Mansfield Ltd,,,,,,,,,,
Nottinghamshire County Council,1111/1001,Children and Young People,CYP,Transport Related,CCA,09/04/2015,01-10616,775,Ace Of Mansfield Ltd,,,,,,,,,,
Nottinghamshire County Council,1111/1001,Children and Young People,CYP,Transport Related,CCA,09/04/2015,01-10617,2552,Arrow Specialised Transport Ltd,,,,,,,,,,
Nottinghamshire County Council,1111/1001,Children and Young People,CYP,Transport Related,CCA,09/04/2015,01-10618,1908.06,Ja Travel Ltd,,,,,,,,,,
Nottinghamshire County Council,1111/1001,Children and Young People,CYP,Transport Related,CCA,09/04/2015,01-10619,3574.78,Ja Travel Ltd,,,,,,,,,,
Nottinghamshire County Council,1111/1001,Children and Young People,CYP,Transport Related,CCA,09/04/2015,01-10620,2690.38,Ja Travel Ltd,,,,,,,,,,
Nottinghamshire County Council,1111/1001,Children and Young People,CYP,Transport Related,CCA,13/04/2015,01-10732,568,Alert Cars Ltd,,,,,,,,,,
Nottinghamshire County Council,1111/1001,Children and Young People,CYP,Transport Related,CCA,13/04/2015,01-10733,568,Alert Cars Ltd,,,,,,,,,,
Nottinghamshire County Council,1111/1001,Children and Young People,CYP,Transport Related,CCA,13/04/2015,01-10736,3850,Sharpes Of Nottingham,,,,,,,,,,
Nottinghamshire County Council,1111/1001,Children and Young People,CYP,Transport Related,CCA,13/04/2015,01-10741,1261.24,Southside Cars,,,,,,,,,,
Nottinghamshire County Council,1111/1001,Children and Young People,CYP,Transport Related,CCA,13/04/2015,01-10742,2272.9,Southside Cars,,,,,,,,,,
Nottinghamshire County Council,1111/1001,Children and Young People,CYP,Transport Related,CCA,13/04/2015,01-10744,1949.86,F4Control Ltd (t/a First4care),,,,,,,,,,
Nottinghamshire County Council,1111/1001,Children and Young People,CYP,Transport Related,CCA,13/04/2015,01-10745,2421.1,F4Control Ltd (t/a First4care),,,,,,,,,,
Nottinghamshire County Council,1111/1001,Children and Young People,CYP,Transport Related,CCA,13/04/2015,01-10746,2072.84,F4Control Ltd (t/a First4care),,,,,,,,,,
Nottinghamshire County Council,1111/1001,Children and Young People,CYP,Transport Related,CCA,13/04/2015,01-10747,2337.5,F4Control Ltd (t/a First4care),,,,,,,,,,
Nottinghamshire County Council,1111/1001,Children and Young People,CYP,Transport Related,CCA,13/04/2015,01-10748,2154.46,F4Control Ltd (t/a First4care),,,,,,,,,,
Nottinghamshire County Council,1111/1001,Children and Young People,CYP,Transport Related,CCA,13/04/2015,01-10749,2634.06,F4Control Ltd (t/a First4care),,,,,,,,,,
Nottinghamshire County Council,1111/1001,Children and Young People,CYP,Transport Related,CCA,13/04/2015,01-10750,2187.24,F4Control Ltd (t/a First4care),,,,,,,,,,
Nottinghamshire County Council,1111/1001,Children and Young People,CYP,Transport Related,CCA,13/04/2015,01-10751,2361.04,F4Control Ltd (t/a First4care),,,,,,,,,,
Nottinghamshire County Council,1111/1001,Children and Young People,CYP,Transport Related,CCA,13/04/2015,01-10752,2578.62,F4Control Ltd (t/a First4care),,,,,,,,,,
Nottinghamshire County Council,1111/1001,Children and Young People,CYP,Transport Related,CCA,13/04/2015,01-10753,3172.4,F4Control Ltd (t/a First4care),,,,,,,,,,
Nottinghamshire County Council,1111/1001,Children and Young People,CYP,Transport Related,CCA,13/04/2015,01-10754,3126.2,F4Control Ltd (t/a First4care),,,,,,,,,,
Nottinghamshire County Council,1111/1001,Children and Young People,CYP,Transport Related,CCA,13/04/2015,01-10755,3943.5,F4Control Ltd (t/a First4care),,,,,,,,,,
Nottinghamshire County Council,1111/1001,Children and Young People,CYP,Transport Related,CCA,13/04/2015,01-10756,2529.56,F4Control Ltd (t/a First4care),,,,,,,,,,
Nottinghamshire County Council,1111/1001,Children and Young People,CYP,Transport Related,CCA,13/04/2015,01-10757,2631.2,F4Control Ltd (t/a First4care),,,,,,,,,,
Nottinghamshire County Council,1111/1001,Children and Young People,CYP,Transport Related,CCA,13/04/2015,01-10759,2767.6,F4Control Ltd (t/a First4care),,,,,,,,,,
Nottinghamshire County Council,1111/1001,Children and Young People,CYP,Transport Related,CCA,13/04/2015,01-10760,2952.4,F4Control Ltd (t/a First4care),,,,,,,,,,
Nottinghamshire County Council,1111/1001,Children and Young People,CYP,Transport Related,CCA,13/04/2015,01-10761,2001.52,F4Control Ltd (t/a First4care),,,,,,,,,,
Nottinghamshire County Council,1111/1001,Children and Young People,CYP,Transport Related,CCA,13/04/2015,01-10765,3480.8,D G Private Hire Ltd,,,,,,,,,,
Nottinghamshire County Council,1111/1001,Children and Young People,CYP,Transport Related,CCA,13/04/2015,01-10766,2315.46,Erewash Community Transport,,,,,,,,,,
Nottinghamshire County Council,1111/1001,Children and Young People,CYP,Transport Related,CCA,13/04/2015,01-10767,3668.72,Erewash Community Transport,,,,,,,,,,
Nottinghamshire County Council,1111/1001,Children and Young People,CYP,Transport Related,CCA,13/04/2015,01-10768,1002.1,Erewash Community Transport,,,,,,,,,,
Nottinghamshire County Council,1111/1001,Children and Young People,CYP,Transport Related,CCA,13/04/2015,01-10770,2201.32,Erewash Community Transport,,,,,,,,,,
Nottinghamshire County Council,1111/1001,Children and Young People,CYP,Transport Related,CCA,13/04/2015,01-10771,2553.76,Erewash Community Transport,,,,,,,,,,
Nottinghamshire County Council,1111/1001,Children and Young People,CYP,Transport Related,CCA,13/04/2015,01-10772,2173.16,Headland Taxi Services,,,,,,,,,,
Nottinghamshire County Council,1111/1001,Children and Young People,CYP,Transport Related,CCA,13/04/2015,01-10773,1565,Headland Taxi Services,,,,,,,,,,
Nottinghamshire County Council,1111/1001,Children and Young People,CYP,Transport Related,CCA,13/04/2015,01-10774,1168,Ng11 Cars,,,,,,,,,,
Nottinghamshire County Council,1111/1001,Children and Young People,CYP,Transport Related,CCA,13/04/2015,01-10775,2575.1,Sprays Transport Ltd,,,,,,,,,,
Nottinghamshire County Council,1111/1001,Children and Young People,CYP,Transport Related,CCA,13/04/2015,01-10777,3740,Vallances Coaches,,,,,,,,,,
Nottinghamshire County Council,1111/1001,Children and Young People,CYP,Transport Related,CCA,13/04/2015,01-10779,2261.16,Vallances Coaches,,,,,,,,,,
Nottinghamshire County Council,1111/1001,Children and Young People,CYP,Transport Related,CCA,13/04/2015,01-10780,2679.4,Vallances Coaches,,,,,,,,,,
Nottinghamshire County Council,1111/1001,Children and Young People,CYP,Transport Related,CCA,13/04/2015,01-10781,3329.7,Goldstar Travel Nottm Ltd,,,,,,,,,,
Nottinghamshire County Council,1111/1001,Children and Young People,CYP,Transport Related,CCA,13/04/2015,01-10822,6659.2,Stagecoach Services Ltd,,,,,,,,,,
Nottinghamshire County Council,1111/1001,Children and Young People,CYP,Transport Related,CCA,13/04/2015,01-10825,2733.8,Travel Wright Ltd,,,,,,,,,,
Nottinghamshire County Council,1111/1001,Children and Young People,CYP,Transport Related,CCA,13/04/2015,01-10836,2420,P & P Taxis,,,,,,,,,,
Nottinghamshire County Council,1111/1001,Children and Young People,CYP,Transport Related,CCA,13/04/2015,01-10837,2584,K Matthews Travel,,,,,,,,,,
Nottinghamshire County Council,1111/1001,Children and Young People,CYP,Transport Related,CCA,13/04/2015,01-10840,1586.42,Ace Cars,,,,,,,,,,
Nottinghamshire County Council,1111/1001,Children and Young People,CYP,Transport Related,CCA,13/04/2015,01-10842,2000,Trevor Bailey t/a Trevor Bailey Tra,,,,,,,,,,
Nottinghamshire County Council,1111/1001,Children and Young People,CYP,Transport Related,CCA,14/04/2015,01-11020,13585,Sharpes Of Nottingham,,,,,,,,,,
Nottinghamshire County Council,1111/1001,Children and Young People,CYP,Transport Related,CCA,14/04/2015,01-11021,1734,Central Cars Nottm Ltd,,,,,,,,,,
Nottinghamshire County Council,1111/1001,Children and Young People,CYP,Transport Related,CCA,14/04/2015,01-11022,1890,Central Cars Nottm Ltd,,,,,,,,,,
Nottinghamshire County Council,1111/1001,Children and Young People,CYP,Transport Related,CCA,14/04/2015,01-11024,1960,Central Cars Nottm Ltd,,,,,,,,,,
Nottinghamshire County Council,1111/1001,Children and Young People,CYP,Transport Related,CCA,14/04/2015,01-11025,2347.18,Central Cars Nottm Ltd,,,,,,,,,,
Nottinghamshire County Council,1111/1001,Children and Young People,CYP,Transport Related,CCA,14/04/2015,01-11026,1907.4,Central Cars Nottm Ltd,,,,,,,,,,
Nottinghamshire County Council,1111/1001,Children and Young People,CYP,Transport Related,CCA,14/04/2015,01-11027,2000,Central Cars Nottm Ltd,,,,,,,,,,
Nottinghamshire County Council,1111/1001,Children and Young People,CYP,Transport Related,CCA,14/04/2015,01-11028,500,Central Cars Nottm Ltd,,,,,,,,,,
Nottinghamshire County Council,1111/1001,Children and Young People,CYP,Transport Related,CCA,14/04/2015,01-11029,1980,Central Cars Nottm Ltd,,,,,,,,,,
Nottinghamshire County Council,1111/1001,Children and Young People,CYP,Transport Related,CCA,14/04/2015,01-11030,2396.68,Central Cars Nottm Ltd,,,,,,,,,,
Nottinghamshire County Council,1111/1001,Children and Young People,CYP,Transport Related,CCA,14/04/2015,01-11031,2475.22,Central Cars Nottm Ltd,,,,,,,,,,
Nottinghamshire County Council,1111/1001,Children and Young People,CYP,Transport Related,CCA,14/04/2015,01-11032,1520,Central Cars Nottm Ltd,,,,,,,,,,
Nottinghamshire County Council,1111/1001,Children and Young People,CYP,Transport Related,CCA,14/04/2015,01-11043,2760,Redfern Travel,,,,,,,,,,
Nottinghamshire County Council,1111/1001,Children and Young People,CYP,Transport Related,CCA,14/04/2015,01-11044,5660,Redfern Travel,,,,,,,,,,
Nottinghamshire County Council,1111/1001,Children and Young People,CYP,Transport Related,CCA,14/04/2015,01-11046,650,200 Cars Ltd,,,,,,,,,,
Nottinghamshire County Council,1111/1001,Children and Young People,CYP,Transport Related,CCA,14/04/2015,01-11047,576,200 Cars Ltd,,,,,,,,,,
Nottinghamshire County Council,1111/1001,Children and Young People,CYP,Transport Related,CCA,14/04/2015,01-11052,493.92,Acorn Contracts,,,,,,,,,,
Nottinghamshire County Council,1111/1001,Children and Young People,CYP,Transport Related,CCA,14/04/2015,01-11054,2780,Arrow Specialised Transport Ltd,,,,,,,,,,
Nottinghamshire County Council,1111/1001,Children and Young People,CYP,Transport Related,CCA,14/04/2015,01-11055,2017.18,Arrow Specialised Transport Ltd,,,,,,,,,,
Nottinghamshire County Council,1111/1001,Children and Young People,CYP,Transport Related,CCA,14/04/2015,01-11056,2447.72,Arrow Specialised Transport Ltd,,,,,,,,,,
Nottinghamshire County Council,1111/1001,Children and Young People,CYP,Transport Related,CCA,14/04/2015,01-11057,2860,Shelleys Taxis Ltd,,,,,,,,,,
Nottinghamshire County Council,1111/1001,Children and Young People,CYP,Transport Related,CCA,14/04/2015,01-11058,1210,Shelleys Taxis Ltd,,,,,,,,,,
Nottinghamshire County Council,1111/1001,Children and Young People,CYP,Transport Related,CCA,14/04/2015,01-11059,1200,Shelleys Taxis Ltd,,,,,,,,,,
Nottinghamshire County Council,1111/1001,Children and Young People,CYP,Transport Related,CCA,14/04/2015,01-11060,1320,Shelleys Taxis Ltd,,,,,,,,,,
Nottinghamshire County Council,1111/1001,Children and Young People,CYP,Transport Related,CCA,14/04/2015,01-11061,1200,Shelleys Taxis Ltd,,,,,,,,,,
Nottinghamshire County Council,1111/1001,Children and Young People,CYP,Transport Related,CCA,14/04/2015,01-11062,816,Shelleys Taxis Ltd,,,,,,,,,,
Nottinghamshire County Council,1111/1001,Children and Young People,CYP,Transport Related,CCA,14/04/2015,01-11063,1540,Shelleys Taxis Ltd,,,,,,,,,,
Nottinghamshire County Council,1111/1001,Children and Young People,CYP,Transport Related,CCA,14/04/2015,01-11064,1560,Shelleys Taxis Ltd,,,,,,,,,,
Nottinghamshire County Council,1111/1001,Children and Young People,CYP,Transport Related,CCA,14/04/2015,01-11065,2377.2,123 Taxis,,,,,,,,,,
Nottinghamshire County Council,1111/1001,Children and Young People,CYP,Transport Related,CCA,14/04/2015,01-11071,1260,Abacus Cars,,,,,,,,,,
Nottinghamshire County Council,1111/1001,Children and Young People,CYP,Transport Related,CCA,14/04/2015,01-11072,2761,Abacus Cars,,,,,,,,,,
Nottinghamshire County Council,1111/1001,Children and Young People,CYP,Transport Related,CCA,14/04/2015,01-11074,2376,Abacus Cars,,,,,,,,,,
Nottinghamshire County Council,1111/1001,Children and Young People,CYP,Transport Related,CCA,14/04/2015,01-11076,960,Abacus Cars,,,,,,,,,,
Nottinghamshire County Council,1111/1001,Children and Young People,CYP,Transport Related,CCA,14/04/2015,01-11077,1540,Abacus Cars,,,,,,,,,,
Nottinghamshire County Council,1111/1001,Children and Young People,CYP,Transport Related,CCA,14/04/2015,01-11078,3927,Abacus Cars,,,,,,,,,,
Nottinghamshire County Council,1111/1001,Children and Young People,CYP,Transport Related,CCA,14/04/2015,01-11079,1795.2,Abacus Cars,,,,,,,,,,
Nottinghamshire County Council,1111/1001,Children and Young People,CYP,Transport Related,CCA,14/04/2015,01-11080,1760,Abacus Cars,,,,,,,,,,
Nottinghamshire County Council,1111/1001,Children and Young People,CYP,Transport Related,CCA,14/04/2015,01-11082,1436.16,Abacus Cars,,,,,,,,,,
Nottinghamshire County Council,1111/1001,Children and Young People,CYP,Transport Related,CCA,14/04/2015,01-11086,1560,AOT Coaches,,,,,,,,,,
Nottinghamshire County Council,1111/1001,Children and Young People,CYP,Transport Related,CCA,14/04/2015,01-11087,600,AOT Coaches,,,,,,,,,,
Nottinghamshire County Council,1111/1001,Children and Young People,CYP,Transport Related,CCA,14/04/2015,01-11088,2400,AOT Coaches,,,,,,,,,,
Nottinghamshire County Council,1111/1001,Children and Young People,CYP,Transport Related,CCA,14/04/2015,01-11089,3090,AOT Coaches,,,,,,,,,,
Nottinghamshire County Council,1111/1001,Children and Young People,CYP,Transport Related,CCA,14/04/2015,01-11093,1650,Jb Tours Watnall Ltd,,,,,,,,,,
Nottinghamshire County Council,1111/1001,Children and Young People,CYP,Transport Related,CCA,14/04/2015,01-11094,1475,Jb Tours Watnall Ltd,,,,,,,,,,
Nottinghamshire County Council,1111/1001,Children and Young People,CYP,Transport Related,CCA,14/04/2015,01-11095,1830.08,Nunns Cars,,,,,,,,,,
Nottinghamshire County Council,1111/1001,Children and Young People,CYP,Transport Related,CCA,14/04/2015,01-11096,1732.5,Silverdale Tours Nottm Ltd,,,,,,,,,,
Nottinghamshire County Council,1111/1001,Children and Young People,CYP,Transport Related,CCA,14/04/2015,01-11097,2574,Silverdale Tours Nottm Ltd,,,,,,,,,,
Nottinghamshire County Council,1111/1001,Children and Young People,CYP,Transport Related,CCA,14/04/2015,01-11101,986,Travel Wright Ltd,,,,,,,,,,
Nottinghamshire County Council,1111/1001,Children and Young People,CYP,Transport Related,CCA,14/04/2015,01-11103,3465,Freeway Coaches Ltd,,,,,,,,,,
Nottinghamshire County Council,1111/1001,Children and Young People,CYP,Transport Related,CCA,14/04/2015,01-11104,920,Paul S Winson Coaches,,,,,,,,,,
Nottinghamshire County Council,1111/1001,Children and Young People,CYP,Transport Related,CCA,14/04/2015,01-11105,1035,Diamond Cars,,,,,,,,,,
Nottinghamshire County Council,1111/1001,Children and Young People,CYP,Transport Related,CCA,14/04/2015,01-11106,1005.12,Diamond Cars,,,,,,,,,,
Nottinghamshire County Council,1111/1001,Children and Young People,CYP,Transport Related,CCA,14/04/2015,01-11107,593.43,Diamond Cars,,,,,,,,,,
Nottinghamshire County Council,1111/1001,Children and Young People,CYP,Transport Related,CCA,16/04/2015,01-11561,2145,Sharpes Of Nottingham,,,,,,,,,,
Nottinghamshire County Council,1111/1001,Children and Young People,CYP,Transport Related,CCA,16/04/2015,01-11562,660,Cabline Uk Ltd,,,,,,,,,,
Nottinghamshire County Council,1111/1001,Children and Young People,CYP,Transport Related,CCA,16/04/2015,01-11563,1151.4,Cabline Uk Ltd,,,,,,,,,,
Nottinghamshire County Council,1111/1001,Children and Young People,CYP,Transport Related,CCA,16/04/2015,01-11564,1111,Cabline Uk Ltd,,,,,,,,,,
Nottinghamshire County Council,1111/1001,Children and Young People,CYP,Transport Related,CCA,16/04/2015,01-11565,2040,Central Cars Nottm Ltd,,,,,,,,,,
Nottinghamshire County Council,1111/1001,Children and Young People,CYP,Transport Related,CCA,16/04/2015,01-11566,1440,Central Cars Nottm Ltd,,,,,,,,,,
Nottinghamshire County Council,1111/1001,Children and Young People,CYP,Transport Related,CCA,16/04/2015,01-11567,1929.4,F4Control Ltd (t/a First4care),,,,,,,,,,
Nottinghamshire County Council,1111/1001,Children and Young People,CYP,Transport Related,CCA,16/04/2015,01-11568,3360.72,F4Control Ltd (t/a First4care),,,,,,,,,,
Nottinghamshire County Council,1111/1001,Children and Young People,CYP,Transport Related,CCA,16/04/2015,01-11569,1979.21,F4Control Ltd (t/a First4care),,,,,,,,,,
Nottinghamshire County Council,1111/1001,Children and Young People,CYP,Transport Related,CCA,16/04/2015,01-11571,2750,Johnson Bros Tours Ltd,,,,,,,,,,
Nottinghamshire County Council,1111/1001,Children and Young People,CYP,Transport Related,CCA,16/04/2015,01-11572,1756.92,Arrow Specialised Transport Ltd,,,,,,,,,,
Nottinghamshire County Council,1111/1001,Children and Young People,CYP,Transport Related,CCA,16/04/2015,01-11576,750,Sprays Transport Ltd,,,,,,,,,,
Nottinghamshire County Council,1111/1001,Children and Young People,CYP,Transport Related,CCA,16/04/2015,01-11578,1586.42,Goldstar Travel Nottm Ltd,,,,,,,,,,
Nottinghamshire County Council,1111/1001,Children and Young People,CYP,Transport Related,CCA,16/04/2015,01-11579,2901.8,Goldstar Travel Nottm Ltd,,,,,,,,,,
Nottinghamshire County Council,1111/1001,Children and Young People,CYP,Transport Related,CCA,16/04/2015,01-11580,1835,D G Private Hire Ltd,,,,,,,,,,
Nottinghamshire County Council,1111/1001,Children and Young People,CYP,Transport Related,CCA,16/04/2015,01-11581,1153.8,D G Private Hire Ltd,,,,,,,,,,
Nottinghamshire County Council,1111/1001,Children and Young People,CYP,Transport Related,CCA,16/04/2015,01-11583,350,D G Private Hire Ltd,,,,,,,,,,
Nottinghamshire County Council,1111/1001,Children and Young People,CYP,Transport Related,CCA,16/04/2015,01-11589,1540,Abacus Cars,,,,,,,,,,
Nottinghamshire County Council,1111/1001,Children and Young People,CYP,Transport Related,CCA,16/04/2015,01-11608,3840,Tiger European Uk Ltd,,,,,,,,,,
Nottinghamshire County Council,1111/1001,Children and Young People,CYP,Transport Related,CCA,16/04/2015,01-11617,970,Town Cars (UK) Ltd,,,,,,,,,,
Nottinghamshire County Council,1111/1001,Children and Young People,CYP,Transport Related,CCA,17/04/2015,01-11682,765,Central Cars Nottm Ltd,,,,,,,,,,
Nottinghamshire County Council,1111/1001,Children and Young People,CYP,Transport Related,CCA,17/04/2015,01-11683,2464.38,F4Control Ltd (t/a First4care),,,,,,,,,,
Nottinghamshire County Council,1111/1001,Children and Young People,CYP,Transport Related,CCA,17/04/2015,01-11685,2161.28,Johnson Bros Tours Ltd,,,,,,,,,,
Nottinghamshire County Council,1111/1001,Children and Young People,CYP,Transport Related,CCA,17/04/2015,01-11689,3949,Butler Brothers Ltd,,,,,,,,,,
Nottinghamshire County Council,1111/1001,Children and Young People,CYP,Transport Related,CCA,17/04/2015,01-11701,880,A2B Licensed Taxis,,,,,,,,,,
Nottinghamshire County Council,1111/1001,Children and Young People,CYP,Transport Related,CCA,17/04/2015,01-11702,1534.5,A2B Licensed Taxis,,,,,,,,,,
Nottinghamshire County Council,1111/1001,Children and Young People,CYP,Transport Related,CCA,20/04/2015,01-11784,1749,Tiger European Uk Ltd,,,,,,,,,,
Nottinghamshire County Council,1111/1001,Children and Young People,CYP,Transport Related,CCA,21/04/2015,01-15210,1469.58,Arrow Specialised Transport Ltd,,,,,,,,,,
Nottinghamshire County Council,1111/1001,Children and Young People,CYP,Transport Related,CCA,21/04/2015,01-15219,875,Shelleys Taxis Ltd,,,,,,,,,,
Nottinghamshire County Council,1111/1001,Children and Young People,CYP,Transport Related,CCA,21/04/2015,01-15221,2273.33,BN Gibson Ltd,,,,,,,,,,
Nottinghamshire County Council,1111/1001,Children and Young People,CYP,Transport Related,CCA,21/04/2015,01-15222,1346.5,BN Gibson Ltd,,,,,,,,,,
Nottinghamshire County Council,1111/1001,Children and Young People,CYP,Transport Related,CCA,21/04/2015,01-15223,3227.9,BN Gibson Ltd,,,,,,,,,,
Nottinghamshire County Council,1111/1001,Children and Young People,CYP,Transport Related,CCA,21/04/2015,01-15225,4343.68,BN Gibson Ltd,,,,,,,,,,
Nottinghamshire County Council,1111/1001,Children and Young People,CYP,Transport Related,CCA,21/04/2015,01-15226,4094.42,BN Gibson Ltd,,,,,,,,,,
Nottinghamshire County Council,1111/1001,Children and Young People,CYP,Transport Related,CCA,21/04/2015,01-15227,3761.34,BN Gibson Ltd,,,,,,,,,,
Nottinghamshire County Council,1111/1001,Children and Young People,CYP,Transport Related,CCA,21/04/2015,01-15228,3671.36,BN Gibson Ltd,,,,,,,,,,
Nottinghamshire County Council,1111/1001,Children and Young People,CYP,Transport Related,CCA,21/04/2015,01-15229,4688.42,BN Gibson Ltd,,,,,,,,,,
Nottinghamshire County Council,1111/1001,Children and Young People,CYP,Transport Related,CCA,21/04/2015,01-15230,5045.7,BN Gibson Ltd,,,,,,,,,,
Nottinghamshire County Council,1111/1001,Children and Young People,CYP,Transport Related,CCA,21/04/2015,01-15231,4234.56,BN Gibson Ltd,,,,,,,,,,
Nottinghamshire County Council,1111/1001,Children and Young People,CYP,Transport Related,CCA,21/04/2015,01-15232,4188.8,BN Gibson Ltd,,,,,,,,,,
Nottinghamshire County Council,1111/1001,Children and Young People,CYP,Transport Related,CCA,21/04/2015,01-15233,3954.94,BN Gibson Ltd,,,,,,,,,,
Nottinghamshire County Council,1111/1001,Children and Young People,CYP,Transport Related,CCA,21/04/2015,01-15234,3416.82,BN Gibson Ltd,,,,,,,,,,
Nottinghamshire County Council,1111/1001,Children and Young People,CYP,Transport Related,CCA,21/04/2015,01-15237,543,D G Private Hire Ltd,,,,,,,,,,
Nottinghamshire County Council,1111/1001,Children and Young People,CYP,Transport Related,CCA,21/04/2015,01-15238,556,D G Private Hire Ltd,,,,,,,,,,
Nottinghamshire County Council,1111/1001,Children and Young People,CYP,Transport Related,CCA,21/04/2015,01-15239,640,D G Private Hire Ltd,,,,,,,,,,
Nottinghamshire County Council,1111/1001,Children and Young People,CYP,Transport Related,CCA,21/04/2015,01-15240,720,D G Private Hire Ltd,,,,,,,,,,
Nottinghamshire County Council,1111/1001,Children and Young People,CYP,Transport Related,CCA,21/04/2015,01-15241,1665,D G Private Hire Ltd,,,,,,,,,,
Nottinghamshire County Council,1111/1001,Children and Young People,CYP,Transport Related,CCA,22/04/2015,01-15304,1660.95,Southside Cars,,,,,,,,,,
Nottinghamshire County Council,1111/1001,Children and Young People,CYP,Transport Related,CCA,22/04/2015,01-15305,1100,Southside Cars,,,,,,,,,,
Nottinghamshire County Council,1111/1001,Children and Young People,CYP,Transport Related,CCA,22/04/2015,01-15306,3005.4,Marriotts Travel,,,,,,,,,,
Nottinghamshire County Council,1111/1001,Children and Young People,CYP,Transport Related,CCA,22/04/2015,01-15307,4196.06,BN Gibson Ltd,,,,,,,,,,
Nottinghamshire County Council,1111/1001,Children and Young People,CYP,Transport Related,CCA,22/04/2015,01-15308,3186.48,BN Gibson Ltd,,,,,,,,,,
Nottinghamshire County Council,1111/1001,Children and Young People,CYP,Transport Related,CCA,22/04/2015,01-15310,2696.98,BN Gibson Ltd,,,,,,,,,,
Nottinghamshire County Council,1111/1001,Children and Young People,CYP,Transport Related,CCA,22/04/2015,01-15311,3891.58,BN Gibson Ltd,,,,,,,,,,
Nottinghamshire County Council,1111/1001,Children and Young People,CYP,Transport Related,CCA,22/04/2015,01-15312,3444.32,BN Gibson Ltd,,,,,,,,,,
Nottinghamshire County Council,1111/1001,Children and Young People,CYP,Transport Related,CCA,22/04/2015,01-15313,3070.32,BN Gibson Ltd,,,,,,,,,,
Nottinghamshire County Council,1111/1001,Children and Young People,CYP,Transport Related,CCA,22/04/2015,01-15317,2143.3,BN Gibson Ltd,,,,,,,,,,
Nottinghamshire County Council,1111/1001,Children and Young People,CYP,Transport Related,CCA,22/04/2015,01-15318,2574.35,BN Gibson Ltd,,,,,,,,,,
Nottinghamshire County Council,1111/1001,Children and Young People,CYP,Transport Related,CCA,24/04/2015,01-15561,648,Alert Cars Ltd,,,,,,,,,,
Nottinghamshire County Council,1111/1001,Children and Young People,CYP,Transport Related,CCA,24/04/2015,01-15565,800,SJW (Muskham) Ltd T/A Z Cars,,,,,,,,,,
Nottinghamshire County Council,1111/1001,Children and Young People,CYP,Transport Related,CCA,28/04/2015,01-16030,506,Alert Cars Ltd,,,,,,,,,,
Nottinghamshire County Council,1111/1001,Children and Young People,CYP,Transport Related,CCA,28/04/2015,01-16031,1272,SJW (Muskham) Ltd T/A Z Cars,,,,,,,,,,
Nottinghamshire County Council,1111/1001,Children and Young People,CYP,Transport Related,CCA,28/04/2015,01-16032,760,Mct Uk Ltd,,,,,,,,,,
Nottinghamshire County Council,1111/1001,Children and Young People,CYP,Transport Related,CCA,28/04/2015,01-16035,720,C W Moxon Ltd,,,,,,,,,,
Nottinghamshire County Council,1111/1001,Children and Young People,CYP,Transport Related,CCA,28/04/2015,01-16036,3278,C W Moxon Ltd,,,,,,,,,,
Nottinghamshire County Council,1111/1001,Children and Young People,CYP,Transport Related,CCA,28/04/2015,01-16038,1753.38,I Can Charity,,,,,,,,,,
Nottinghamshire County Council,1111/1001,Children and Young People,CYP,Transport Related,CCA,28/04/2015,01-16039,1290,I Can Charity,,,,,,,,,,
Nottinghamshire County Council,1111/1001,Children and Young People,CYP,Transport Related,CCA,28/04/2015,01-16040,941.63,I Can Charity,,,,,,,,,,
Nottinghamshire County Council,1111/1001,Children and Young People,CYP,Transport Related,CCA,28/04/2015,01-16041,1140,I Can Charity,,,,,,,,,,
Nottinghamshire County Council,1111/1001,Children and Young People,CYP,Transport Related,CDA,07/04/2015,01-10180,750,Fozcabs Newark Taxis,,,,,,,,,,
Nottinghamshire County Council,1111/1001,Children and Young People,CYP,Transport Related,CDA,07/04/2015,01-10186,1200,Galaxy Cabs,,,,,,,,,,
Nottinghamshire County Council,1111/1001,Children and Young People,CYP,Transport Related,CDA,07/04/2015,01-10215,2730,Nottingham Minibuses & Coaches,,,,,,,,,,
Nottinghamshire County Council,1111/1001,Children and Young People,CYP,Transport Related,CDA,07/04/2015,01-10216,2940,Nottingham Minibuses & Coaches,,,,,,,,,,
Nottinghamshire County Council,1111/1001,Children and Young People,CYP,Transport Related,CDA,07/04/2015,01-10218,2750,Nottingham Minibuses & Coaches,,,,,,,,,,
Nottinghamshire County Council,1111/1001,Children and Young People,CYP,Transport Related,CDA,07/04/2015,01-10219,1995,Nottingham Minibuses & Coaches,,,,,,,,,,
Nottinghamshire County Council,1111/1001,Children and Young People,CYP,Transport Related,CDA,07/04/2015,01-10220,2860,Nottingham Minibuses & Coaches,,,,,,,,,,
Nottinghamshire County Council,1111/1001,Children and Young People,CYP,Transport Related,CDA,07/04/2015,01-10221,3080,Nottingham Minibuses & Coaches,,,,,,,,,,
Nottinghamshire County Council,1111/1001,Children and Young People,CYP,Transport Related,CDA,07/04/2015,01-10223,4114,Nottingham Minibuses & Coaches,,,,,,,,,,
Nottinghamshire County Council,1111/1001,Children and Young People,CYP,Transport Related,CDA,07/04/2015,01-10224,8470,Nottingham Minibuses & Coaches,,,,,,,,,,
Nottinghamshire County Council,1111/1001,Children and Young People,CYP,Transport Related,CDA,07/04/2015,01-10229,998.58,P & P Taxis,,,,,,,,,,
Nottinghamshire County Council,1111/1001,Children and Young People,CYP,Transport Related,CDA,07/04/2015,01-10359,1552.54,Arrow Specialised Transport Ltd,,,,,,,,,,
Nottinghamshire County Council,1111/1001,Children and Young People,CYP,Transport Related,CDA,07/04/2015,01-10364,1557.49,Arrow Specialised Transport Ltd,,,,,,,,,,
Nottinghamshire County Council,1111/1001,Children and Young People,CYP,Transport Related,CDA,07/04/2015,01-10367,821.59,Arrow Specialised Transport Ltd,,,,,,,,,,
Nottinghamshire County Council,1111/1001,Children and Young People,CYP,Transport Related,CDA,07/04/2015,01-10387,585.53,Sprays Transport Ltd,,,,,,,,,,
Nottinghamshire County Council,1111/1001,Children and Young People,CYP,Transport Related,CDA,07/04/2015,01-10418,3968.8,AOT Coaches,,,,,,,,,,
Nottinghamshire County Council,1111/1001,Children and Young People,CYP,Transport Related,CDA,07/04/2015,01-10419,2178,AOT Coaches,,,,,,,,,,
Nottinghamshire County Council,1111/1001,Children and Young People,CYP,Transport Related,CDA,07/04/2015,01-10458,1050,Eurocab 2000 Ltd,,,,,,,,,,
Nottinghamshire County Council,1111/1001,Children and Young People,CYP,Transport Related,CDA,14/04/2015,01-11022,210,Central Cars Nottm Ltd,,,,,,,,,,
Nottinghamshire County Council,1111/1001,Children and Young People,CYP,Transport Related,CDA,16/04/2015,01-11572,585.63,Arrow Specialised Transport Ltd,,,,,,,,,,
Nottinghamshire County Council,1111/1001,Children and Young People,CYP,Transport Related,CDA,16/04/2015,01-11576,750,Sprays Transport Ltd,,,,,,,,,,
Nottinghamshire County Council,1111/1001,Children and Young People,CYP,Transport Related,CDA,16/04/2015,01-11581,1153.8,D G Private Hire Ltd,,,,,,,,,,
Nottinghamshire County Council,1111/1001,Children and Young People,CYP,Transport Related,CDA,16/04/2015,01-11583,350,D G Private Hire Ltd,,,,,,,,,,
Nottinghamshire County Council,1111/1001,Children and Young People,CYP,Transport Related,CDA,16/04/2015,01-11588,3560,Abacus Cars,,,,,,,,,,
Nottinghamshire County Council,1111/1001,Children and Young People,CYP,Transport Related,CDA,20/04/2015,01-11783,6683.04,Paul S Winson Coaches,,,,,,,,,,
Nottinghamshire County Council,1111/1001,Children and Young People,CYP,Transport Related,CDA,21/04/2015,01-15223,1075.96,BN Gibson Ltd,,,,,,,,,,
Nottinghamshire County Council,1111/1001,Children and Young People,CYP,Transport Related,CDA,21/04/2015,01-15235,1600,D G Private Hire Ltd,,,,,,,,,,
Nottinghamshire County Council,1111/1001,Children and Young People,CYP,Transport Related,CDA,21/04/2015,01-15247,950,D G Private Hire Ltd,,,,,,,,,,
Nottinghamshire County Council,1111/1001,Children and Young People,CYP,Supplies & Services,DAA,10/04/2015,01-10559,91580.08,St Mary Magdalene C of E Primary,,,,,,,,,,
Nottinghamshire County Council,1111/1001,Children and Young People,CYP,Supplies & Services,DAA,10/04/2015,01-10631,58000,Ernehale Junior School Academy,,,,,,,,,,
Nottinghamshire County Council,1111/1001,Children and Young People,CYP,Supplies & Services,DAA,17/04/2015,01-11509,737.13,The Bramble Academy,,,,,,,,,,
Nottinghamshire County Council,1111/1001,Children and Young People,CYP,Supplies & Services,DAA,17/04/2015,01-11511,728.95,The Bramble Academy,,,,,,,,,,
Nottinghamshire County Council,1111/1001,Children and Young People,CYP,Supplies & Services,DAA,17/04/2015,01-11661,587.19,Chubb Electronic Security Ltd,,,,,,,,,,
Nottinghamshire County Council,1111/1001,Children and Young People,CYP,Supplies & Services,DBA,07/04/2015,01-10306,551.56,Brake Bros Ltd,,,,,,,,,,
Nottinghamshire County Council,1111/1001,Children and Young People,CYP,Supplies & Services,DBA,07/04/2015,01-10310,147.22,Brake Bros Ltd,,,,,,,,,,
Nottinghamshire County Council,1111/1001,Children and Young People,CYP,Supplies & Services,DBA,07/04/2015,01-10313,470.31,Brake Bros Ltd,,,,,,,,,,
Nottinghamshire County Council,1111/1001,Children and Young People,CYP,Supplies & Services,DBA,08/04/2015,01-10321,89.33,M Maloney Country Butchers & B Ltd,,,,,,,,,,
Nottinghamshire County Council,1111/1001,Children and Young People,CYP,Supplies & Services,DBA,08/04/2015,01-10325,84.57,M Maloney Country Butchers & B Ltd,,,,,,,,,,
Nottinghamshire County Council,1111/1001,Children and Young People,CYP,Supplies & Services,DBA,08/04/2015,01-10329,83.36,M Maloney Country Butchers & B Ltd,,,,,,,,,,
Nottinghamshire County Council,1111/1001,Children and Young People,CYP,Supplies & Services,DBA,08/04/2015,01-10578,321.26,Hallam Country Fresh Foods Ltd,,,,,,,,,,
Nottinghamshire County Council,1111/1001,Children and Young People,CYP,Supplies & Services,DBA,10/04/2015,01-10658,139.44,Brake Bros Ltd,,,,,,,,,,
Nottinghamshire County Council,1111/1001,Children and Young People,CYP,Supplies & Services,DBA,10/04/2015,01-10662,454.05,Brake Bros Ltd,,,,,,,,,,
Nottinghamshire County Council,1111/1001,Children and Young People,CYP,Supplies & Services,DBA,10/04/2015,01-10665,297.82,Brake Bros Ltd,,,,,,,,,,
Nottinghamshire County Council,1111/1001,Children and Young People,CYP,Supplies & Services,DBA,10/04/2015,01-10668,329.71,Brake Bros Ltd,,,,,,,,,,
Nottinghamshire County Council,1111/1001,Children and Young People,CYP,Supplies & Services,DBA,15/04/2015,01-11464,212.62,Hallam Country Fresh Foods Ltd,,,,,,,,,,
Nottinghamshire County Council,1111/1001,Children and Young People,CYP,Supplies & Services,DBA,15/04/2015,01-11468,541.98,Brake Bros Ltd,,,,,,,,,,
Nottinghamshire County Council,1111/1001,Children and Young People,CYP,Supplies & Services,DBA,20/04/2015,01-11756,200.48,Brake Bros Ltd,,,,,,,,,,
Nottinghamshire County Council,1111/1001,Children and Young People,CYP,Supplies & Services,DBA,20/04/2015,01-11758,63.16,Brake Bros Ltd,,,,,,,,,,
Nottinghamshire County Council,1111/1001,Children and Young People,CYP,Supplies & Services,DBA,21/04/2015,01-15275,248.25,Hallam Country Fresh Foods Ltd,,,,,,,,,,
Nottinghamshire County Council,1111/1001,Children and Young People,CYP,Supplies & Services,DBA,22/04/2015,01-15330,221.55,Brake Bros Ltd,,,,,,,,,,
Nottinghamshire County Council,1111/1001,Children and Young People,CYP,Supplies & Services,DBA,22/04/2015,01-15333,284.55,Brake Bros Ltd,,,,,,,,,,
Nottinghamshire County Council,1111/1001,Children and Young People,CYP,Supplies & Services,DBA,24/04/2015,01-15507,80.65,M Maloney Country Butchers & B Ltd,,,,,,,,,,
Nottinghamshire County Council,1111/1001,Children and Young People,CYP,Supplies & Services,DBA,24/04/2015,01-15511,71.41,M Maloney Country Butchers & B Ltd,,,,,,,,,,
Nottinghamshire County Council,1111/1001,Children and Young People,CYP,Supplies & Services,DBA,24/04/2015,01-15516,129.4,M Maloney Country Butchers & B Ltd,,,,,,,,,,
Nottinghamshire County Council,1111/1001,Children and Young People,CYP,Supplies & Services,DBA,24/04/2015,01-15526,105.17,M Maloney Country Butchers & B Ltd,,,,,,,,,,
Nottinghamshire County Council,1111/1001,Children and Young People,CYP,Supplies & Services,DBA,28/04/2015,01-16045,590.62,Brake Bros Ltd,,,,,,,,,,
Nottinghamshire County Council,1111/1001,Children and Young People,CYP,Supplies & Services,DBA,28/04/2015,01-16050,253.63,Hallam Country Fresh Foods Ltd,,,,,,,,,,
Nottinghamshire County Council,1111/1001,Children and Young People,CYP,Supplies & Services,DBA,28/04/2015,01-16054,159.98,Brake Bros Ltd,,,,,,,,,,
Nottinghamshire County Council,1111/1001,Children and Young People,CYP,Supplies & Services,DEA,07/04/2015,01-10317,570.76,Brake Bros Ltd,,,,,,,,,,
Nottinghamshire County Council,1111/1001,Children and Young People,CYP,Supplies & Services,DEA,17/04/2015,01-16145,679.25,JRH Support LLP,,,,,,,,,,
Nottinghamshire County Council,1111/1001,Children and Young People,CYP,Supplies & Services,DFA,29/04/2015,01-16059,582.95,Lantec Services Ltd,,,,,,,,,,
Nottinghamshire County Council,1111/1001,Children and Young People,CYP,Supplies & Services,DKA,09/04/2015,01-10626,1900,Carlton Le Willows Academy,,,,,,,,,,
Nottinghamshire County Council,1111/1001,Children and Young People,CYP,Supplies & Services,DKA,09/04/2015,01-10627,10130,Retford Oaks Academy,,,,,,,,,,
Nottinghamshire County Council,1111/1001,Children and Young People,CYP,Supplies & Services,DKA,09/04/2015,01-10629,7600,Arnold Hill Academy,,,,,,,,,,
Nottinghamshire County Council,1111/1001,Children and Young People,CYP,Supplies & Services,DKA,10/04/2015,01-10628,1900,Milford Academy,,,,,,,,,,
Nottinghamshire County Council,1111/1001,Children and Young People,CYP,Supplies & Services,DKA,13/04/2015,01-10850,3800,I Can Charity,,,,,,,,,,
Nottinghamshire County Council,1111/1001,Children and Young People,CYP,Supplies & Services,DKA,14/04/2015,01-11013,1440,Rainbow Horses Learning Centre,,,,,,,,,,
Nottinghamshire County Council,1111/1001,Children and Young People,CYP,Supplies & Services,DKA,14/04/2015,01-11045,672,200 Cars Ltd,,,,,,,,,,
Nottinghamshire County Council,1111/1001,Children and Young People,CYP,Supplies & Services,DKA,17/04/2015,01-11650,3160,South Nottinghamshire Academy,,,,,,,,,,
Nottinghamshire County Council,1111/1001,Children and Young People,CYP,Supplies & Services,DKA,17/04/2015,01-11651,1800,Derbyshire County Council,,,,,,,,,,
Nottinghamshire County Council,1111/1001,Children and Young People,CYP,Supplies & Services,DKA,24/04/2015,01-11652,1900,Norbridge Academy Trust,,,,,,,,,,
Nottinghamshire County Council,1111/1001,Children and Young People,CYP,Supplies & Services,DKA,24/04/2015,01-15482,1900,St Aidan's C of E High School,,,,,,,,,,
Nottinghamshire County Council,1111/1001,Children and Young People,CYP,Supplies & Services,DKA,30/04/2015,01-16124,1260,Derbyshire County Council,,,,,,,,,,
Nottinghamshire County Council,1111/1001,Children and Young People,CYP,Third Party Payments,EBA,24/04/2015,01-15483,34307.13,Home Group Limited,,,,,,,,,,
Nottinghamshire County Council,1111/1001,Children and Young People,CYP,Third Party Payments,EBA,24/04/2015,01-15486,1681.84,Metropolitan Housing Trust,,,,,,,,,,
Nottinghamshire County Council,1111/1001,Children and Young People,CYP,Third Party Payments,EBA,24/04/2015,01-15489,20912.09,Newark Emmaus Trust,,,,,,,,,,
Nottinghamshire County Council,1111/1001,Children and Young People,CYP,Third Party Payments,EBA,24/04/2015,01-15493,24162.47,Framework Housing Association,,,,,,,,,,
Nottinghamshire County Council,1111/1001,Children and Young People,CYP,Third Party Payments,EBA,24/04/2015,01-15495,22406.75,Nottingham Community Housing,,,,,,,,,,
Nottinghamshire County Council,1111/1001,Children and Young People,CYP,Third Party Payments,EBA,28/04/2015,01-15587,17717.82,East Leake Schools Ltd,,,,,,,,,,
Nottinghamshire County Council,1111/1001,Children and Young People,CYP,Third Party Payments,EBA,28/04/2015,01-15588,5879.14,Transform Schools,,,,,,,,,,
Nottinghamshire County Council,1111/1001,Children and Young People,CYP,Third Party Payments,EBA,28/04/2015,01-15594,18949.66,Transform Schools,,,,,,,,,,
Nottinghamshire County Council,1111/1001,Children and Young People,CYP,Third Party Payments,EBA,28/04/2015,01-15595,40375.7,Transform Schools,,,,,,,,,,
Nottinghamshire County Council,1111/1001,Children and Young People,CYP,Third Party Payments,EBA,28/04/2015,01-15596,22603.96,Transform Schools,,,,,,,,,,
Nottinghamshire County Council,1111/1001,Children and Young People,CYP,Third Party Payments,EBA,28/04/2015,01-15597,4509.68,Transform Schools,,,,,,,,,,
Nottinghamshire County Council,1111/1001,Children and Young People,CYP,Third Party Payments,EBA,28/04/2015,01-16026,95385.22,Transform Schools,,,,,,,,,,
Nottinghamshire County Council,1111/1001,Children and Young People,CYP,Third Party Payments,EBA,28/04/2015,01-16027,1489687.24,Transform Schools,,,,,,,,,,
Nottinghamshire County Council,1111/1001,Children and Young People,CYP,Third Party Payments,EBA,28/04/2015,01-16029,238685.17,East Leake Schools Ltd,,,,,,,,,,
Nottinghamshire County Council,1111/1001,Children and Young People,CYP,Third Party Payments,EDA,10/04/2015,01-10693,21822,Toothill Academy,,,,,,,,,,
Nottinghamshire County Council,1111/1001,Children and Young People,CYP,Third Party Payments,EDA,10/04/2015,01-10694,5965,Retford Oaks Academy,,,,,,,,,,
Nottinghamshire County Council,1111/1001,Children and Young People,CYP,Third Party Payments,EDA,10/04/2015,01-10695,28496,Redhill Academy,,,,,,,,,,
Nottinghamshire County Council,1111/1001,Children and Young People,CYP,Third Party Payments,EDA,10/04/2015,01-10696,13687,Dukeries Academy,,,,,,,,,,
Nottinghamshire County Council,1111/1001,Children and Young People,CYP,Third Party Payments,EDA,10/04/2015,01-10697,12014,The Carlton Academy,,,,,,,,,,
Nottinghamshire County Council,1111/1001,Children and Young People,CYP,Third Party Payments,EDA,10/04/2015,01-10698,3124,St Swithuns C Of E Primary School,,,,,,,,,,
Nottinghamshire County Council,1111/1001,Children and Young People,CYP,Third Party Payments,EDA,10/04/2015,01-10700,950,The Carlton Academy,,,,,,,,,,
Nottinghamshire County Council,1111/1001,Children and Young People,CYP,Third Party Payments,EDA,14/04/2015,01-10969,81719,Foxwood Academy,,,,,,,,,,
Nottinghamshire County Council,1111/1001,Children and Young People,CYP,Third Party Payments,EDA,14/04/2015,01-10970,1674,Foxwood Academy,,,,,,,,,,
Nottinghamshire County Council,1111/1001,Children and Young People,CYP,Third Party Payments,EDA,16/04/2015,01-10699,3840,Leverton C Of E Academy,,,,,,,,,,
Nottinghamshire County Council,1111/1001,Children and Young People,CYP,Third Party Payments,EDA,17/04/2015,01-11673,1320,Ashfield Academy,,,,,,,,,,
Nottinghamshire County Council,1111/1001,Children and Young People,CYP,Third Party Payments,EDA,23/04/2015,01-15364,13707,Leamington Primary & Nursery Academ,,,,,,,,,,
Nottinghamshire County Council,1111/1001,Children and Young People,CYP,Third Party Payments,EDA,23/04/2015,01-15365,16215,Peafield Lane Academy,,,,,,,,,,
Nottinghamshire County Council,1111/1001,Children and Young People,CYP,Third Party Payments,EDA,23/04/2015,01-15366,6667,Birklands Primary (Academy),,,,,,,,,,
Nottinghamshire County Council,1111/1001,Children and Young People,CYP,Third Party Payments,EDA,23/04/2015,01-15367,3273,Sunnyside Spencer Academy,,,,,,,,,,
Nottinghamshire County Council,1111/1001,Children and Young People,CYP,Third Party Payments,EDA,23/04/2015,01-15368,17264,Norbridge Academy,,,,,,,,,,
Nottinghamshire County Council,1111/1001,Children and Young People,CYP,Third Party Payments,EDA,23/04/2015,01-15369,4667,Sparken Hill Academy,,,,,,,,,,
Nottinghamshire County Council,1111/1001,Children and Young People,CYP,Third Party Payments,EDA,23/04/2015,01-15370,21849,The Bramble Academy,,,,,,,,,,
Nottinghamshire County Council,1111/1001,Children and Young People,CYP,Third Party Payments,EDA,23/04/2015,01-15371,2097,St Peters C of E Academy,,,,,,,,,,
Nottinghamshire County Council,1111/1001,Children and Young People,CYP,Third Party Payments,EDA,23/04/2015,01-15372,889,Archbishop Cranmer C of E Academy,,,,,,,,,,
Nottinghamshire County Council,1111/1001,Children and Young People,CYP,Third Party Payments,EDA,23/04/2015,01-15373,3182,Sacred Heart Catholic Voluntary Aca,,,,,,,,,,
Nottinghamshire County Council,1111/1001,Children and Young People,CYP,Third Party Payments,EDA,23/04/2015,01-15374,13358,Holy Trinity Catholic Voluntary Aca,,,,,,,,,,
Nottinghamshire County Council,1111/1001,Children and Young People,CYP,Third Party Payments,EDA,23/04/2015,01-15375,4485,St Patricks Catholic Voluntary Acad,,,,,,,,,,
Nottinghamshire County Council,1111/1001,Children and Young People,CYP,Third Party Payments,EDA,23/04/2015,01-15376,9092,St Philip Neri with St Bede Vol Aca,,,,,,,,,,
Nottinghamshire County Council,1111/1001,Children and Young People,CYP,Third Party Payments,EDA,23/04/2015,01-15377,6664,Arnbrook Primary Academy,,,,,,,,,,
Nottinghamshire County Council,1111/1001,Children and Young People,CYP,Third Party Payments,EDA,23/04/2015,01-15378,17645,Hillside Academy,,,,,,,,,,
Nottinghamshire County Council,1111/1001,Children and Young People,CYP,Third Party Payments,EDA,23/04/2015,01-15379,7030,The Flying High Academy,,,,,,,,,,
Nottinghamshire County Council,1111/1001,Children and Young People,CYP,Third Party Payments,EDA,23/04/2015,01-15380,13237,Serlby Park Academy,,,,,,,,,,
Nottinghamshire County Council,1111/1001,Children and Young People,CYP,Third Party Payments,EDA,23/04/2015,01-15381,4980,The Candleby Lane Academy,,,,,,,,,,
Nottinghamshire County Council,1111/1001,Children and Young People,CYP,Third Party Payments,EDA,23/04/2015,01-15382,16762,Barnby Road Academy Prim & Nursery,,,,,,,,,,
Nottinghamshire County Council,1111/1001,Children and Young People,CYP,Third Party Payments,EDA,23/04/2015,01-15383,5454,Tuxford Primary Academy,,,,,,,,,,
Nottinghamshire County Council,1111/1001,Children and Young People,CYP,Third Party Payments,EDA,23/04/2015,01-15384,4424,Bishop Alexander LEAD Academy,,,,,,,,,,
Nottinghamshire County Council,1111/1001,Children and Young People,CYP,Third Party Payments,EDA,23/04/2015,01-15385,8306,Mansfield Primary Academy,,,,,,,,,,
Nottinghamshire County Council,1111/1001,Children and Young People,CYP,Third Party Payments,EDA,29/04/2015,01-11674,4150,Outwood Academy - Valley,,,,,,,,,,
Nottinghamshire County Council,1111/1001,Children and Young People,CYP,Third Party Payments,EGA,02/04/2015,01-16143,1130074.33,Nottinghamshire Healthcare Nhs Trus,,,,,,,,,,
Nottinghamshire County Council,1111/1001,Children and Young People,CYP,Third Party Payments,EGA,07/04/2015,01-10171,576,Fozcabs Newark Taxis,,,,,,,,,,
Nottinghamshire County Council,1111/1001,Children and Young People,CYP,Third Party Payments,EGA,09/04/2015,01-10611,678.6,Radcliffe On Trent Day Nursery,,,,,,,,,,
Nottinghamshire County Council,1111/1001,Children and Young People,CYP,Third Party Payments,EGA,09/04/2015,01-10612,743.14,Railway Children Playgroup,,,,,,,,,,
Nottinghamshire County Council,1111/1001,Children and Young People,CYP,Third Party Payments,EGA,10/04/2015,01-10637,770,Buttercross Pre School,,,,,,,,,,
Nottinghamshire County Council,1111/1001,Children and Young People,CYP,Third Party Payments,EGA,14/04/2015,01-10874,1062.86,By The Bridge,,,,,,,,,,
Nottinghamshire County Council,1111/1001,Children and Young People,CYP,Third Party Payments,EGA,14/04/2015,01-10885,38643.44,The Orchard Day Nursery,,,,,,,,,,
Nottinghamshire County Council,1111/1001,Children and Young People,CYP,Third Party Payments,EGA,14/04/2015,01-10886,7600.32,Orchard School Nursery,,,,,,,,,,
Nottinghamshire County Council,1111/1001,Children and Young People,CYP,Third Party Payments,EGA,14/04/2015,01-10887,641.34,[Redacted],,,,,,,,,,
Nottinghamshire County Council,1111/1001,Children and Young People,CYP,Third Party Payments,EGA,14/04/2015,01-10888,28501.7,Papermoon Day Nursery,,,,,,,,,,
Nottinghamshire County Council,1111/1001,Children and Young People,CYP,Third Party Payments,EGA,14/04/2015,01-10889,52737.22,Papermoon Day Nursery,,,,,,,,,,
Nottinghamshire County Council,1111/1001,Children and Young People,CYP,Third Party Payments,EGA,14/04/2015,01-10890,31209.19,Papermoon Day Nursery,,,,,,,,,,
Nottinghamshire County Council,1111/1001,Children and Young People,CYP,Third Party Payments,EGA,14/04/2015,01-10891,58097.34,Papermoon Day Nursery Sutton In Ash,,,,,,,,,,
Nottinghamshire County Council,1111/1001,Children and Young People,CYP,Third Party Payments,EGA,14/04/2015,01-10892,17200.51,Papplewick Pre-School Playgroup,,,,,,,,,,
Nottinghamshire County Council,1111/1001,Children and Young People,CYP,Third Party Payments,EGA,14/04/2015,01-10893,1282.68,[Redacted],,,,,,,,,,
Nottinghamshire County Council,1111/1001,Children and Young People,CYP,Third Party Payments,EGA,14/04/2015,01-10894,8075.34,Pea Pod Day Nursery Ltd,,,,,,,,,,
Nottinghamshire County Council,1111/1001,Children and Young People,CYP,Third Party Payments,EGA,14/04/2015,01-10895,3824.1,Phoenix Farm Pre School,,,,,,,,,,
Nottinghamshire County Council,1111/1001,Children and Young People,CYP,Third Party Payments,EGA,14/04/2015,01-10896,12350.52,Pippins Pre-School,,,,,,,,,,
Nottinghamshire County Council,1111/1001,Children and Young People,CYP,Third Party Payments,EGA,14/04/2015,01-10897,641.34,Happy Times,,,,,,,,,,
Nottinghamshire County Council,1111/1001,Children and Young People,CYP,Third Party Payments,EGA,14/04/2015,01-10898,8645.49,Rainbow Day Nursery,,,,,,,,,,
Nottinghamshire County Council,1111/1001,Children and Young People,CYP,Third Party Payments,EGA,14/04/2015,01-10899,19168.38,Rainbows Day Nursery,,,,,,,,,,
Nottinghamshire County Council,1111/1001,Children and Young People,CYP,Third Party Payments,EGA,14/04/2015,01-10900,12932.64,Ranskill Nursery,,,,,,,,,,
Nottinghamshire County Council,1111/1001,Children and Young People,CYP,Third Party Payments,EGA,14/04/2015,01-10901,11820.27,Ravenshead Pre-School Playgroup,,,,,,,,,,
Nottinghamshire County Council,1111/1001,Children and Young People,CYP,Third Party Payments,EGA,14/04/2015,01-10902,641.34,[Redacted],,,,,,,,,,
Nottinghamshire County Council,1111/1001,Children and Young People,CYP,Third Party Payments,EGA,14/04/2015,01-10903,791.7,[Redacted],,,,,,,,,,
Nottinghamshire County Council,1111/1001,Children and Young People,CYP,Third Party Payments,EGA,14/04/2015,01-10904,1116.36,[Redacted],,,,,,,,,,
Nottinghamshire County Council,1111/1001,Children and Young People,CYP,Third Party Payments,EGA,14/04/2015,01-10905,67241.16,The Rocking Horse Child Care Centre,,,,,,,,,,
Nottinghamshire County Council,1111/1001,Children and Young People,CYP,Third Party Payments,EGA,14/04/2015,01-10906,24179.4,Rocking Horse Nursery Butlers Hill,,,,,,,,,,
Nottinghamshire County Council,1111/1001,Children and Young People,CYP,Third Party Payments,EGA,14/04/2015,01-10907,950.04,[Redacted],,,,,,,,,,
Nottinghamshire County Council,1111/1001,Children and Young People,CYP,Third Party Payments,EGA,14/04/2015,01-10908,18383.4,Ruddington Nursery & Pre-School,,,,,,,,,,
Nottinghamshire County Council,1111/1001,Children and Young People,CYP,Third Party Payments,EGA,14/04/2015,01-10909,7861.64,Rushcliffe Pre-School (Nottingham),,,,,,,,,,
Nottinghamshire County Council,1111/1001,Children and Young People,CYP,Third Party Payments,EGA,14/04/2015,01-10910,8930.38,DUPLICATE-Rushcliffe Pre-School Cic,,,,,,,,,,
Nottinghamshire County Council,1111/1001,Children and Young People,CYP,Third Party Payments,EGA,14/04/2015,01-10911,19998.72,Serendipity's Day Nursery,,,,,,,,,,
Nottinghamshire County Council,1111/1001,Children and Young People,CYP,Third Party Payments,EGA,14/04/2015,01-10912,15395.94,Serendipity's Day Nursery,,,,,,,,,,
Nottinghamshire County Council,1111/1001,Children and Young People,CYP,Third Party Payments,EGA,14/04/2015,01-10913,25687.31,Serendipity's Day Nursery,,,,,,,,,,
Nottinghamshire County Council,1111/1001,Children and Young People,CYP,Third Party Payments,EGA,14/04/2015,01-10914,18019.72,Serendipity's Day Nursery,,,,,,,,,,
Nottinghamshire County Council,1111/1001,Children and Young People,CYP,Third Party Payments,EGA,14/04/2015,01-10915,43339.8,Shaping Futures Day Nursery,,,,,,,,,,
Nottinghamshire County Council,1111/1001,Children and Young People,CYP,Third Party Payments,EGA,14/04/2015,01-10916,15272.46,Shaping Futures Day Nursery,,,,,,,,,,
Nottinghamshire County Council,1111/1001,Children and Young People,CYP,Third Party Payments,EGA,14/04/2015,01-10917,14599.2,Smarties Private Day Nursery,,,,,,,,,,
Nottinghamshire County Council,1111/1001,Children and Young People,CYP,Third Party Payments,EGA,14/04/2015,01-10918,6460.27,Southwell Pre-School,,,,,,,,,,
Nottinghamshire County Council,1111/1001,Children and Young People,CYP,Third Party Payments,EGA,14/04/2015,01-10919,6721.6,Southfields Pre-School,,,,,,,,,,
Nottinghamshire County Council,1111/1001,Children and Young People,CYP,Third Party Payments,EGA,14/04/2015,01-10920,1757.7,[Redacted],,,,,,,,,,
Nottinghamshire County Council,1111/1001,Children and Young People,CYP,Third Party Payments,EGA,14/04/2015,01-10921,7315.31,St Giles Pre-school,,,,,,,,,,
Nottinghamshire County Council,1111/1001,Children and Young People,CYP,Third Party Payments,EGA,14/04/2015,01-10922,11818.55,St Johns Playgroup,,,,,,,,,,
Nottinghamshire County Council,1111/1001,Children and Young People,CYP,Third Party Payments,EGA,14/04/2015,01-10923,14426.75,St Mary's Pre-School,,,,,,,,,,
Nottinghamshire County Council,1111/1001,Children and Young People,CYP,Third Party Payments,EGA,14/04/2015,01-10924,19429.2,Stapleford Day Nursery,,,,,,,,,,
Nottinghamshire County Council,1111/1001,Children and Young People,CYP,Third Party Payments,EGA,14/04/2015,01-10925,17496.57,Staunton Montessori Nursery School,,,,,,,,,,
Nottinghamshire County Council,1111/1001,Children and Young People,CYP,Third Party Payments,EGA,14/04/2015,01-10926,15105.89,Stepping Stones II,,,,,,,,,,
Nottinghamshire County Council,1111/1001,Children and Young People,CYP,Third Party Payments,EGA,14/04/2015,01-10930,3123.33,Sunbeams Pre-School,,,,,,,,,,
Nottinghamshire County Council,1111/1001,Children and Young People,CYP,Third Party Payments,EGA,14/04/2015,01-10932,11400.48,Sutton Bonington Playgroup,,,,,,,,,,
Nottinghamshire County Council,1111/1001,Children and Young People,CYP,Third Party Payments,EGA,14/04/2015,01-10933,19476.24,Sutton Centre Under 5'S Playgroup,,,,,,,,,,
Nottinghamshire County Council,1111/1001,Children and Young People,CYP,Third Party Payments,EGA,14/04/2015,01-10935,641.34,[Redacted],,,,,,,,,,
Nottinghamshire County Council,1111/1001,Children and Young People,CYP,Third Party Payments,EGA,14/04/2015,01-10937,570.02,[Redacted],,,,,,,,,,
Nottinghamshire County Council,1111/1001,Children and Young People,CYP,Third Party Payments,EGA,14/04/2015,01-10939,11715.81,Wellin Lane Playgroup,,,,,,,,,,
Nottinghamshire County Council,1111/1001,Children and Young People,CYP,Third Party Payments,EGA,14/04/2015,01-10940,12624.15,Thrumpton Kids Clubs,,,,,,,,,,
Nottinghamshire County Council,1111/1001,Children and Young People,CYP,Third Party Payments,EGA,14/04/2015,01-10941,8355.82,Tiny Talkers Day Nursery,,,,,,,,,,
Nottinghamshire County Council,1111/1001,Children and Young People,CYP,Third Party Payments,EGA,14/04/2015,01-10942,14274.54,Tiny Teddies Day Nursery,,,,,,,,,,
Nottinghamshire County Council,1111/1001,Children and Young People,CYP,Third Party Payments,EGA,14/04/2015,01-10943,1863,Tiny Teddies @ Roko,,,,,,,,,,
Nottinghamshire County Council,1111/1001,Children and Young People,CYP,Third Party Payments,EGA,14/04/2015,01-10945,27576.36,Tiny World Mansfield,,,,,,,,,,
Nottinghamshire County Council,1111/1001,Children and Young People,CYP,Third Party Payments,EGA,14/04/2015,01-10946,13031.76,Toddlers University (Bee),,,,,,,,,,
Nottinghamshire County Council,1111/1001,Children and Young People,CYP,Third Party Payments,EGA,14/04/2015,01-10947,17141.16,Tollerton Playgroup,,,,,,,,,,
Nottinghamshire County Council,1111/1001,Children and Young People,CYP,Third Party Payments,EGA,14/04/2015,01-10948,855.12,[Redacted],,,,,,,,,,
Nottinghamshire County Council,1111/1001,Children and Young People,CYP,Third Party Payments,EGA,14/04/2015,01-10949,3491.46,Toton Tots Pre-School,,,,,,,,,,
Nottinghamshire County Council,1111/1001,Children and Young People,CYP,Third Party Payments,EGA,14/04/2015,01-10950,16530.95,Treetops Nursery,,,,,,,,,,
Nottinghamshire County Council,1111/1001,Children and Young People,CYP,Third Party Payments,EGA,14/04/2015,01-10951,6577.49,Trowell Pre School,,,,,,,,,,
Nottinghamshire County Council,1111/1001,Children and Young People,CYP,Third Party Payments,EGA,14/04/2015,01-10952,1425.06,[Redacted],,,,,,,,,,
Nottinghamshire County Council,1111/1001,Children and Young People,CYP,Third Party Payments,EGA,14/04/2015,01-10953,641.34,Kylees Childmining Services,,,,,,,,,,
Nottinghamshire County Council,1111/1001,Children and Young People,CYP,Third Party Payments,EGA,14/04/2015,01-10954,1323.36,Upton Crickets Day Nursery,,,,,,,,,,
Nottinghamshire County Council,1111/1001,Children and Young People,CYP,Third Party Payments,EGA,14/04/2015,01-10955,13609.89,Valmarys Childrens Centre 2,,,,,,,,,,
Nottinghamshire County Council,1111/1001,Children and Young People,CYP,Third Party Payments,EGA,14/04/2015,01-10956,1591.38,Sharons Childminding,,,,,,,,,,
Nottinghamshire County Council,1111/1001,Children and Young People,CYP,Third Party Payments,EGA,14/04/2015,01-10957,36838.62,Village Day Nursery,,,,,,,,,,
Nottinghamshire County Council,1111/1001,Children and Young People,CYP,Third Party Payments,EGA,14/04/2015,01-10958,14029.05,Walesby School Playgroup,,,,,,,,,,
Nottinghamshire County Council,1111/1001,Children and Young People,CYP,Third Party Payments,EGA,14/04/2015,01-10959,930.3,[Redacted],,,,,,,,,,
Nottinghamshire County Council,1111/1001,Children and Young People,CYP,Third Party Payments,EGA,14/04/2015,01-10960,12730.54,Watnall Pre-School Playgroup,,,,,,,,,,
Nottinghamshire County Council,1111/1001,Children and Young People,CYP,Third Party Payments,EGA,14/04/2015,01-10961,27242.54,Weaverthorpe Pre-School Playgroup,,,,,,,,,,
Nottinghamshire County Council,1111/1001,Children and Young People,CYP,Third Party Payments,EGA,14/04/2015,01-10962,9500.4,Wellow House School,,,,,,,,,,
Nottinghamshire County Council,1111/1001,Children and Young People,CYP,Third Party Payments,EGA,14/04/2015,01-10963,20481.34,West Bridgford Out Of School Care L,,,,,,,,,,
Nottinghamshire County Council,1111/1001,Children and Young People,CYP,Third Party Payments,EGA,14/04/2015,01-10964,7505.82,West Street Pre-School,,,,,,,,,,
Nottinghamshire County Council,1111/1001,Children and Young People,CYP,Third Party Payments,EGA,14/04/2015,01-10965,21115.08,Westbourne House Nursery School,,,,,,,,,,
Nottinghamshire County Council,1111/1001,Children and Young People,CYP,Third Party Payments,EGA,14/04/2015,01-10966,28501.2,Westdale Pre-School,,,,,,,,,,
Nottinghamshire County Council,1111/1001,Children and Young People,CYP,Third Party Payments,EGA,14/04/2015,01-10967,1591.38,[Redacted],,,,,,,,,,
Nottinghamshire County Council,1111/1001,Children and Young People,CYP,Third Party Payments,EGA,14/04/2015,01-10968,10878.84,Mulberry Bush Day Nursery,,,,,,,,,,
Nottinghamshire County Council,1111/1001,Children and Young People,CYP,Third Party Payments,EGA,14/04/2015,01-10971,14606.93,Woodborough Village Pre School,,,,,,,,,,
Nottinghamshire County Council,1111/1001,Children and Young People,CYP,Third Party Payments,EGA,14/04/2015,01-10972,35365.68,Woodthorpe Day Nursery Ltd,,,,,,,,,,
Nottinghamshire County Council,1111/1001,Children and Young People,CYP,Third Party Payments,EGA,14/04/2015,01-10973,12429.69,Worksop College,,,,,,,,,,
Nottinghamshire County Council,1111/1001,Children and Young People,CYP,Third Party Payments,EGA,14/04/2015,01-10974,1757.7,[Redacted],,,,,,,,,,
Nottinghamshire County Council,1111/1001,Children and Young People,CYP,Third Party Payments,EGA,14/04/2015,01-10975,3325.14,Zoe's Childcare Ltd,,,,,,,,,,
Nottinghamshire County Council,1111/1001,Children and Young People,CYP,Third Party Payments,EGA,14/04/2015,01-10976,8337.42,Zoes Childcare Ltd,,,,,,,,,,
Nottinghamshire County Council,1111/1001,Children and Young People,CYP,Third Party Payments,EGA,14/04/2015,01-10977,8574.3,Portland Place Pre-School,,,,,,,,,,
Nottinghamshire County Council,1111/1001,Children and Young People,CYP,Third Party Payments,EGA,14/04/2015,01-10978,14678.24,Pre-School 345,,,,,,,,,,
Nottinghamshire County Council,1111/1001,Children and Young People,CYP,Third Party Payments,EGA,14/04/2015,01-10979,9326.6,Prebend Pre-School Playgroup,,,,,,,,,,
Nottinghamshire County Council,1111/1001,Children and Young People,CYP,Third Party Payments,EGA,14/04/2015,01-10980,21676.83,Puddleducks Pre-School,,,,,,,,,,
Nottinghamshire County Council,1111/1001,Children and Young People,CYP,Third Party Payments,EGA,14/04/2015,01-10981,11471.99,Pump Farm Day Nursery,,,,,,,,,,
Nottinghamshire County Council,1111/1001,Children and Young People,CYP,Third Party Payments,EGA,14/04/2015,01-10982,2541.42,[Redacted],,,,,,,,,,
Nottinghamshire County Council,1111/1001,Children and Young People,CYP,Third Party Payments,EGA,14/04/2015,01-10984,16364.88,Radcliffe On Trent Day Nursery,,,,,,,,,,
Nottinghamshire County Council,1111/1001,Children and Young People,CYP,Third Party Payments,EGA,14/04/2015,01-10985,14868.76,Radcliffe On Trent Pre School Playg,,,,,,,,,,
Nottinghamshire County Council,1111/1001,Children and Young People,CYP,Third Party Payments,EGA,14/04/2015,01-10986,8487.15,Railway Children Playgroup,,,,,,,,,,
Nottinghamshire County Council,1111/1001,Children and Young People,CYP,Third Party Payments,EGA,14/04/2015,01-10987,25177.32,Safe Haven Day Nursery,,,,,,,,,,
Nottinghamshire County Council,1111/1001,Children and Young People,CYP,Third Party Payments,EGA,14/04/2015,01-10988,7362.81,Salterford House School,,,,,,,,,,
Nottinghamshire County Council,1111/1001,Children and Young People,CYP,Third Party Payments,EGA,14/04/2015,01-10989,1472.56,[Redacted],,,,,,,,,,
Nottinghamshire County Council,1111/1001,Children and Young People,CYP,Third Party Payments,EGA,14/04/2015,01-10990,8075.34,Saville House School,,,,,,,,,,
Nottinghamshire County Council,1111/1001,Children and Young People,CYP,Third Party Payments,EGA,14/04/2015,01-10991,10546.2,Sconce Hills Pre-School Playgroup,,,,,,,,,,
Nottinghamshire County Council,1111/1001,Children and Young People,CYP,Third Party Payments,EGA,14/04/2015,01-10992,18383.4,Scottswood Pdn Ltd,,,,,,,,,,
Nottinghamshire County Council,1111/1001,Children and Young People,CYP,Third Party Payments,EGA,14/04/2015,01-10993,16625.7,Scotts Wood Private Day Nursery,,,,,,,,,,
Nottinghamshire County Council,1111/1001,Children and Young People,CYP,Third Party Payments,EGA,14/04/2015,01-10994,43989.12,The Learning Tree Nursery,,,,,,,,,,
Nottinghamshire County Council,1111/1001,Children and Young People,CYP,Third Party Payments,EGA,14/04/2015,01-10995,28565.67,The Learning Tree Day Nursery 2,,,,,,,,,,
Nottinghamshire County Council,1111/1001,Children and Young People,CYP,Third Party Payments,EGA,14/04/2015,01-10996,19785.78,The Orange Tree Day Nursery,,,,,,,,,,
Nottinghamshire County Council,1111/1001,Children and Young People,CYP,Third Party Payments,EGA,14/04/2015,01-10997,22096.7,The Secret Garden Private Day Nurse,,,,,,,,,,
Nottinghamshire County Council,1111/1001,Children and Young People,CYP,Third Party Payments,EGA,14/04/2015,01-10998,8369.93,The West Bridgford Day Nursery,,,,,,,,,,
Nottinghamshire County Council,1111/1001,Children and Young People,CYP,Third Party Payments,EGA,14/04/2015,01-10999,10657.92,Wolds Childcare Ltd,,,,,,,,,,
Nottinghamshire County Council,1111/1001,Children and Young People,CYP,Third Party Payments,EGA,14/04/2015,01-11000,641.34,[Redacted],,,,,,,,,,
Nottinghamshire County Council,1111/1001,Children and Young People,CYP,Third Party Payments,EGA,14/04/2015,01-11001,3040.38,[Redacted],,,,,,,,,,
Nottinghamshire County Council,1111/1001,Children and Young People,CYP,Third Party Payments,EGA,14/04/2015,01-11003,6650.28,Willow Brook Pre-School,,,,,,,,,,
Nottinghamshire County Council,1111/1001,Children and Young People,CYP,Third Party Payments,EGA,14/04/2015,01-11004,19894.14,Willow Pre-School Playgroup,,,,,,,,,,
Nottinghamshire County Council,1111/1001,Children and Young People,CYP,Third Party Payments,EGA,14/04/2015,01-11006,950.04,Jammie Dodgers Childminding Group,,,,,,,,,,
Nottinghamshire County Council,1111/1001,Children and Young People,CYP,Third Party Payments,EGA,14/04/2015,01-11008,7020.97,Windmill Kindergarten Playgroup,,,,,,,,,,
Nottinghamshire County Council,1111/1001,Children and Young People,CYP,Third Party Payments,EGA,14/04/2015,01-11009,2042.59,Windmills Pre-School Playgroup,,,,,,,,,,
Nottinghamshire County Council,1111/1001,Children and Young People,CYP,Third Party Payments,EGA,14/04/2015,01-11010,17813.63,Wishing Well Day Nursery,,,,,,,,,,
Nottinghamshire County Council,1111/1001,Children and Young People,CYP,Third Party Payments,EGA,14/04/2015,01-11011,16815.96,Wollaton Village Day Nurseries,,,,,,,,,,
Nottinghamshire County Council,1111/1001,Children and Young People,CYP,Third Party Payments,EGA,14/04/2015,01-11012,4536.5,St Peters C of E Academy,,,,,,,,,,
Nottinghamshire County Council,1111/1001,Children and Young People,CYP,Third Party Payments,EGA,15/04/2015,01-11247,7980.84,Jelly Totz Day Nursery,,,,,,,,,,
Nottinghamshire County Council,1111/1001,Children and Young People,CYP,Third Party Payments,EGA,15/04/2015,01-11248,641.34,Jesters Childcare Ltd,,,,,,,,,,
Nottinghamshire County Council,1111/1001,Children and Young People,CYP,Third Party Payments,EGA,15/04/2015,01-11249,1116.36,[Redacted],,,,,,,,,,
Nottinghamshire County Council,1111/1001,Children and Young People,CYP,Third Party Payments,EGA,15/04/2015,01-11250,950.04,Jubilee House Christian School,,,,,,,,,,
Nottinghamshire County Council,1111/1001,Children and Young People,CYP,Third Party Payments,EGA,15/04/2015,01-11251,641.34,[Redacted],,,,,,,,,,
Nottinghamshire County Council,1111/1001,Children and Young People,CYP,Third Party Payments,EGA,15/04/2015,01-11252,9073.26,Kidzgrove,,,,,,,,,,
Nottinghamshire County Council,1111/1001,Children and Young People,CYP,Third Party Payments,EGA,15/04/2015,01-11253,24951.15,Killisick Pre-School,,,,,,,,,,
Nottinghamshire County Council,1111/1001,Children and Young People,CYP,Third Party Payments,EGA,15/04/2015,01-11254,7265.79,Kimberley Pre-School Playgroup,,,,,,,,,,
Nottinghamshire County Council,1111/1001,Children and Young People,CYP,Third Party Payments,EGA,15/04/2015,01-11255,26768.7,Kingfisher Day Nursery,,,,,,,,,,
Nottinghamshire County Council,1111/1001,Children and Young People,CYP,Third Party Payments,EGA,15/04/2015,01-11256,9922.25,Kirkby Cross Playgroup,,,,,,,,,,
Nottinghamshire County Council,1111/1001,Children and Young People,CYP,Third Party Payments,EGA,15/04/2015,01-11257,1924.02,"Sue Smith, Happy Kids Childminding",,,,,,,,,,
Nottinghamshire County Council,1111/1001,Children and Young People,CYP,Third Party Payments,EGA,15/04/2015,01-11258,12065.51,Lady Bay Pre School Playgroup,,,,,,,,,,
Nottinghamshire County Council,1111/1001,Children and Young People,CYP,Third Party Payments,EGA,15/04/2015,01-11260,1425.06,[Redacted],,,,,,,,,,
Nottinghamshire County Council,1111/1001,Children and Young People,CYP,Third Party Payments,EGA,15/04/2015,01-11261,17504.76,Lambley Day Nursery Ltd,,,,,,,,,,
Nottinghamshire County Council,1111/1001,Children and Young People,CYP,Third Party Payments,EGA,15/04/2015,01-11262,1116.36,Luans Little Stars,,,,,,,,,,
Nottinghamshire County Council,1111/1001,Children and Young People,CYP,Third Party Payments,EGA,15/04/2015,01-11263,14683.03,Leahurst Road Pre-School,,,,,,,,,,
Nottinghamshire County Council,1111/1001,Children and Young People,CYP,Third Party Payments,EGA,15/04/2015,01-11264,30140.96,Learning Ladder Childcare Ltd,,,,,,,,,,
Nottinghamshire County Council,1111/1001,Children and Young People,CYP,Third Party Payments,EGA,15/04/2015,01-11265,46291.14,Leen Mills Pre School Playgroup,,,,,,,,,,
Nottinghamshire County Council,1111/1001,Children and Young People,CYP,Third Party Payments,EGA,15/04/2015,01-11266,21364.56,Leo's Childrens Nurseries Ltd,,,,,,,,,,
Nottinghamshire County Council,1111/1001,Children and Young People,CYP,Third Party Payments,EGA,15/04/2015,01-11267,15604.47,North Leverton Pre-School Playgroup,,,,,,,,,,
Nottinghamshire County Council,1111/1001,Children and Young People,CYP,Third Party Payments,EGA,15/04/2015,01-11268,4798.08,Lilliput Day Nursery (The Canch),,,,,,,,,,
Nottinghamshire County Council,1111/1001,Children and Young People,CYP,Third Party Payments,EGA,15/04/2015,01-11269,16693.11,Little Acorns Shireoaks,,,,,,,,,,
Nottinghamshire County Council,1111/1001,Children and Young People,CYP,Third Party Payments,EGA,15/04/2015,01-11270,18943.85,Little Acorns Pre-School,,,,,,,,,,
Nottinghamshire County Council,1111/1001,Children and Young People,CYP,Third Party Payments,EGA,15/04/2015,01-11271,37955.48,Little Bears Day Nursery,,,,,,,,,,
Nottinghamshire County Council,1111/1001,Children and Young People,CYP,Third Party Payments,EGA,15/04/2015,01-11272,11946.82,Little Friends Day Nursery,,,,,,,,,,
Nottinghamshire County Council,1111/1001,Children and Young People,CYP,Third Party Payments,EGA,15/04/2015,01-11273,12137.58,Little Kites Playgroup,,,,,,,,,,
Nottinghamshire County Council,1111/1001,Children and Young People,CYP,Third Party Payments,EGA,15/04/2015,01-11274,9817.08,Horsendale Playgroup,,,,,,,,,,
Nottinghamshire County Council,1111/1001,Children and Young People,CYP,Third Party Payments,EGA,15/04/2015,01-11276,10403.82,PSLA Newstead Childcare,,,,,,,,,,
Nottinghamshire County Council,1111/1001,Children and Young People,CYP,Third Party Payments,EGA,15/04/2015,01-11278,4389.34,Hermitage Pre-School,,,,,,,,,,
Nottinghamshire County Council,1111/1001,Children and Young People,CYP,Third Party Payments,EGA,15/04/2015,01-11279,6016.92,Hickling Pre-School,,,,,,,,,,
Nottinghamshire County Council,1111/1001,Children and Young People,CYP,Third Party Payments,EGA,15/04/2015,01-11281,17457.3,Hickory House Day Nursery,,,,,,,,,,
Nottinghamshire County Council,1111/1001,Children and Young People,CYP,Third Party Payments,EGA,15/04/2015,01-11282,15723.29,Highfields School & Nursery,,,,,,,,,,
Nottinghamshire County Council,1111/1001,Children and Young People,CYP,Third Party Payments,EGA,15/04/2015,01-11283,17362.8,SPBC Day Care Ltd,,,,,,,,,,
Nottinghamshire County Council,1111/1001,Children and Young People,CYP,Third Party Payments,EGA,15/04/2015,01-11284,21427.29,Homestead Day Nursery Ltd,,,,,,,,,,
Nottinghamshire County Council,1111/1001,Children and Young People,CYP,Third Party Payments,EGA,15/04/2015,01-11285,14639.1,Quinton Day Nurseries T/A Honey Bee,,,,,,,,,,
Nottinghamshire County Council,1111/1001,Children and Young People,CYP,Third Party Payments,EGA,15/04/2015,01-11286,9658.74,Honey Pot Day Private Day Nursery L,,,,,,,,,,
Nottinghamshire County Council,1111/1001,Children and Young People,CYP,Third Party Payments,EGA,15/04/2015,01-11287,506.69,[Redacted],,,,,,,,,,
Nottinghamshire County Council,1111/1001,Children and Young People,CYP,Third Party Payments,EGA,15/04/2015,01-11288,5344.16,PSLA Newstead Childcare,,,,,,,,,,
Nottinghamshire County Council,1111/1001,Children and Young People,CYP,Third Party Payments,EGA,15/04/2015,01-11289,20204.35,PSLA Newstead Childcare,,,,,,,,,,
Nottinghamshire County Council,1111/1001,Children and Young People,CYP,Third Party Payments,EGA,15/04/2015,01-11290,10736.46,PSLA Newstead Childcare,,,,,,,,,,
Nottinghamshire County Council,1111/1001,Children and Young People,CYP,Third Party Payments,EGA,15/04/2015,01-11291,37504.15,Treetops Nurseries Ltd,,,,,,,,,,
Nottinghamshire County Council,1111/1001,Children and Young People,CYP,Third Party Payments,EGA,15/04/2015,01-11292,23918.58,PSLA Newstead Childcare,,,,,,,,,,
Nottinghamshire County Council,1111/1001,Children and Young People,CYP,Third Party Payments,EGA,15/04/2015,01-11293,21637.98,Hucknall Day Nursery,,,,,,,,,,
Nottinghamshire County Council,1111/1001,Children and Young People,CYP,Third Party Payments,EGA,15/04/2015,01-11294,20131.77,Hucknall Pre-School Playgroup,,,,,,,,,,
Nottinghamshire County Council,1111/1001,Children and Young People,CYP,Third Party Payments,EGA,15/04/2015,01-11295,1900.08,[Redacted],,,,,,,,,,
Nottinghamshire County Council,1111/1001,Children and Young People,CYP,Third Party Payments,EGA,15/04/2015,01-11296,5700.24,Inham Park Pre School Playgroup,,,,,,,,,,
Nottinghamshire County Council,1111/1001,Children and Young People,CYP,Third Party Payments,EGA,15/04/2015,01-11297,1924.02,[Redacted],,,,,,,,,,
Nottinghamshire County Council,1111/1001,Children and Young People,CYP,Third Party Payments,EGA,15/04/2015,01-11298,22159.87,Little Millers Day Nursery,,,,,,,,,,
Nottinghamshire County Council,1111/1001,Children and Young People,CYP,Third Party Payments,EGA,15/04/2015,01-11299,23395.05,Little Nippers Pre-School,,,,,,,,,,
Nottinghamshire County Council,1111/1001,Children and Young People,CYP,Third Party Payments,EGA,15/04/2015,01-11300,29079.33,Little Oaks Nursery,,,,,,,,,,
Nottinghamshire County Council,1111/1001,Children and Young People,CYP,Third Party Payments,EGA,15/04/2015,01-11301,5653.69,St Johns College Nottingham,,,,,,,,,,
Nottinghamshire County Council,1111/1001,Children and Young People,CYP,Third Party Payments,EGA,15/04/2015,01-11302,1346.81,[Redacted],,,,,,,,,,
Nottinghamshire County Council,1111/1001,Children and Young People,CYP,Third Party Payments,EGA,15/04/2015,01-11303,23014.91,Millfield Nursery School,,,,,,,,,,
Nottinghamshire County Council,1111/1001,Children and Young People,CYP,Third Party Payments,EGA,15/04/2015,01-11304,9413.38,Misson Pre-School,,,,,,,,,,
Nottinghamshire County Council,1111/1001,Children and Young People,CYP,Third Party Payments,EGA,15/04/2015,01-11305,3040.38,Tinas Childminding,,,,,,,,,,
Nottinghamshire County Council,1111/1001,Children and Young People,CYP,Third Party Payments,EGA,15/04/2015,01-11306,641.34,[Redacted],,,,,,,,,,
Nottinghamshire County Council,1111/1001,Children and Young People,CYP,Third Party Payments,EGA,15/04/2015,01-11307,10498.57,Netherfield Pre School Ltd,,,,,,,,,,
Nottinghamshire County Council,1111/1001,Children and Young People,CYP,Third Party Payments,EGA,15/04/2015,01-11308,18050.76,Nurseryworld & Friends Nursery & Pr,,,,,,,,,,
Nottinghamshire County Council,1111/1001,Children and Young People,CYP,Third Party Payments,EGA,15/04/2015,01-11309,29903.58,Oceans Day Nursery,,,,,,,,,,
Nottinghamshire County Council,1111/1001,Children and Young People,CYP,Third Party Payments,EGA,15/04/2015,01-11310,3016.44,Edwinstowe Pre School Playgroup,,,,,,,,,,
Nottinghamshire County Council,1111/1001,Children and Young People,CYP,Third Party Payments,EGA,15/04/2015,01-11311,641.34,[Redacted],,,,,,,,,,
Nottinghamshire County Council,1111/1001,Children and Young People,CYP,Third Party Payments,EGA,15/04/2015,01-11312,13799.52,St Peter's Early Years,,,,,,,,,,
Nottinghamshire County Council,1111/1001,Children and Young People,CYP,Third Party Payments,EGA,15/04/2015,01-11313,14480.26,Farnsfield Pre-School,,,,,,,,,,
Nottinghamshire County Council,1111/1001,Children and Young People,CYP,Third Party Payments,EGA,15/04/2015,01-11314,43797.6,Fernwood Day Nursery Ltd,,,,,,,,,,
Nottinghamshire County Council,1111/1001,Children and Young People,CYP,Third Party Payments,EGA,15/04/2015,01-11315,950.04,[Redacted],,,,,,,,,,
Nottinghamshire County Council,1111/1001,Children and Young People,CYP,Third Party Payments,EGA,15/04/2015,01-11316,513.07,Fleur De Lys Pre School,,,,,,,,,,
Nottinghamshire County Council,1111/1001,Children and Young People,CYP,Third Party Payments,EGA,15/04/2015,01-11317,712.53,[Redacted],,,,,,,,,,
Nottinghamshire County Council,1111/1001,Children and Young People,CYP,Third Party Payments,EGA,15/04/2015,01-11318,5752.65,Foxy Creek Pre-School Playgroup,,,,,,,,,,
Nottinghamshire County Council,1111/1001,Children and Young People,CYP,Third Party Payments,EGA,15/04/2015,01-11319,610.8,[Redacted],,,,,,,,,,
Nottinghamshire County Council,1111/1001,Children and Young People,CYP,Third Party Payments,EGA,15/04/2015,01-11320,19461.12,Fun Farm Day Nursery,,,,,,,,,,
Nottinghamshire County Council,1111/1001,Children and Young People,CYP,Third Party Payments,EGA,15/04/2015,01-11321,10688.58,Galaxies Day Nursery,,,,,,,,,,
Nottinghamshire County Council,1111/1001,Children and Young People,CYP,Third Party Payments,EGA,15/04/2015,01-11322,950.04,Little Seedlings,,,,,,,,,,
Nottinghamshire County Council,1111/1001,Children and Young People,CYP,Third Party Payments,EGA,15/04/2015,01-11323,18051.01,Good Foundations Day Nursery,,,,,,,,,,
Nottinghamshire County Council,1111/1001,Children and Young People,CYP,Third Party Payments,EGA,15/04/2015,01-11324,16150.68,Good Shepherd Pre-School,,,,,,,,,,
Nottinghamshire County Council,1111/1001,Children and Young People,CYP,Third Party Payments,EGA,15/04/2015,01-11338,641.34,[Redacted],,,,,,,,,,
Nottinghamshire County Council,1111/1001,Children and Young People,CYP,Third Party Payments,EGA,15/04/2015,01-11339,14676.44,Sir Edmund Hillary Primary School,,,,,,,,,,
Nottinghamshire County Council,1111/1001,Children and Young People,CYP,Third Party Payments,EGA,15/04/2015,01-11340,1116.36,Appletree House Childminding,,,,,,,,,,
Nottinghamshire County Council,1111/1001,Children and Young People,CYP,Third Party Payments,EGA,15/04/2015,01-11341,12500.17,Collingham & District Pre-School,,,,,,,,,,
Nottinghamshire County Council,1111/1001,Children and Young People,CYP,Third Party Payments,EGA,15/04/2015,01-11342,17671.5,Claremont Early Years Ltd,,,,,,,,,,
Nottinghamshire County Council,1111/1001,Children and Young People,CYP,Third Party Payments,EGA,15/04/2015,01-11343,24416.53,Church House Day Nursery,,,,,,,,,,
Nottinghamshire County Council,1111/1001,Children and Young People,CYP,Third Party Payments,EGA,15/04/2015,01-11344,14100.24,Christchurch Hall Pre-School Playgr,,,,,,,,,,
Nottinghamshire County Council,1111/1001,Children and Young People,CYP,Third Party Payments,EGA,15/04/2015,01-11345,18359.71,Childrens Corner Day Nursery,,,,,,,,,,
Nottinghamshire County Council,1111/1001,Children and Young People,CYP,Third Party Payments,EGA,15/04/2015,01-11346,42918.62,Breedon House Nurseries Ltd,,,,,,,,,,
Nottinghamshire County Council,1111/1001,Children and Young People,CYP,Third Party Payments,EGA,15/04/2015,01-11347,9975.42,Breedon House Nurseries Ltd,,,,,,,,,,
Nottinghamshire County Council,1111/1001,Children and Young People,CYP,Third Party Payments,EGA,15/04/2015,01-11348,19785.53,Children 1st @ Newark Centre,,,,,,,,,,
Nottinghamshire County Council,1111/1001,Children and Young People,CYP,Third Party Payments,EGA,15/04/2015,01-11349,950.04,Colston Bassett Preparatory School,,,,,,,,,,
Nottinghamshire County Council,1111/1001,Children and Young People,CYP,Third Party Payments,EGA,15/04/2015,01-11350,8645.36,Colwick Pre School Playgroup,,,,,,,,,,
Nottinghamshire County Council,1111/1001,Children and Young People,CYP,Third Party Payments,EGA,15/04/2015,01-11351,5486.54,Costock Pre School,,,,,,,,,,
Nottinghamshire County Council,1111/1001,Children and Young People,CYP,Third Party Payments,EGA,15/04/2015,01-11352,633.36,[Redacted],,,,,,,,,,
Nottinghamshire County Council,1111/1001,Children and Young People,CYP,Third Party Payments,EGA,15/04/2015,01-11353,7196.62,Cropwell Bishop Pre-School Playgrou,,,,,,,,,,
Nottinghamshire County Council,1111/1001,Children and Young People,CYP,Third Party Payments,EGA,15/04/2015,01-11354,10967.9,Dagfa House School,,,,,,,,,,
Nottinghamshire County Council,1111/1001,Children and Young People,CYP,Third Party Payments,EGA,15/04/2015,01-11355,20624.1,Daisies Day Nursery,,,,,,,,,,
Nottinghamshire County Council,1111/1001,Children and Young People,CYP,Third Party Payments,EGA,15/04/2015,01-11356,15818.29,Daisies Day Nursery,,,,,,,,,,
Nottinghamshire County Council,1111/1001,Children and Young People,CYP,Third Party Payments,EGA,15/04/2015,01-11357,641.34,[Redacted],,,,,,,,,,
Nottinghamshire County Council,1111/1001,Children and Young People,CYP,Third Party Payments,EGA,15/04/2015,01-11358,4323.06,[Redacted],,,,,,,,,,
Nottinghamshire County Council,1111/1001,Children and Young People,CYP,Third Party Payments,EGA,15/04/2015,01-11359,641.34,[Redacted],,,,,,,,,,
Nottinghamshire County Council,1111/1001,Children and Young People,CYP,Third Party Payments,EGA,15/04/2015,01-11360,25224.19,Discovery Day Nursery,,,,,,,,,,
Nottinghamshire County Council,1111/1001,Children and Young People,CYP,Third Party Payments,EGA,15/04/2015,01-11361,641.34,[Redacted],,,,,,,,,,
Nottinghamshire County Council,1111/1001,Children and Young People,CYP,Third Party Payments,EGA,15/04/2015,01-11362,13015.8,Duncroft Day Nursery,,,,,,,,,,
Nottinghamshire County Council,1111/1001,Children and Young People,CYP,Third Party Payments,EGA,15/04/2015,01-11363,33465.35,East Leake Day Nursery & Pre-School,,,,,,,,,,
Nottinghamshire County Council,1111/1001,Children and Young People,CYP,Third Party Payments,EGA,15/04/2015,01-11364,7956.65,East Leake Pre-School Playgroup,,,,,,,,,,
Nottinghamshire County Council,1111/1001,Children and Young People,CYP,Third Party Payments,EGA,15/04/2015,01-11365,22302.25,Edwalton Day Nursery,,,,,,,,,,
Nottinghamshire County Council,1111/1001,Children and Young People,CYP,Third Party Payments,EGA,15/04/2015,01-11366,1924.02,Keyworth Primary School,,,,,,,,,,
Nottinghamshire County Council,1111/1001,Children and Young People,CYP,Third Party Payments,EGA,15/04/2015,01-11367,14476.27,Lowater Street Playgroup,,,,,,,,,,
Nottinghamshire County Council,1111/1001,Children and Young People,CYP,Third Party Payments,EGA,15/04/2015,01-11368,18540.14,Lowdham & Epperstone Pre-School,,,,,,,,,,
Nottinghamshire County Council,1111/1001,Children and Young People,CYP,Third Party Payments,EGA,15/04/2015,01-11369,641.34,[Redacted],,,,,,,,,,
Nottinghamshire County Council,1111/1001,Children and Young People,CYP,Third Party Payments,EGA,15/04/2015,01-11370,14360.16,Hazel Hurst School,,,,,,,,,,
Nottinghamshire County Council,1111/1001,Children and Young People,CYP,Third Party Payments,EGA,15/04/2015,01-11371,1235.05,Rachel & Philip's Home From Home Ch,,,,,,,,,,
Nottinghamshire County Council,1111/1001,Children and Young People,CYP,Third Party Payments,EGA,15/04/2015,01-11372,1282.68,[Redacted],,,,,,,,,,
Nottinghamshire County Council,1111/1001,Children and Young People,CYP,Third Party Payments,EGA,15/04/2015,01-11373,8675.4,PSLA Newstead Childcare,,,,,,,,,,
Nottinghamshire County Council,1111/1001,Children and Young People,CYP,Third Party Payments,EGA,15/04/2015,01-11374,31264.93,Brookhill House Day Nursery,,,,,,,,,,
Nottinghamshire County Council,1111/1001,Children and Young People,CYP,Third Party Payments,EGA,15/04/2015,01-11375,1425.06,Benner & Bolton Childminders,,,,,,,,,,
Nottinghamshire County Council,1111/1001,Children and Young People,CYP,Third Party Payments,EGA,15/04/2015,01-11376,19832.15,Bingham Day Nursery & Pre School,,,,,,,,,,
Nottinghamshire County Council,1111/1001,Children and Young People,CYP,Third Party Payments,EGA,15/04/2015,01-11377,12425.2,Bircotes Pre-School,,,,,,,,,,
Nottinghamshire County Council,1111/1001,Children and Young People,CYP,Third Party Payments,EGA,15/04/2015,01-11378,28786.46,Bizzy Kidz,,,,,,,,,,
Nottinghamshire County Council,1111/1001,Children and Young People,CYP,Third Party Payments,EGA,15/04/2015,01-11379,7073.14,Blyth Pre-School Playgroup,,,,,,,,,,
Nottinghamshire County Council,1111/1001,Children and Young People,CYP,Third Party Payments,EGA,15/04/2015,01-11380,2565.36,[Redacted],,,,,,,,,,
Nottinghamshire County Council,1111/1001,Children and Young People,CYP,Third Party Payments,EGA,15/04/2015,01-11381,7766.64,Bramley Pips Nursery Ltd,,,,,,,,,,
Nottinghamshire County Council,1111/1001,Children and Young People,CYP,Third Party Payments,EGA,15/04/2015,01-11382,1045.04,[Redacted],,,,,,,,,,
Nottinghamshire County Council,1111/1001,Children and Young People,CYP,Third Party Payments,EGA,15/04/2015,01-11383,13800.02,Pretty Windows Ltd,,,,,,,,,,
Nottinghamshire County Council,1111/1001,Children and Young People,CYP,Third Party Payments,EGA,15/04/2015,01-11384,23371.24,Bright Sparks Day Nursery,,,,,,,,,,
Nottinghamshire County Council,1111/1001,Children and Young People,CYP,Third Party Payments,EGA,15/04/2015,01-11385,20830.32,Bright Stars Childcare,,,,,,,,,,
Nottinghamshire County Council,1111/1001,Children and Young People,CYP,Third Party Payments,EGA,15/04/2015,01-11386,23205.42,Brooklyn Day Nursery,,,,,,,,,,
Nottinghamshire County Council,1111/1001,Children and Young People,CYP,Third Party Payments,EGA,15/04/2015,01-11387,17980.2,Bullpit Road Nursery,,,,,,,,,,
Nottinghamshire County Council,1111/1001,Children and Young People,CYP,Third Party Payments,EGA,15/04/2015,01-11388,3420.14,Burnside Pre-School Nursery,,,,,,,,,,
Nottinghamshire County Council,1111/1001,Children and Young People,CYP,Third Party Payments,EGA,15/04/2015,01-11389,18993.07,Busy Bees Nursery,,,,,,,,,,
Nottinghamshire County Council,1111/1001,Children and Young People,CYP,Third Party Payments,EGA,15/04/2015,01-11390,7472.3,Busy Bees Pre-School (Sutton),,,,,,,,,,
Nottinghamshire County Council,1111/1001,Children and Young People,CYP,Third Party Payments,EGA,15/04/2015,01-11391,20212.42,Buttercross Pre School,,,,,,,,,,
Nottinghamshire County Council,1111/1001,Children and Young People,CYP,Third Party Payments,EGA,15/04/2015,01-11392,16626.2,Butterflies Nursery (West Notts Col,,,,,,,,,,
Nottinghamshire County Council,1111/1001,Children and Young People,CYP,Third Party Payments,EGA,15/04/2015,01-11393,9714.35,Carlton Hill Playgroup,,,,,,,,,,
Nottinghamshire County Council,1111/1001,Children and Young People,CYP,Third Party Payments,EGA,15/04/2015,01-11394,26412.12,Carlton & Gedling Day Nursery,,,,,,,,,,
Nottinghamshire County Council,1111/1001,Children and Young People,CYP,Third Party Payments,EGA,15/04/2015,01-11395,4639.74,Heathlands Out Of School Club,,,,,,,,,,
Nottinghamshire County Council,1111/1001,Children and Young People,CYP,Third Party Payments,EGA,15/04/2015,01-11396,9025.38,Cedar House Day Nursery,,,,,,,,,,
Nottinghamshire County Council,1111/1001,Children and Young People,CYP,Third Party Payments,EGA,15/04/2015,01-11397,33775.81,Cherubs Childcare Centre (Mansfield,,,,,,,,,,
Nottinghamshire County Council,1111/1001,Children and Young People,CYP,Third Party Payments,EGA,15/04/2015,01-11398,16959.6,Cherubs Childcare Centre Ladybrook,,,,,,,,,,
Nottinghamshire County Council,1111/1001,Children and Young People,CYP,Third Party Payments,EGA,15/04/2015,01-11399,27504.54,Cherubs Childrens Centre Wynndale,,,,,,,,,,
Nottinghamshire County Council,1111/1001,Children and Young People,CYP,Third Party Payments,EGA,15/04/2015,01-11400,23906.61,Cherubs Ryton Park,,,,,,,,,,
Nottinghamshire County Council,1111/1001,Children and Young People,CYP,Third Party Payments,EGA,15/04/2015,01-11401,48271.02,Cherubs Day Nursery,,,,,,,,,,
Nottinghamshire County Council,1111/1001,Children and Young People,CYP,Third Party Payments,EGA,15/04/2015,01-11402,1900.08,Cherubs Day Nursery Newark,,,,,,,,,,
Nottinghamshire County Council,1111/1001,Children and Young People,CYP,Third Party Payments,EGA,15/04/2015,01-11403,3800.16,Chetwynd Barracks Pre-School,,,,,,,,,,
Nottinghamshire County Council,1111/1001,Children and Young People,CYP,Third Party Payments,EGA,15/04/2015,01-11404,21260.92,Children 1st @ Breedon House,,,,,,,,,,
Nottinghamshire County Council,1111/1001,Children and Young People,CYP,Third Party Payments,EGA,15/04/2015,01-11405,962.01,[Redacted],,,,,,,,,,
Nottinghamshire County Council,1111/1001,Children and Young People,CYP,Third Party Payments,EGA,15/04/2015,01-11406,9759.33,Gotham Pre-School Playgroup,,,,,,,,,,
Nottinghamshire County Council,1111/1001,Children and Young People,CYP,Third Party Payments,EGA,15/04/2015,01-11407,23181.73,Granby House Nursery,,,,,,,,,,
Nottinghamshire County Council,1111/1001,Children and Young People,CYP,Third Party Payments,EGA,15/04/2015,01-11408,20260.04,PSLA Newstead Childcare,,,,,,,,,,
Nottinghamshire County Council,1111/1001,Children and Young People,CYP,Third Party Payments,EGA,15/04/2015,01-11409,641.34,[Redacted],,,,,,,,,,
Nottinghamshire County Council,1111/1001,Children and Young People,CYP,Third Party Payments,EGA,15/04/2015,01-11411,1235.05,[Redacted],,,,,,,,,,
Nottinghamshire County Council,1111/1001,Children and Young People,CYP,Third Party Payments,EGA,15/04/2015,01-11412,641.34,[Redacted],,,,,,,,,,
Nottinghamshire County Council,1111/1001,Children and Young People,CYP,Third Party Payments,EGA,15/04/2015,01-11413,641.34,Jelly Tots,,,,,,,,,,
Nottinghamshire County Council,1111/1001,Children and Young People,CYP,Third Party Payments,EGA,15/04/2015,01-11414,8550.36,Allsorts Playgroup,,,,,,,,,,
Nottinghamshire County Council,1111/1001,Children and Young People,CYP,Third Party Payments,EGA,15/04/2015,01-11415,15731.52,Alphabet House Day Nursery,,,,,,,,,,
Nottinghamshire County Council,1111/1001,Children and Young People,CYP,Third Party Payments,EGA,15/04/2015,01-11416,21558.18,Alphabet House Day Nursery WB,,,,,,,,,,
Nottinghamshire County Council,1111/1001,Children and Young People,CYP,Third Party Payments,EGA,15/04/2015,01-11417,27504.41,Alphabet House Nursery,,,,,,,,,,
Nottinghamshire County Council,1111/1001,Children and Young People,CYP,Third Party Payments,EGA,15/04/2015,01-11418,1274.7,Annekas Angels Childminding Service,,,,,,,,,,
Nottinghamshire County Council,1111/1001,Children and Young People,CYP,Third Party Payments,EGA,15/04/2015,01-11419,46663.68,Applegarth Day Nurseries Ltd,,,,,,,,,,
Nottinghamshire County Council,1111/1001,Children and Young People,CYP,Third Party Payments,EGA,15/04/2015,01-11420,36603,Arnold House Day Nursery,,,,,,,,,,
Nottinghamshire County Council,1111/1001,Children and Young People,CYP,Third Party Payments,EGA,15/04/2015,01-11421,12026.7,Arnold St Mary's Pre-School,,,,,,,,,,
Nottinghamshire County Council,1111/1001,Children and Young People,CYP,Third Party Payments,EGA,15/04/2015,01-11422,13609.51,Arnold View Pre-School,,,,,,,,,,
Nottinghamshire County Council,1111/1001,Children and Young People,CYP,Third Party Payments,EGA,15/04/2015,01-11423,23704.88,Ashfield Plaza Day Nursery,,,,,,,,,,
Nottinghamshire County Council,1111/1001,Children and Young People,CYP,Third Party Payments,EGA,15/04/2015,01-11424,16668.54,Attenborough Church Pre-School,,,,,,,,,,
Nottinghamshire County Council,1111/1001,Children and Young People,CYP,Third Party Payments,EGA,15/04/2015,01-11425,17412.87,Attenborough Day Nursery & Pre-Sch,,,,,,,,,,
Nottinghamshire County Council,1111/1001,Children and Young People,CYP,Third Party Payments,EGA,15/04/2015,01-11426,20077.51,Burton Joyce Wraparound Care Group,,,,,,,,,,
Nottinghamshire County Council,1111/1001,Children and Young People,CYP,Third Party Payments,EGA,15/04/2015,01-11427,9326.23,Burton Joyce Wraparound Care Group,,,,,,,,,,
Nottinghamshire County Council,1111/1001,Children and Young People,CYP,Third Party Payments,EGA,15/04/2015,01-11428,30224.41,Balderton Pre-School,,,,,,,,,,
Nottinghamshire County Council,1111/1001,Children and Young People,CYP,Third Party Payments,EGA,15/04/2015,01-11429,17553.06,Appleton Day Nursery,,,,,,,,,,
Nottinghamshire County Council,1111/1001,Children and Young People,CYP,Third Party Payments,EGA,15/04/2015,01-11430,9899.57,Abacus Pre-School,,,,,,,,,,
Nottinghamshire County Council,1111/1001,Children and Young People,CYP,Third Party Payments,EGA,15/04/2015,01-11431,21147.17,All Aboard Day Nursery,,,,,,,,,,
Nottinghamshire County Council,1111/1001,Children and Young People,CYP,Third Party Payments,EGA,15/04/2015,01-11432,12042.07,Balderton Village Day Nursery,,,,,,,,,,
Nottinghamshire County Council,1111/1001,Children and Young People,CYP,Third Party Payments,EGA,15/04/2015,01-11433,1116.36,[Redacted],,,,,,,,,,
Nottinghamshire County Council,1111/1001,Children and Young People,CYP,Third Party Payments,EGA,15/04/2015,01-11434,10783.08,Beacon Hill Day Nursery,,,,,,,,,,
Nottinghamshire County Council,1111/1001,Children and Young People,CYP,Third Party Payments,EGA,15/04/2015,01-11435,13514.76,Beeston Nursery,,,,,,,,,,
Nottinghamshire County Council,1111/1001,Children and Young People,CYP,Third Party Payments,EGA,15/04/2015,01-11436,1496.38,[Redacted],,,,,,,,,,
Nottinghamshire County Council,1111/1001,Children and Young People,CYP,Third Party Payments,EGA,15/04/2015,01-11437,25540.37,Carnarvon Pre-School,,,,,,,,,,
Nottinghamshire County Council,1111/1001,Children and Young People,CYP,Third Party Payments,EGA,15/04/2015,01-11438,16895.13,Longdale Nursery School,,,,,,,,,,
Nottinghamshire County Council,1111/1001,Children and Young People,CYP,Third Party Payments,EGA,15/04/2015,01-11446,3016.44,Happy Times,,,,,,,,,,
Nottinghamshire County Council,1111/1001,Children and Young People,CYP,Third Party Payments,EGA,15/04/2015,01-11447,641.34,[Redacted],,,,,,,,,,
Nottinghamshire County Council,1111/1001,Children and Young People,CYP,Third Party Payments,EGA,16/04/2015,01-10944,8954.32,Tiny Tots Playgroup,,,,,,,,,,
Nottinghamshire County Council,1111/1001,Children and Young People,CYP,Third Party Payments,EGA,21/04/2015,01-15264,916.2,PSLA Newstead Childcare,,,,,,,,,,
Nottinghamshire County Council,1111/1001,Children and Young People,CYP,Third Party Payments,EGA,21/04/2015,01-15265,1282.68,[Redacted],,,,,,,,,,
Nottinghamshire County Council,1111/1001,Children and Young People,CYP,Third Party Payments,EGA,21/04/2015,01-15266,14860.52,Alphabet House Day Nursery,,,,,,,,,,
Nottinghamshire County Council,1111/1001,Children and Young People,CYP,Third Party Payments,EGA,21/04/2015,01-15267,14796.94,Bramcote Pre-School Playgroup,,,,,,,,,,
Nottinghamshire County Council,1111/1001,Children and Young People,CYP,Third Party Payments,EGA,21/04/2015,01-15268,15600.32,Early Years Playgroup,,,,,,,,,,
Nottinghamshire County Council,1111/1001,Children and Young People,CYP,Third Party Payments,EGA,21/04/2015,01-15269,10181.64,Noahs Ark Playgroup,,,,,,,,,,
Nottinghamshire County Council,1111/1001,Children and Young People,CYP,Third Party Payments,EGA,21/04/2015,01-15270,950.04,Lyndsay's Childminding,,,,,,,,,,
Nottinghamshire County Council,1111/1001,Children and Young People,CYP,Third Party Payments,EGA,21/04/2015,01-15273,744.2,[Redacted],,,,,,,,,,
Nottinghamshire County Council,1111/1001,Children and Young People,CYP,Third Party Payments,EGA,22/04/2015,01-15286,916.2,PSLA Newstead Childcare,,,,,,,,,,
Nottinghamshire County Council,1111/1001,Children and Young People,CYP,Third Party Payments,EGA,22/04/2015,01-15287,6413.4,PSLA Newstead Childcare,,,,,,,,,,
Nottinghamshire County Council,1111/1001,Children and Young People,CYP,Third Party Payments,EGA,22/04/2015,01-15288,2779.06,PSLA Newstead Childcare,,,,,,,,,,
Nottinghamshire County Council,1111/1001,Children and Young People,CYP,Third Party Payments,EGA,22/04/2015,01-15289,7054.74,PSLA Newstead Childcare,,,,,,,,,,
Nottinghamshire County Council,1111/1001,Children and Young People,CYP,Third Party Payments,EGA,23/04/2015,01-15418,2399.04,[Redacted],,,,,,,,,,
Nottinghamshire County Council,1111/1001,Children and Young People,CYP,Third Party Payments,EGA,24/04/2015,01-15550,641.34,[Redacted],,,,,,,,,,
Nottinghamshire County Council,1111/1001,Children and Young People,CYP,Third Party Payments,EGA,29/04/2015,01-16069,12826.8,Abbey Hill Primary & Nursery School,,,,,,,,,,
Nottinghamshire County Council,1111/1001,Children and Young People,CYP,Third Party Payments,EGA,29/04/2015,01-16070,5106.78,[Redacted],,,,,,,,,,
Nottinghamshire County Council,1111/1001,Children and Young People,CYP,Third Party Payments,EGA,29/04/2015,01-16071,10265.22,Children's House Nursery School,,,,,,,,,,
Nottinghamshire County Council,1111/1001,Children and Young People,CYP,Third Party Payments,EGA,29/04/2015,01-16072,950.04,[Redacted],,,,,,,,,,
Nottinghamshire County Council,1111/1001,Children and Young People,CYP,Third Party Payments,EGA,29/04/2015,01-16073,1425.06,[Redacted],,,,,,,,,,
Nottinghamshire County Council,1111/1001,Children and Young People,CYP,Third Party Payments,EGA,29/04/2015,01-16074,712.53,[Redacted],,,,,,,,,,
Nottinghamshire County Council,1111/1001,Children and Young People,CYP,Third Party Payments,EGA,29/04/2015,01-16075,6507.9,Sparkle Daycare,,,,,,,,,,
Nottinghamshire County Council,1111/1001,Children and Young People,CYP,Third Party Payments,EGA,29/04/2015,01-16076,2565.11,Willoughby On The Wolds Playgroup,,,,,,,,,,
Nottinghamshire County Council,1111/1001,Children and Young People,CYP,Third Party Payments,EGA,29/04/2015,01-16149,746.46,Social Home Choices,,,,,,,,,,
Nottinghamshire County Council,1111/1001,Children and Young People,CYP,Third Party Payments,EGA,30/04/2015,01-15474,1591.38,Mini-me Childcare,,,,,,,,,,
Nottinghamshire County Council,1111/1001,Children and Young People,CYP,Third Party Payments,EGA,30/04/2015,01-15475,32326.56,Wollaton Village Day Nurseries Ltd.,,,,,,,,,,
Nottinghamshire County Council,1111/1001,Children and Young People,CYP,Third Party Payments,EGA,30/04/2015,01-15476,641.34,Hazel Hurst School,,,,,,,,,,
Nottinghamshire County Council,1111/1001,Children and Young People,CYP,Support Services,HAA,07/04/2015,01-10072,1870,All Wayz Travel,,,,,,,,,,
Nottinghamshire County Council,1111/1001,Children and Young People,CYP,Support Services,HAA,07/04/2015,01-10073,1540,All Wayz Travel,,,,,,,,,,
Nottinghamshire County Council,1111/1001,Children and Young People,CYP,Support Services,HAA,07/04/2015,01-10089,1636.8,Arrow Specialised Transport Ltd,,,,,,,,,,
Nottinghamshire County Council,1111/1001,Children and Young People,CYP,Support Services,HAA,07/04/2015,01-10154,656.37,Bridges Transport Services,,,,,,,,,,
Nottinghamshire County Council,1111/1001,Children and Young People,CYP,Support Services,HAA,07/04/2015,01-10169,987.36,Fozcabs Newark Taxis,,,,,,,,,,
Nottinghamshire County Council,1111/1001,Children and Young People,CYP,Support Services,HAA,07/04/2015,01-10170,1540,Fozcabs Newark Taxis,,,,,,,,,,
Nottinghamshire County Council,1111/1001,Children and Young People,CYP,Support Services,HAA,07/04/2015,01-10210,3479.9,Gem Mini Travel Ltd,,,,,,,,,,
Nottinghamshire County Council,1111/1001,Children and Young People,CYP,Support Services,HAA,07/04/2015,01-10211,3232.85,Gem Mini Travel Ltd,,,,,,,,,,
Nottinghamshire County Council,1111/1001,Children and Young People,CYP,Support Services,HAA,07/04/2015,01-10212,2478.6,Gem Mini Travel Ltd,,,,,,,,,,
Nottinghamshire County Council,1111/1001,Children and Young People,CYP,Support Services,HAA,07/04/2015,01-10213,3075.5,Gem Mini Travel Ltd,,,,,,,,,,
Nottinghamshire County Council,1111/1001,Children and Young People,CYP,Support Services,HAA,07/04/2015,01-10214,1980,Nottingham Minibuses & Coaches,,,,,,,,,,
Nottinghamshire County Council,1111/1001,Children and Young People,CYP,Support Services,HAA,07/04/2015,01-10217,3300,Nottingham Minibuses & Coaches,,,,,,,,,,
Nottinghamshire County Council,1111/1001,Children and Young People,CYP,Support Services,HAA,07/04/2015,01-10234,3209.6,Freeway Coaches Ltd,,,,,,,,,,
Nottinghamshire County Council,1111/1001,Children and Young People,CYP,Support Services,HAA,07/04/2015,01-10235,7987.4,Freeway Coaches Ltd,,,,,,,,,,
Nottinghamshire County Council,1111/1001,Children and Young People,CYP,Support Services,HAA,07/04/2015,01-10236,3116.07,Freeway Coaches Ltd,,,,,,,,,,
Nottinghamshire County Council,1111/1001,Children and Young People,CYP,Support Services,HAA,07/04/2015,01-10237,2805,Freeway Coaches Ltd,,,,,,,,,,
Nottinghamshire County Council,1111/1001,Children and Young People,CYP,Support Services,HAA,07/04/2015,01-10238,1744.8,Freeway Coaches Ltd,,,,,,,,,,
Nottinghamshire County Council,1111/1001,Children and Young People,CYP,Support Services,HAA,07/04/2015,01-10239,2750,Freeway Coaches Ltd,,,,,,,,,,
Nottinghamshire County Council,1111/1001,Children and Young People,CYP,Support Services,HAA,07/04/2015,01-10240,2607,Kettlewell Retford Ltd,,,,,,,,,,
Nottinghamshire County Council,1111/1001,Children and Young People,CYP,Support Services,HAA,07/04/2015,01-10241,2695,Kettlewell Retford Ltd,,,,,,,,,,
Nottinghamshire County Council,1111/1001,Children and Young People,CYP,Support Services,HAA,07/04/2015,01-10242,3300,Kettlewell Retford Ltd,,,,,,,,,,
Nottinghamshire County Council,1111/1001,Children and Young People,CYP,Support Services,HAA,07/04/2015,01-10243,2409,Kettlewell Retford Ltd,,,,,,,,,,
Nottinghamshire County Council,1111/1001,Children and Young People,CYP,Support Services,HAA,07/04/2015,01-10244,3509,Kettlewell Retford Ltd,,,,,,,,,,
Nottinghamshire County Council,1111/1001,Children and Young People,CYP,Support Services,HAA,07/04/2015,01-10245,2827,Kettlewell Retford Ltd,,,,,,,,,,
Nottinghamshire County Council,1111/1001,Children and Young People,CYP,Support Services,HAA,07/04/2015,01-10246,2827,Kettlewell Retford Ltd,,,,,,,,,,
Nottinghamshire County Council,1111/1001,Children and Young People,CYP,Support Services,HAA,07/04/2015,01-10249,3188.25,C W Moxon Ltd,,,,,,,,,,
Nottinghamshire County Council,1111/1001,Children and Young People,CYP,Support Services,HAA,07/04/2015,01-10250,7260,C W Moxon Ltd,,,,,,,,,,
Nottinghamshire County Council,1111/1001,Children and Young People,CYP,Support Services,HAA,07/04/2015,01-10251,3289.2,C W Moxon Ltd,,,,,,,,,,
Nottinghamshire County Council,1111/1001,Children and Young People,CYP,Support Services,HAA,07/04/2015,01-10252,2927,C W Moxon Ltd,,,,,,,,,,
Nottinghamshire County Council,1111/1001,Children and Young People,CYP,Support Services,HAA,07/04/2015,01-10253,3391.2,C W Moxon Ltd,,,,,,,,,,
Nottinghamshire County Council,1111/1001,Children and Young People,CYP,Support Services,HAA,07/04/2015,01-10254,2737,C W Moxon Ltd,,,,,,,,,,
Nottinghamshire County Council,1111/1001,Children and Young People,CYP,Support Services,HAA,07/04/2015,01-10257,572,Rio Cabs,,,,,,,,,,
Nottinghamshire County Council,1111/1001,Children and Young People,CYP,Support Services,HAA,07/04/2015,01-10262,800,Ace Cars,,,,,,,,,,
Nottinghamshire County Council,1111/1001,Children and Young People,CYP,Support Services,HAA,07/04/2015,01-10266,550,Alfa Taxis,,,,,,,,,,
Nottinghamshire County Council,1111/1001,Children and Young People,CYP,Support Services,HAA,07/04/2015,01-10268,1210,Broadsword Cars,,,,,,,,,,
Nottinghamshire County Council,1111/1001,Children and Young People,CYP,Support Services,HAA,07/04/2015,01-10269,2952.5,Nottingham Coaches,,,,,,,,,,
Nottinghamshire County Council,1111/1001,Children and Young People,CYP,Support Services,HAA,07/04/2015,01-10270,3058,Nottingham Coaches,,,,,,,,,,
Nottinghamshire County Council,1111/1001,Children and Young People,CYP,Support Services,HAA,07/04/2015,01-10271,2460,Nottingham Coaches,,,,,,,,,,
Nottinghamshire County Council,1111/1001,Children and Young People,CYP,Support Services,HAA,07/04/2015,01-10272,3066,Nottingham Coaches,,,,,,,,,,
Nottinghamshire County Council,1111/1001,Children and Young People,CYP,Support Services,HAA,07/04/2015,01-10273,3267.2,Nottingham Coaches,,,,,,,,,,
Nottinghamshire County Council,1111/1001,Children and Young People,CYP,Support Services,HAA,07/04/2015,01-10338,1760,Midland Fleet Maintenance,,,,,,,,,,
Nottinghamshire County Council,1111/1001,Children and Young People,CYP,Support Services,HAA,07/04/2015,01-10372,820,Ng11 Cars,,,,,,,,,,
Nottinghamshire County Council,1111/1001,Children and Young People,CYP,Support Services,HAA,07/04/2015,01-10376,2596,Sprays Transport Ltd,,,,,,,,,,
Nottinghamshire County Council,1111/1001,Children and Young People,CYP,Support Services,HAA,07/04/2015,01-10407,1683,F & J Marriott T/A Unity Coaches,,,,,,,,,,
Nottinghamshire County Council,1111/1001,Children and Young People,CYP,Support Services,HAA,07/04/2015,01-10408,2838,F & J Marriott T/A Unity Coaches,,,,,,,,,,
Nottinghamshire County Council,1111/1001,Children and Young People,CYP,Support Services,HAA,07/04/2015,01-10409,2044,F & J Marriott T/A Unity Coaches,,,,,,,,,,
Nottinghamshire County Council,1111/1001,Children and Young People,CYP,Support Services,HAA,07/04/2015,01-10420,3520,AOT Coaches,,,,,,,,,,
Nottinghamshire County Council,1111/1001,Children and Young People,CYP,Support Services,HAA,07/04/2015,01-10421,3520,AOT Coaches,,,,,,,,,,
Nottinghamshire County Council,1111/1001,Children and Young People,CYP,Support Services,HAA,07/04/2015,01-10422,3261,AOT Coaches,,,,,,,,,,
Nottinghamshire County Council,1111/1001,Children and Young People,CYP,Support Services,HAA,07/04/2015,01-10423,2563,AOT Coaches,,,,,,,,,,
Nottinghamshire County Council,1111/1001,Children and Young People,CYP,Support Services,HAA,07/04/2015,01-10424,2555,AOT Coaches,,,,,,,,,,
Nottinghamshire County Council,1111/1001,Children and Young People,CYP,Support Services,HAA,07/04/2015,01-10425,2806,AOT Coaches,,,,,,,,,,
Nottinghamshire County Council,1111/1001,Children and Young People,CYP,Support Services,HAA,07/04/2015,01-10429,2039.8,Marshalls Of Sutton On Trent Ltd,,,,,,,,,,
Nottinghamshire County Council,1111/1001,Children and Young People,CYP,Support Services,HAA,07/04/2015,01-10438,3300,Marshalls Of Sutton On Trent Ltd,,,,,,,,,,
Nottinghamshire County Council,1111/1001,Children and Young People,CYP,Support Services,HAA,07/04/2015,01-10440,2178,Marshalls Of Sutton On Trent Ltd,,,,,,,,,,
Nottinghamshire County Council,1111/1001,Children and Young People,CYP,Support Services,HAA,07/04/2015,01-10441,3630,Marshalls Of Sutton On Trent Ltd,,,,,,,,,,
Nottinghamshire County Council,1111/1001,Children and Young People,CYP,Support Services,HAA,07/04/2015,01-10442,1909.44,Marshalls Of Sutton On Trent Ltd,,,,,,,,,,
Nottinghamshire County Council,1111/1001,Children and Young People,CYP,Support Services,HAA,07/04/2015,01-10444,1386,Meden Travel,,,,,,,,,,
Nottinghamshire County Council,1111/1001,Children and Young People,CYP,Support Services,HAA,07/04/2015,01-10451,1195.18,Wallis Coachways,,,,,,,,,,
Nottinghamshire County Council,1111/1001,Children and Young People,CYP,Support Services,HAA,07/04/2015,01-10452,1878.14,Wallis Coachways,,,,,,,,,,
Nottinghamshire County Council,1111/1001,Children and Young People,CYP,Support Services,HAA,07/04/2015,01-10455,1032.6,Cotswold CVS Trading Ltd,,,,,,,,,,
Nottinghamshire County Council,1111/1001,Children and Young People,CYP,Support Services,HAA,09/04/2015,01-10622,2156,Wilfreda Beehive,,,,,,,,,,
Nottinghamshire County Council,1111/1001,Children and Young People,CYP,Support Services,HAA,09/04/2015,01-10623,4590,Isle Coaches,,,,,,,,,,
Nottinghamshire County Council,1111/1001,Children and Young People,CYP,Support Services,HAA,13/04/2015,01-10735,2780.4,Sharpes Of Nottingham,,,,,,,,,,
Nottinghamshire County Council,1111/1001,Children and Young People,CYP,Support Services,HAA,13/04/2015,01-10737,3370.4,Sharpes Of Nottingham,,,,,,,,,,
Nottinghamshire County Council,1111/1001,Children and Young People,CYP,Support Services,HAA,13/04/2015,01-10738,3149.9,Sharpes Of Nottingham,,,,,,,,,,
Nottinghamshire County Council,1111/1001,Children and Young People,CYP,Support Services,HAA,13/04/2015,01-10739,2385.24,Sharpes Of Nottingham,,,,,,,,,,
Nottinghamshire County Council,1111/1001,Children and Young People,CYP,Support Services,HAA,13/04/2015,01-10740,3355,Sharpes Of Nottingham,,,,,,,,,,
Nottinghamshire County Council,1111/1001,Children and Young People,CYP,Support Services,HAA,13/04/2015,01-10782,1320,K & R Cars,,,,,,,,,,
Nottinghamshire County Council,1111/1001,Children and Young People,CYP,Support Services,HAA,13/04/2015,01-10783,3289,Silverdale Tours Nottm Ltd,,,,,,,,,,
Nottinghamshire County Council,1111/1001,Children and Young People,CYP,Support Services,HAA,13/04/2015,01-10798,4063.92,Stagecoach Services Ltd,,,,,,,,,,
Nottinghamshire County Council,1111/1001,Children and Young People,CYP,Support Services,HAA,13/04/2015,01-10802,5622.95,Stagecoach Services Ltd,,,,,,,,,,
Nottinghamshire County Council,1111/1001,Children and Young People,CYP,Support Services,HAA,13/04/2015,01-10803,5630.85,Stagecoach Services Ltd,,,,,,,,,,
Nottinghamshire County Council,1111/1001,Children and Young People,CYP,Support Services,HAA,13/04/2015,01-10812,4021.49,Stagecoach Services Ltd,,,,,,,,,,
Nottinghamshire County Council,1111/1001,Children and Young People,CYP,Support Services,HAA,13/04/2015,01-10816,1350.36,Stagecoach Services Ltd,,,,,,,,,,
Nottinghamshire County Council,1111/1001,Children and Young People,CYP,Support Services,HAA,13/04/2015,01-10823,1716.88,Stagecoach Services Ltd,,,,,,,,,,
Nottinghamshire County Council,1111/1001,Children and Young People,CYP,Support Services,HAA,13/04/2015,01-10824,1716.88,Stagecoach Services Ltd,,,,,,,,,,
Nottinghamshire County Council,1111/1001,Children and Young People,CYP,Support Services,HAA,13/04/2015,01-10826,3426.03,Travel Wright Ltd,,,,,,,,,,
Nottinghamshire County Council,1111/1001,Children and Young People,CYP,Support Services,HAA,13/04/2015,01-10827,3859.68,Travel Wright Ltd,,,,,,,,,,
Nottinghamshire County Council,1111/1001,Children and Young People,CYP,Support Services,HAA,13/04/2015,01-10828,4659.91,Travel Wright Ltd,,,,,,,,,,
Nottinghamshire County Council,1111/1001,Children and Young People,CYP,Support Services,HAA,13/04/2015,01-10830,120,Travel Wright Ltd,,,,,,,,,,
Nottinghamshire County Council,1111/1001,Children and Young People,CYP,Support Services,HAA,13/04/2015,01-10833,3518.9,Travel Wright Ltd,,,,,,,,,,
Nottinghamshire County Council,1111/1001,Children and Young People,CYP,Support Services,HAA,13/04/2015,01-10834,1893.71,Travel Wright Ltd,,,,,,,,,,
Nottinghamshire County Council,1111/1001,Children and Young People,CYP,Support Services,HAA,13/04/2015,01-10838,1738,Paul S Winson Coaches,,,,,,,,,,
Nottinghamshire County Council,1111/1001,Children and Young People,CYP,Support Services,HAA,13/04/2015,01-10841,2310,Travel Liner,,,,,,,,,,
Nottinghamshire County Council,1111/1001,Children and Young People,CYP,Support Services,HAA,14/04/2015,01-11014,2830.35,Sharpes Of Nottingham,,,,,,,,,,
Nottinghamshire County Council,1111/1001,Children and Young People,CYP,Support Services,HAA,14/04/2015,01-11015,2910.8,Sharpes Of Nottingham,,,,,,,,,,
Nottinghamshire County Council,1111/1001,Children and Young People,CYP,Support Services,HAA,14/04/2015,01-11016,2623.6,Sharpes Of Nottingham,,,,,,,,,,
Nottinghamshire County Council,1111/1001,Children and Young People,CYP,Support Services,HAA,14/04/2015,01-11017,2883.6,Sharpes Of Nottingham,,,,,,,,,,
Nottinghamshire County Council,1111/1001,Children and Young People,CYP,Support Services,HAA,14/04/2015,01-11018,2549.65,Sharpes Of Nottingham,,,,,,,,,,
Nottinghamshire County Council,1111/1001,Children and Young People,CYP,Support Services,HAA,14/04/2015,01-11019,2803,Sharpes Of Nottingham,,,,,,,,,,
Nottinghamshire County Council,1111/1001,Children and Young People,CYP,Support Services,HAA,14/04/2015,01-11033,3564.4,Glenn Ryder Coaches,,,,,,,,,,
Nottinghamshire County Council,1111/1001,Children and Young People,CYP,Support Services,HAA,14/04/2015,01-11034,3664.55,Glenn Ryder Coaches,,,,,,,,,,
Nottinghamshire County Council,1111/1001,Children and Young People,CYP,Support Services,HAA,14/04/2015,01-11035,3511.2,Johnson Bros Tours Ltd,,,,,,,,,,
Nottinghamshire County Council,1111/1001,Children and Young People,CYP,Support Services,HAA,14/04/2015,01-11036,6010.05,Johnson Bros Tours Ltd,,,,,,,,,,
Nottinghamshire County Council,1111/1001,Children and Young People,CYP,Support Services,HAA,14/04/2015,01-11037,3080,Johnson Bros Tours Ltd,,,,,,,,,,
Nottinghamshire County Council,1111/1001,Children and Young People,CYP,Support Services,HAA,14/04/2015,01-11038,3173.6,Johnson Bros Tours Ltd,,,,,,,,,,
Nottinghamshire County Council,1111/1001,Children and Young People,CYP,Support Services,HAA,14/04/2015,01-11039,3923,Johnson Bros Tours Ltd,,,,,,,,,,
Nottinghamshire County Council,1111/1001,Children and Young People,CYP,Support Services,HAA,14/04/2015,01-11040,13586.6,Johnson Bros Tours Ltd,,,,,,,,,,
Nottinghamshire County Council,1111/1001,Children and Young People,CYP,Support Services,HAA,14/04/2015,01-11041,21646.6,Johnson Bros Tours Ltd,,,,,,,,,,
Nottinghamshire County Council,1111/1001,Children and Young People,CYP,Support Services,HAA,14/04/2015,01-11042,18700,Johnson Bros Tours Ltd,,,,,,,,,,
Nottinghamshire County Council,1111/1001,Children and Young People,CYP,Support Services,HAA,14/04/2015,01-11050,2493.04,Arnold Acorn Travel,,,,,,,,,,
Nottinghamshire County Council,1111/1001,Children and Young People,CYP,Support Services,HAA,14/04/2015,01-11075,1200,Abacus Cars,,,,,,,,,,
Nottinghamshire County Council,1111/1001,Children and Young People,CYP,Support Services,HAA,14/04/2015,01-11083,2747.26,AOT Coaches,,,,,,,,,,
Nottinghamshire County Council,1111/1001,Children and Young People,CYP,Support Services,HAA,14/04/2015,01-11084,2790.26,AOT Coaches,,,,,,,,,,
Nottinghamshire County Council,1111/1001,Children and Young People,CYP,Support Services,HAA,14/04/2015,01-11085,2854.48,AOT Coaches,,,,,,,,,,
Nottinghamshire County Council,1111/1001,Children and Young People,CYP,Support Services,HAA,14/04/2015,01-11090,2727.7,Jb Tours Watnall Ltd,,,,,,,,,,
Nottinghamshire County Council,1111/1001,Children and Young People,CYP,Support Services,HAA,14/04/2015,01-11091,2871.75,Jb Tours Watnall Ltd,,,,,,,,,,
Nottinghamshire County Council,1111/1001,Children and Young People,CYP,Support Services,HAA,14/04/2015,01-11092,2383.6,Jb Tours Watnall Ltd,,,,,,,,,,
Nottinghamshire County Council,1111/1001,Children and Young People,CYP,Support Services,HAA,14/04/2015,01-11098,3297,Tiger European Uk Ltd,,,,,,,,,,
Nottinghamshire County Council,1111/1001,Children and Young People,CYP,Support Services,HAA,14/04/2015,01-11099,3238.4,Tiger European Uk Ltd,,,,,,,,,,
Nottinghamshire County Council,1111/1001,Children and Young People,CYP,Support Services,HAA,14/04/2015,01-11100,4070,Tiger European Uk Ltd,,,,,,,,,,
Nottinghamshire County Council,1111/1001,Children and Young People,CYP,Support Services,HAA,14/04/2015,01-11102,14416.6,Travel Wright Ltd,,,,,,,,,,
Nottinghamshire County Council,1111/1001,Children and Young People,CYP,Support Services,HAA,16/04/2015,01-11590,1339.8,Nunns Cars,,,,,,,,,,
Nottinghamshire County Council,1111/1001,Children and Young People,CYP,Support Services,HAA,16/04/2015,01-11591,2591.6,Silverdale Tours Nottm Ltd,,,,,,,,,,
Nottinghamshire County Council,1111/1001,Children and Young People,CYP,Support Services,HAA,16/04/2015,01-11592,3521.1,Silverdale Tours Nottm Ltd,,,,,,,,,,
Nottinghamshire County Council,1111/1001,Children and Young People,CYP,Support Services,HAA,16/04/2015,01-11593,3062.4,Silverdale Tours Nottm Ltd,,,,,,,,,,
Nottinghamshire County Council,1111/1001,Children and Young People,CYP,Support Services,HAA,16/04/2015,01-11594,3261.5,Silverdale Tours Nottm Ltd,,,,,,,,,,
Nottinghamshire County Council,1111/1001,Children and Young People,CYP,Support Services,HAA,16/04/2015,01-11595,2968.9,Silverdale Tours Nottm Ltd,,,,,,,,,,
Nottinghamshire County Council,1111/1001,Children and Young People,CYP,Support Services,HAA,16/04/2015,01-11596,2295,Silverdale Tours Nottm Ltd,,,,,,,,,,
Nottinghamshire County Council,1111/1001,Children and Young People,CYP,Support Services,HAA,16/04/2015,01-11597,2951.5,Silverdale Tours Nottm Ltd,,,,,,,,,,
Nottinghamshire County Council,1111/1001,Children and Young People,CYP,Support Services,HAA,16/04/2015,01-11598,2301.3,Silverdale Tours Nottm Ltd,,,,,,,,,,
Nottinghamshire County Council,1111/1001,Children and Young People,CYP,Support Services,HAA,16/04/2015,01-11599,3050,Tiger European Uk Ltd,,,,,,,,,,
Nottinghamshire County Council,1111/1001,Children and Young People,CYP,Support Services,HAA,16/04/2015,01-11600,2940.52,Tiger European Uk Ltd,,,,,,,,,,
Nottinghamshire County Council,1111/1001,Children and Young People,CYP,Support Services,HAA,16/04/2015,01-11601,2814,Tiger European Uk Ltd,,,,,,,,,,
Nottinghamshire County Council,1111/1001,Children and Young People,CYP,Support Services,HAA,16/04/2015,01-11602,3188,Tiger European Uk Ltd,,,,,,,,,,
Nottinghamshire County Council,1111/1001,Children and Young People,CYP,Support Services,HAA,16/04/2015,01-11603,3432,Tiger European Uk Ltd,,,,,,,,,,
Nottinghamshire County Council,1111/1001,Children and Young People,CYP,Support Services,HAA,16/04/2015,01-11604,3214,Tiger European Uk Ltd,,,,,,,,,,
Nottinghamshire County Council,1111/1001,Children and Young People,CYP,Support Services,HAA,16/04/2015,01-11605,3213.5,Tiger European Uk Ltd,,,,,,,,,,
Nottinghamshire County Council,1111/1001,Children and Young People,CYP,Support Services,HAA,16/04/2015,01-11606,3575.6,Tiger European Uk Ltd,,,,,,,,,,
Nottinghamshire County Council,1111/1001,Children and Young People,CYP,Support Services,HAA,16/04/2015,01-11607,1571,Tiger European Uk Ltd,,,,,,,,,,
Nottinghamshire County Council,1111/1001,Children and Young People,CYP,Support Services,HAA,16/04/2015,01-11609,2512.77,Travel Wright Ltd,,,,,,,,,,
Nottinghamshire County Council,1111/1001,Children and Young People,CYP,Support Services,HAA,16/04/2015,01-11611,2087.4,Ashfield Travel,,,,,,,,,,
Nottinghamshire County Council,1111/1001,Children and Young People,CYP,Support Services,HAA,16/04/2015,01-11612,1760,P & P Taxis,,,,,,,,,,
Nottinghamshire County Council,1111/1001,Children and Young People,CYP,Support Services,HAA,16/04/2015,01-11613,1394.14,Bassetlaw Action Centre,,,,,,,,,,
Nottinghamshire County Council,1111/1001,Children and Young People,CYP,Support Services,HAA,16/04/2015,01-11614,2851.2,Bassetlaw Action Centre,,,,,,,,,,
Nottinghamshire County Council,1111/1001,Children and Young People,CYP,Support Services,HAA,17/04/2015,01-11687,1916.4,Butler Brothers Ltd,,,,,,,,,,
Nottinghamshire County Council,1111/1001,Children and Young People,CYP,Support Services,HAA,17/04/2015,01-11688,2795.9,Butler Brothers Ltd,,,,,,,,,,
Nottinghamshire County Council,1111/1001,Children and Young People,CYP,Support Services,HAA,17/04/2015,01-11693,3751.31,Stagecoach Services Ltd,,,,,,,,,,
Nottinghamshire County Council,1111/1001,Children and Young People,CYP,Support Services,HAA,21/04/2015,01-15236,720,D G Private Hire Ltd,,,,,,,,,,
Nottinghamshire County Council,1111/1001,Children and Young People,CYP,Support Services,HAA,21/04/2015,01-15244,800,D G Private Hire Ltd,,,,,,,,,,
Nottinghamshire County Council,1111/1001,Children and Young People,CYP,Support Services,HAA,21/04/2015,01-15255,8174.4,Ashfield Academy,,,,,,,,,,
Nottinghamshire County Council,1111/1001,Children and Young People,CYP,Support Services,HAA,22/04/2015,01-15319,840,D G Private Hire Ltd,,,,,,,,,,
Nottinghamshire County Council,1111/1001,Children and Young People,CYP,Support Services,HAA,24/04/2015,01-15562,502.95,Dial A Trip,,,,,,,,,,
Nottinghamshire County Council,1111/1001,Children and Young People,CYP,Support Services,HAA,24/04/2015,01-15567,2341,Lowes Coaches Ltd,,,,,,,,,,
Nottinghamshire County Council,1111/1001,Children and Young People,CYP,Support Services,HAA,24/04/2015,01-15568,2623,Lowes Coaches Ltd,,,,,,,,,,
Nottinghamshire County Council,1111/1001,Children and Young People,CYP,Support Services,HAA,24/04/2015,01-15569,3179,Lowes Coaches Ltd,,,,,,,,,,
Nottinghamshire County Council,1111/1001,Children and Young People,CYP,Support Services,HAA,24/04/2015,01-15570,3099,Lowes Coaches Ltd,,,,,,,,,,
Nottinghamshire County Council,1111/1001,Adult Social Care and Health,ASCH,Premises Related,BAA,14/04/2015,01-10878,519.5,Beardsall Builders Ltd,,,,,,,,,,
Nottinghamshire County Council,1111/1001,Adult Social Care and Health,ASCH,Premises Related,BAA,24/04/2015,01-15551,604,Key Construction,,,,,,,,,,
Nottinghamshire County Council,1111/1001,Adult Social Care and Health,ASCH,Premises Related,BAA,24/04/2015,01-15552,625,BL Property Services,,,,,,,,,,
Nottinghamshire County Council,1111/1001,Adult Social Care and Health,ASCH,Premises Related,BFA,14/04/2015,01-10879,2023.48,Anglian Water,,,,,,,,,,
Nottinghamshire County Council,1111/1001,Adult Social Care and Health,ASCH,Transport Related,CBA,07/04/2015,01-10413,3248.82,F & J Marriott T/A Unity Coaches,,,,,,,,,,
Nottinghamshire County Council,1111/1001,Adult Social Care and Health,ASCH,Transport Related,CBA,07/04/2015,01-10415,3120.8,F & J Marriott T/A Unity Coaches,,,,,,,,,,
Nottinghamshire County Council,1111/1001,Adult Social Care and Health,ASCH,Transport Related,CBA,07/04/2015,01-10445,1736.31,Aj Travel,,,,,,,,,,
Nottinghamshire County Council,1111/1001,Adult Social Care and Health,ASCH,Transport Related,CBA,07/04/2015,01-10453,4730.91,Cotswold CVS Trading Ltd,,,,,,,,,,
Nottinghamshire County Council,1111/1001,Adult Social Care and Health,ASCH,Transport Related,CBA,09/04/2015,01-10621,2459.82,Ja Travel Ltd,,,,,,,,,,
Nottinghamshire County Council,1111/1001,Adult Social Care and Health,ASCH,Transport Related,CBA,13/04/2015,01-10778,3619,Vallances Coaches,,,,,,,,,,
Nottinghamshire County Council,1111/1001,Adult Social Care and Health,ASCH,Transport Related,CBA,16/04/2015,01-11574,3570.82,Mct Uk Ltd,,,,,,,,,,
Nottinghamshire County Council,1111/1001,Adult Social Care and Health,ASCH,Transport Related,CBA,22/04/2015,01-15314,3199.49,BN Gibson Ltd,,,,,,,,,,
Nottinghamshire County Council,1111/1001,Adult Social Care and Health,ASCH,Transport Related,CCA,07/04/2015,01-10070,386.7,All Wayz Travel,,,,,,,,,,
Nottinghamshire County Council,1111/1001,Adult Social Care and Health,ASCH,Transport Related,CCA,07/04/2015,01-10078,222.37,Alpha Cars,,,,,,,,,,
Nottinghamshire County Council,1111/1001,Adult Social Care and Health,ASCH,Transport Related,CCA,07/04/2015,01-10140,630,Bridges Transport Services,,,,,,,,,,
Nottinghamshire County Council,1111/1001,Adult Social Care and Health,ASCH,Transport Related,CCA,07/04/2015,01-10161,3190,Bridges Transport Services,,,,,,,,,,
Nottinghamshire County Council,1111/1001,Adult Social Care and Health,ASCH,Transport Related,CCA,07/04/2015,01-10163,680,Bridges Transport Services,,,,,,,,,,
Nottinghamshire County Council,1111/1001,Adult Social Care and Health,ASCH,Transport Related,CCA,07/04/2015,01-10192,1374.12,Midfield Travel,,,,,,,,,,
Nottinghamshire County Council,1111/1001,Adult Social Care and Health,ASCH,Transport Related,CCA,07/04/2015,01-10226,1432,P & P Taxis,,,,,,,,,,
Nottinghamshire County Council,1111/1001,Adult Social Care and Health,ASCH,Transport Related,CCA,07/04/2015,01-10230,522,P & P Taxis,,,,,,,,,,
Nottinghamshire County Council,1111/1001,Adult Social Care and Health,ASCH,Transport Related,CCA,07/04/2015,01-10231,1782,P & P Taxis,,,,,,,,,,
Nottinghamshire County Council,1111/1001,Adult Social Care and Health,ASCH,Transport Related,CCA,07/04/2015,01-10449,663,Town Cars (UK) Ltd,,,,,,,,,,
Nottinghamshire County Council,1111/1001,Adult Social Care and Health,ASCH,Transport Related,CCA,13/04/2015,01-10761,500.52,F4Control Ltd (t/a First4care),,,,,,,,,,
Nottinghamshire County Council,1111/1001,Adult Social Care and Health,ASCH,Transport Related,CCA,13/04/2015,01-10768,1002.1,Erewash Community Transport,,,,,,,,,,
Nottinghamshire County Council,1111/1001,Adult Social Care and Health,ASCH,Transport Related,CCA,14/04/2015,01-11052,740.88,Acorn Contracts,,,,,,,,,,
Nottinghamshire County Council,1111/1001,Adult Social Care and Health,ASCH,Transport Related,CCA,14/04/2015,01-11107,296.67,Diamond Cars,,,,,,,,,,
Nottinghamshire County Council,1111/1001,Adult Social Care and Health,ASCH,Transport Related,CCA,16/04/2015,01-11587,640,Abacus Cars,,,,,,,,,,
Nottinghamshire County Council,1111/1001,Adult Social Care and Health,ASCH,Transport Related,CCA,17/04/2015,01-11696,810,AAA Cabs,,,,,,,,,,
Nottinghamshire County Council,1111/1001,Adult Social Care and Health,ASCH,Transport Related,CCA,22/04/2015,01-15314,448.13,BN Gibson Ltd,,,,,,,,,,
Nottinghamshire County Council,1111/1001,Adult Social Care and Health,ASCH,Transport Related,CCA,24/04/2015,01-15566,648.8,SJW (Muskham) Ltd T/A Z Cars,,,,,,,,,,
Nottinghamshire County Council,1111/1001,Adult Social Care and Health,ASCH,Transport Related,CDA,07/04/2015,01-10057,3253.8,Taxicover Uk Ltd,,,,,,,,,,
Nottinghamshire County Council,1111/1001,Adult Social Care and Health,ASCH,Transport Related,CDA,07/04/2015,01-10076,972,Alpha Cars,,,,,,,,,,
Nottinghamshire County Council,1111/1001,Adult Social Care and Health,ASCH,Transport Related,CDA,07/04/2015,01-10110,1188,Arrow Specialised Transport Ltd,,,,,,,,,,
Nottinghamshire County Council,1111/1001,Adult Social Care and Health,ASCH,Transport Related,CDA,07/04/2015,01-10113,2552,Arrow Specialised Transport Ltd,,,,,,,,,,
Nottinghamshire County Council,1111/1001,Adult Social Care and Health,ASCH,Transport Related,CDA,07/04/2015,01-10114,1318.9,Arrow Specialised Transport Ltd,,,,,,,,,,
Nottinghamshire County Council,1111/1001,Adult Social Care and Health,ASCH,Transport Related,CDA,07/04/2015,01-10118,260.48,Arrow Specialised Transport Ltd,,,,,,,,,,
Nottinghamshire County Council,1111/1001,Adult Social Care and Health,ASCH,Transport Related,CDA,07/04/2015,01-10134,960,Bridges Transport Services,,,,,,,,,,
Nottinghamshire County Council,1111/1001,Adult Social Care and Health,ASCH,Transport Related,CDA,07/04/2015,01-10135,740,Bridges Transport Services,,,,,,,,,,
Nottinghamshire County Council,1111/1001,Adult Social Care and Health,ASCH,Transport Related,CDA,07/04/2015,01-10136,3471.38,Bridges Transport Services,,,,,,,,,,
Nottinghamshire County Council,1111/1001,Adult Social Care and Health,ASCH,Transport Related,CDA,07/04/2015,01-10137,2144.78,Bridges Transport Services,,,,,,,,,,
Nottinghamshire County Council,1111/1001,Adult Social Care and Health,ASCH,Transport Related,CDA,07/04/2015,01-10138,850,Bridges Transport Services,,,,,,,,,,
Nottinghamshire County Council,1111/1001,Adult Social Care and Health,ASCH,Transport Related,CDA,07/04/2015,01-10139,1305,Bridges Transport Services,,,,,,,,,,
Nottinghamshire County Council,1111/1001,Adult Social Care and Health,ASCH,Transport Related,CDA,07/04/2015,01-10141,1320,Bridges Transport Services,,,,,,,,,,
Nottinghamshire County Council,1111/1001,Adult Social Care and Health,ASCH,Transport Related,CDA,07/04/2015,01-10142,630,Bridges Transport Services,,,,,,,,,,
Nottinghamshire County Council,1111/1001,Adult Social Care and Health,ASCH,Transport Related,CDA,07/04/2015,01-10183,584.65,Fozcabs Newark Taxis,,,,,,,,,,
Nottinghamshire County Council,1111/1001,Adult Social Care and Health,ASCH,Transport Related,CDA,07/04/2015,01-10188,2637.36,Hawkins Taxis & Transport,,,,,,,,,,
Nottinghamshire County Council,1111/1001,Adult Social Care and Health,ASCH,Transport Related,CDA,07/04/2015,01-10192,1374.12,Midfield Travel,,,,,,,,,,
Nottinghamshire County Council,1111/1001,Adult Social Care and Health,ASCH,Transport Related,CDA,07/04/2015,01-10209,1315.8,Beechwood Taxis,,,,,,,,,,
Nottinghamshire County Council,1111/1001,Adult Social Care and Health,ASCH,Transport Related,CDA,07/04/2015,01-10232,1034,P & P Taxis,,,,,,,,,,
Nottinghamshire County Council,1111/1001,Adult Social Care and Health,ASCH,Transport Related,CDA,07/04/2015,01-10233,1188,P & P Taxis,,,,,,,,,,
Nottinghamshire County Council,1111/1001,Adult Social Care and Health,ASCH,Transport Related,CDA,07/04/2015,01-10345,735.9,CBC Taxis Ltd,,,,,,,,,,
Nottinghamshire County Council,1111/1001,Adult Social Care and Health,ASCH,Transport Related,CDA,07/04/2015,01-10346,1053.72,CBC Taxis Ltd,,,,,,,,,,
Nottinghamshire County Council,1111/1001,Adult Social Care and Health,ASCH,Transport Related,CDA,07/04/2015,01-10347,790.72,CBC Taxis Ltd,,,,,,,,,,
Nottinghamshire County Council,1111/1001,Adult Social Care and Health,ASCH,Transport Related,CDA,07/04/2015,01-10353,493.24,Arrow Specialised Transport Ltd,,,,,,,,,,
Nottinghamshire County Council,1111/1001,Adult Social Care and Health,ASCH,Transport Related,CDA,07/04/2015,01-10355,888.62,Arrow Specialised Transport Ltd,,,,,,,,,,
Nottinghamshire County Council,1111/1001,Adult Social Care and Health,ASCH,Transport Related,CDA,07/04/2015,01-10375,576,Ng11 Cars,,,,,,,,,,
Nottinghamshire County Council,1111/1001,Adult Social Care and Health,ASCH,Transport Related,CDA,07/04/2015,01-10413,348.58,F & J Marriott T/A Unity Coaches,,,,,,,,,,
Nottinghamshire County Council,1111/1001,Adult Social Care and Health,ASCH,Transport Related,CDA,07/04/2015,01-10416,709.3,Aaeron Cars,,,,,,,,,,
Nottinghamshire County Council,1111/1001,Adult Social Care and Health,ASCH,Transport Related,CDA,07/04/2015,01-10417,605.23,Aaeron Cars,,,,,,,,,,
Nottinghamshire County Council,1111/1001,Adult Social Care and Health,ASCH,Transport Related,CDA,07/04/2015,01-10445,262.89,Aj Travel,,,,,,,,,,
Nottinghamshire County Council,1111/1001,Adult Social Care and Health,ASCH,Transport Related,CDA,09/04/2015,01-10613,542.7,Ace Of Mansfield Ltd,,,,,,,,,,
Nottinghamshire County Council,1111/1001,Adult Social Care and Health,ASCH,Transport Related,CDA,09/04/2015,01-10615,540,Ace Of Mansfield Ltd,,,,,,,,,,
Nottinghamshire County Council,1111/1001,Adult Social Care and Health,ASCH,Transport Related,CDA,13/04/2015,01-10734,556.4,Alert Cars Ltd,,,,,,,,,,
Nottinghamshire County Council,1111/1001,Adult Social Care and Health,ASCH,Transport Related,CDA,13/04/2015,01-10743,1805.32,F4Control Ltd (t/a First4care),,,,,,,,,,
Nottinghamshire County Council,1111/1001,Adult Social Care and Health,ASCH,Transport Related,CDA,13/04/2015,01-10757,228.8,F4Control Ltd (t/a First4care),,,,,,,,,,
Nottinghamshire County Council,1111/1001,Adult Social Care and Health,ASCH,Transport Related,CDA,13/04/2015,01-10761,500.52,F4Control Ltd (t/a First4care),,,,,,,,,,
Nottinghamshire County Council,1111/1001,Adult Social Care and Health,ASCH,Transport Related,CDA,13/04/2015,01-10764,3328.6,F4Control Ltd (t/a First4care),,,,,,,,,,
Nottinghamshire County Council,1111/1001,Adult Social Care and Health,ASCH,Transport Related,CDA,13/04/2015,01-10839,2503.6,Ace Cars,,,,,,,,,,
Nottinghamshire County Council,1111/1001,Adult Social Care and Health,ASCH,Transport Related,CDA,14/04/2015,01-11048,744.6,Ace Of Mansfield Ltd,,,,,,,,,,
Nottinghamshire County Council,1111/1001,Adult Social Care and Health,ASCH,Transport Related,CDA,14/04/2015,01-11049,600,Ace Of Mansfield Ltd,,,,,,,,,,
Nottinghamshire County Council,1111/1001,Adult Social Care and Health,ASCH,Transport Related,CDA,14/04/2015,01-11051,1400.4,Acorn Contracts,,,,,,,,,,
Nottinghamshire County Council,1111/1001,Adult Social Care and Health,ASCH,Transport Related,CDA,14/04/2015,01-11066,1605.4,Abacus Cars,,,,,,,,,,
Nottinghamshire County Council,1111/1001,Adult Social Care and Health,ASCH,Transport Related,CDA,14/04/2015,01-11067,554.88,Abacus Cars,,,,,,,,,,
Nottinghamshire County Council,1111/1001,Adult Social Care and Health,ASCH,Transport Related,CDA,14/04/2015,01-11068,542.64,Abacus Cars,,,,,,,,,,
Nottinghamshire County Council,1111/1001,Adult Social Care and Health,ASCH,Transport Related,CDA,14/04/2015,01-11069,2019.6,Abacus Cars,,,,,,,,,,
Nottinghamshire County Council,1111/1001,Adult Social Care and Health,ASCH,Transport Related,CDA,14/04/2015,01-11070,642.6,Abacus Cars,,,,,,,,,,
Nottinghamshire County Council,1111/1001,Adult Social Care and Health,ASCH,Transport Related,CDA,14/04/2015,01-11073,672,Abacus Cars,,,,,,,,,,
Nottinghamshire County Council,1111/1001,Adult Social Care and Health,ASCH,Transport Related,CDA,14/04/2015,01-11081,880,Abacus Cars,,,,,,,,,,
Nottinghamshire County Council,1111/1001,Adult Social Care and Health,ASCH,Transport Related,CDA,16/04/2015,01-11569,769.69,F4Control Ltd (t/a First4care),,,,,,,,,,
Nottinghamshire County Council,1111/1001,Adult Social Care and Health,ASCH,Transport Related,CDA,16/04/2015,01-11575,600.36,Shelleys Taxis Ltd,,,,,,,,,,
Nottinghamshire County Council,1111/1001,Adult Social Care and Health,ASCH,Transport Related,CDA,16/04/2015,01-11585,1248.24,Abacus Cars,,,,,,,,,,
Nottinghamshire County Council,1111/1001,Adult Social Care and Health,ASCH,Transport Related,CDA,16/04/2015,01-11586,720,Abacus Cars,,,,,,,,,,
Nottinghamshire County Council,1111/1001,Adult Social Care and Health,ASCH,Transport Related,CDA,16/04/2015,01-11618,1617.77,In Taxis,,,,,,,,,,
Nottinghamshire County Council,1111/1001,Adult Social Care and Health,ASCH,Transport Related,CDA,16/04/2015,01-11619,2400,[Redacted],,,,,,,,,,
Nottinghamshire County Council,1111/1001,Adult Social Care and Health,ASCH,Transport Related,CDA,21/04/2015,01-15242,524.8,D G Private Hire Ltd,,,,,,,,,,
Nottinghamshire County Council,1111/1001,Adult Social Care and Health,ASCH,Transport Related,CDA,21/04/2015,01-15245,615.38,D G Private Hire Ltd,,,,,,,,,,
Nottinghamshire County Council,1111/1001,Adult Social Care and Health,ASCH,Transport Related,CDA,21/04/2015,01-15246,770,D G Private Hire Ltd,,,,,,,,,,
Nottinghamshire County Council,1111/1001,Adult Social Care and Health,ASCH,Transport Related,CDA,22/04/2015,01-15309,3960,BN Gibson Ltd,,,,,,,,,,
Nottinghamshire County Council,1111/1001,Adult Social Care and Health,ASCH,Transport Related,CDA,22/04/2015,01-15314,411.6,BN Gibson Ltd,,,,,,,,,,
Nottinghamshire County Council,1111/1001,Adult Social Care and Health,ASCH,Transport Related,CDA,22/04/2015,01-15320,1632,P & P Taxis,,,,,,,,,,
Nottinghamshire County Council,1111/1001,Adult Social Care and Health,ASCH,Transport Related,CDA,24/04/2015,01-15560,612.04,Alert Cars Ltd,,,,,,,,,,
Nottinghamshire County Council,1111/1001,Adult Social Care and Health,ASCH,Supplies & Services,DAA,24/04/2015,01-10675,429331.8,British Red Cross Society,,,,,,,,,,
Nottinghamshire County Council,1111/1001,Adult Social Care and Health,ASCH,Supplies & Services,DAA,27/04/2015,01-15599,84186.95,British Red Cross Society,,,,,,,,,,
Nottinghamshire County Council,1111/1001,Adult Social Care and Health,ASCH,Supplies & Services,DBA,07/04/2015,01-10305,841.32,Brake Bros Ltd,,,,,,,,,,
Nottinghamshire County Council,1111/1001,Adult Social Care and Health,ASCH,Supplies & Services,DBA,07/04/2015,01-10306,38.88,Brake Bros Ltd,,,,,,,,,,
Nottinghamshire County Council,1111/1001,Adult Social Care and Health,ASCH,Supplies & Services,DBA,07/04/2015,01-10310,1694.17,Brake Bros Ltd,,,,,,,,,,
Nottinghamshire County Council,1111/1001,Adult Social Care and Health,ASCH,Supplies & Services,DBA,07/04/2015,01-10313,96,Brake Bros Ltd,,,,,,,,,,
Nottinghamshire County Council,1111/1001,Adult Social Care and Health,ASCH,Supplies & Services,DBA,07/04/2015,01-10317,731.67,Brake Bros Ltd,,,,,,,,,,
Nottinghamshire County Council,1111/1001,Adult Social Care and Health,ASCH,Supplies & Services,DBA,08/04/2015,01-10321,2837.56,M Maloney Country Butchers & B Ltd,,,,,,,,,,
Nottinghamshire County Council,1111/1001,Adult Social Care and Health,ASCH,Supplies & Services,DBA,08/04/2015,01-10325,4091.26,M Maloney Country Butchers & B Ltd,,,,,,,,,,
Nottinghamshire County Council,1111/1001,Adult Social Care and Health,ASCH,Supplies & Services,DBA,08/04/2015,01-10329,4448.26,M Maloney Country Butchers & B Ltd,,,,,,,,,,
Nottinghamshire County Council,1111/1001,Adult Social Care and Health,ASCH,Supplies & Services,DBA,08/04/2015,01-10578,1775.76,Hallam Country Fresh Foods Ltd,,,,,,,,,,
Nottinghamshire County Council,1111/1001,Adult Social Care and Health,ASCH,Supplies & Services,DBA,10/04/2015,01-10658,56.74,Brake Bros Ltd,,,,,,,,,,
Nottinghamshire County Council,1111/1001,Adult Social Care and Health,ASCH,Supplies & Services,DBA,10/04/2015,01-10661,1176.63,Brake Bros Ltd,,,,,,,,,,
Nottinghamshire County Council,1111/1001,Adult Social Care and Health,ASCH,Supplies & Services,DBA,10/04/2015,01-10662,1970.26,Brake Bros Ltd,,,,,,,,,,
Nottinghamshire County Council,1111/1001,Adult Social Care and Health,ASCH,Supplies & Services,DBA,10/04/2015,01-10665,968.52,Brake Bros Ltd,,,,,,,,,,
Nottinghamshire County Council,1111/1001,Adult Social Care and Health,ASCH,Supplies & Services,DBA,10/04/2015,01-10668,385.86,Brake Bros Ltd,,,,,,,,,,
Nottinghamshire County Council,1111/1001,Adult Social Care and Health,ASCH,Supplies & Services,DBA,15/04/2015,01-11464,1738.3,Hallam Country Fresh Foods Ltd,,,,,,,,,,
Nottinghamshire County Council,1111/1001,Adult Social Care and Health,ASCH,Supplies & Services,DBA,15/04/2015,01-11468,3401.8,Brake Bros Ltd,,,,,,,,,,
Nottinghamshire County Council,1111/1001,Adult Social Care and Health,ASCH,Supplies & Services,DBA,20/04/2015,01-11758,2272.45,Brake Bros Ltd,,,,,,,,,,
Nottinghamshire County Council,1111/1001,Adult Social Care and Health,ASCH,Supplies & Services,DBA,21/04/2015,01-15275,2051.53,Hallam Country Fresh Foods Ltd,,,,,,,,,,
Nottinghamshire County Council,1111/1001,Adult Social Care and Health,ASCH,Supplies & Services,DBA,22/04/2015,01-15329,874.85,Brake Bros Ltd,,,,,,,,,,
Nottinghamshire County Council,1111/1001,Adult Social Care and Health,ASCH,Supplies & Services,DBA,22/04/2015,01-15330,582.05,Brake Bros Ltd,,,,,,,,,,
Nottinghamshire County Council,1111/1001,Adult Social Care and Health,ASCH,Supplies & Services,DBA,22/04/2015,01-15333,1466.04,Brake Bros Ltd,,,,,,,,,,
Nottinghamshire County Council,1111/1001,Adult Social Care and Health,ASCH,Supplies & Services,DBA,24/04/2015,01-15507,2063.95,M Maloney Country Butchers & B Ltd,,,,,,,,,,
Nottinghamshire County Council,1111/1001,Adult Social Care and Health,ASCH,Supplies & Services,DBA,24/04/2015,01-15511,4820.56,M Maloney Country Butchers & B Ltd,,,,,,,,,,
Nottinghamshire County Council,1111/1001,Adult Social Care and Health,ASCH,Supplies & Services,DBA,24/04/2015,01-15516,5549.09,M Maloney Country Butchers & B Ltd,,,,,,,,,,
Nottinghamshire County Council,1111/1001,Adult Social Care and Health,ASCH,Supplies & Services,DBA,24/04/2015,01-15526,3803.82,M Maloney Country Butchers & B Ltd,,,,,,,,,,
Nottinghamshire County Council,1111/1001,Adult Social Care and Health,ASCH,Supplies & Services,DBA,28/04/2015,01-16045,1985.36,Brake Bros Ltd,,,,,,,,,,
Nottinghamshire County Council,1111/1001,Adult Social Care and Health,ASCH,Supplies & Services,DBA,28/04/2015,01-16050,2134.87,Hallam Country Fresh Foods Ltd,,,,,,,,,,
Nottinghamshire County Council,1111/1001,Adult Social Care and Health,ASCH,Supplies & Services,DBA,28/04/2015,01-16054,237.3,Brake Bros Ltd,,,,,,,,,,
Nottinghamshire County Council,1111/1001,Adult Social Care and Health,ASCH,Supplies & Services,DEA,07/04/2015,01-10301,72.28,Security Plus Ltd,,,,,,,,,,
Nottinghamshire County Council,1111/1001,Adult Social Care and Health,ASCH,Supplies & Services,DEA,07/04/2015,01-10317,2117.35,Brake Bros Ltd,,,,,,,,,,
Nottinghamshire County Council,1111/1001,Adult Social Care and Health,ASCH,Supplies & Services,DEA,30/04/2015,01-11472,90.35,Security Plus Ltd,,,,,,,,,,
Nottinghamshire County Council,1111/1001,Adult Social Care and Health,ASCH,Supplies & Services,DFA,13/04/2015,01-10873,707.22,Lantec Services Ltd,,,,,,,,,,
Nottinghamshire County Council,1111/1001,Adult Social Care and Health,ASCH,Supplies & Services,DHA,09/04/2015,01-10591,15183,Mansfield Community Voluntary Serv,,,,,,,,,,
Nottinghamshire County Council,1111/1001,Adult Social Care and Health,ASCH,Supplies & Services,DHA,09/04/2015,01-10592,15183,Bassetlaw Action Centre,,,,,,,,,,
Nottinghamshire County Council,1111/1001,Adult Social Care and Health,ASCH,Supplies & Services,DHA,09/04/2015,01-10594,15183,Rushcliffe Community & Vol Serv,,,,,,,,,,
Nottinghamshire County Council,1111/1001,Adult Social Care and Health,ASCH,Supplies & Services,DHA,16/04/2015,01-10593,15183,Care & Comfort Community Services,,,,,,,,,,
Nottinghamshire County Council,1111/1001,Adult Social Care and Health,ASCH,Supplies & Services,DHA,16/04/2015,01-11484,15183,Age Uk Nottm & Notts,,,,,,,,,,
Nottinghamshire County Council,1111/1001,Adult Social Care and Health,ASCH,Supplies & Services,DHA,16/04/2015,01-11485,15183,The Helpful Bureau,,,,,,,,,,
Nottinghamshire County Council,1111/1001,Adult Social Care and Health,ASCH,Supplies & Services,DHA,16/04/2015,01-11486,15183,Age Uk Nottm & Notts,,,,,,,,,,
Nottinghamshire County Council,1111/1001,Adult Social Care and Health,ASCH,Supplies & Services,DHA,23/04/2015,01-15361,26000,Rushcliffe Community & Vol Serv,,,,,,,,,,
Nottinghamshire County Council,1111/1001,Adult Social Care and Health,ASCH,Supplies & Services,DHA,23/04/2015,01-15362,11937.5,Bassetlaw Action Centre,,,,,,,,,,
Nottinghamshire County Council,1111/1001,Adult Social Care and Health,ASCH,Supplies & Services,DKA,24/04/2015,01-10675,67470.42,British Red Cross Society,,,,,,,,,,
Nottinghamshire County Council,1111/1001,Adult Social Care and Health,ASCH,Supplies & Services,DKA,27/04/2015,01-15599,1240.56,British Red Cross Society,,,,,,,,,,
Nottinghamshire County Council,1111/1001,Adult Social Care and Health,ASCH,Third Party Payments,EBA,24/04/2015,01-15484,9320,Aspirations (Midlands) Ltd,,,,,,,,,,
Nottinghamshire County Council,1111/1001,Adult Social Care and Health,ASCH,Third Party Payments,EBA,24/04/2015,01-15485,1080,Reach Housing Gloria Miller,,,,,,,,,,
Nottinghamshire County Council,1111/1001,Adult Social Care and Health,ASCH,Third Party Payments,EBA,24/04/2015,01-15486,5978,Metropolitan Housing Trust,,,,,,,,,,
Nottinghamshire County Council,1111/1001,Adult Social Care and Health,ASCH,Third Party Payments,EBA,24/04/2015,01-15488,45515.56,Royal Society Mencap,,,,,,,,,,
Nottinghamshire County Council,1111/1001,Adult Social Care and Health,ASCH,Third Party Payments,EBA,24/04/2015,01-15490,82249.08,Eden Supported Living Ltd,,,,,,,,,,
Nottinghamshire County Council,1111/1001,Adult Social Care and Health,ASCH,Third Party Payments,EBA,24/04/2015,01-15491,2920,Care UK Learning Disabilities Servi,,,,,,,,,,
Nottinghamshire County Council,1111/1001,Adult Social Care and Health,ASCH,Third Party Payments,EBA,24/04/2015,01-15492,2160,Oakdale Ozier Ltd,,,,,,,,,,
Nottinghamshire County Council,1111/1001,Adult Social Care and Health,ASCH,Third Party Payments,EBA,24/04/2015,01-15493,285150.6,Framework Housing Association,,,,,,,,,,
Nottinghamshire County Council,1111/1001,Adult Social Care and Health,ASCH,Third Party Payments,EBA,24/04/2015,01-15495,4638.18,Nottingham Community Housing,,,,,,,,,,
Nottinghamshire County Council,1111/1001,Adult Social Care and Health,ASCH,Third Party Payments,EBA,24/04/2015,01-15497,4440,Fitzroy,,,,,,,,,,
Nottinghamshire County Council,1111/1001,Adult Social Care and Health,ASCH,Third Party Payments,EBA,24/04/2015,01-15498,16087.92,Lifeways Community Care Ltd,,,,,,,,,,
Nottinghamshire County Council,1111/1001,Adult Social Care and Health,ASCH,Third Party Payments,EBA,24/04/2015,01-15499,5720,Voyage Ltd,,,,,,,,,,
Nottinghamshire County Council,1111/1001,Adult Social Care and Health,ASCH,Third Party Payments,EBA,24/04/2015,01-15500,28151.8,Thera East Midlands,,,,,,,,,,
Nottinghamshire County Council,1111/1001,Adult Social Care and Health,ASCH,Third Party Payments,EBA,24/04/2015,01-15501,14160,Choice Support,,,,,,,,,,
Nottinghamshire County Council,1111/1001,Adult Social Care and Health,ASCH,Third Party Payments,EBA,24/04/2015,01-15502,12040,United Response,,,,,,,,,,
Nottinghamshire County Council,1111/1001,Adult Social Care and Health,ASCH,Third Party Payments,EBA,24/04/2015,01-15503,1840,Heritage Care,,,,,,,,,,
Nottinghamshire County Council,1111/1001,Adult Social Care and Health,ASCH,Third Party Payments,EBA,24/04/2015,01-15504,2360,Real Life Options,,,,,,,,,,
Nottinghamshire County Council,1111/1001,Adult Social Care and Health,ASCH,Third Party Payments,EBA,24/04/2015,01-15505,8001.2,NCHA Ltd,,,,,,,,,,
Nottinghamshire County Council,1111/1001,Adult Social Care and Health,ASCH,Third Party Payments,EBA,29/04/2015,01-15467,481621,Ashfield District Council,,,,,,,,,,
Nottinghamshire County Council,1111/1001,Adult Social Care and Health,ASCH,Third Party Payments,EBA,29/04/2015,01-15468,292045,Rushcliffe Borough Council,,,,,,,,,,
Nottinghamshire County Council,1111/1001,Adult Social Care and Health,ASCH,Third Party Payments,EBA,29/04/2015,01-15469,465069,Newark & Sherwood District Council,,,,,,,,,,
Nottinghamshire County Council,1111/1001,Adult Social Care and Health,ASCH,Third Party Payments,EBA,29/04/2015,01-15470,592161,Mansfield District Council,,,,,,,,,,
Nottinghamshire County Council,1111/1001,Adult Social Care and Health,ASCH,Third Party Payments,EBA,29/04/2015,01-15471,464322,Gedling Borough Council,,,,,,,,,,
Nottinghamshire County Council,1111/1001,Adult Social Care and Health,ASCH,Third Party Payments,EBA,29/04/2015,01-15473,531990,Bassetlaw District Council,,,,,,,,,,
Nottinghamshire County Council,1111/1001,Adult Social Care and Health,ASCH,Third Party Payments,EBA,30/04/2015,01-15472,376739,Broxtowe Borough Council,,,,,,,,,,
Nottinghamshire County Council,1111/1001,Adult Social Care and Health,ASCH,Third Party Payments,ECA,07/04/2015,01-10468,221.78,Ashley House Nursing Home,,,,,,,,,,
Nottinghamshire County Council,1111/1001,Adult Social Care and Health,ASCH,Third Party Payments,ECA,07/04/2015,01-10470,459.4,Pinxton Manor,,,,,,,,,,
Nottinghamshire County Council,1111/1001,Adult Social Care and Health,ASCH,Third Party Payments,ECA,07/04/2015,01-10473,823.75,Hawthorne Nursing Home,,,,,,,,,,
Nottinghamshire County Council,1111/1001,Adult Social Care and Health,ASCH,Third Party Payments,ECA,07/04/2015,01-10479,1203.95,Adbolton Hall Nursing Home,,,,,,,,,,
Nottinghamshire County Council,1111/1001,Adult Social Care and Health,ASCH,Third Party Payments,ECA,07/04/2015,01-10494,205.94,Victoria Care Home,,,,,,,,,,
Nottinghamshire County Council,1111/1001,Adult Social Care and Health,ASCH,Third Party Payments,ECA,07/04/2015,01-10506,142.57,Boughton Manor Nursing Homes Limite,,,,,,,,,,
Nottinghamshire County Council,1111/1001,Adult Social Care and Health,ASCH,Third Party Payments,ECA,07/04/2015,01-10555,332.67,Church Farm at Skylarks,,,,,,,,,,
Nottinghamshire County Council,1111/1001,Adult Social Care and Health,ASCH,Third Party Payments,ECA,09/04/2015,01-10630,234000,NHS Nottingham West CCG,,,,,,,,,,
Nottinghamshire County Council,1111/1001,Adult Social Care and Health,ASCH,Third Party Payments,ECA,09/04/2015,01-10632,480000,NHS Newark & Sherwood CCG,,,,,,,,,,
Nottinghamshire County Council,1111/1001,Adult Social Care and Health,ASCH,Third Party Payments,ECA,09/04/2015,01-10633,746000,Mansfield & Ashfield CCG,,,,,,,,,,
Nottinghamshire County Council,1111/1001,Adult Social Care and Health,ASCH,Third Party Payments,ECA,09/04/2015,01-10634,378000,NHS Bassetlaw CCG,,,,,,,,,,
Nottinghamshire County Council,1111/1001,Adult Social Care and Health,ASCH,Third Party Payments,ECA,09/04/2015,01-10635,380000,NHS Nottingham North and East CCG,,,,,,,,,,
Nottinghamshire County Council,1111/1001,Adult Social Care and Health,ASCH,Third Party Payments,ECA,09/04/2015,01-10636,286000,NHS Rushcliffe CCG,,,,,,,,,,
Nottinghamshire County Council,1111/1001,Adult Social Care and Health,ASCH,Third Party Payments,ECA,14/04/2015,01-11116,633.66,Ashcroft,,,,,,,,,,
Nottinghamshire County Council,1111/1001,Adult Social Care and Health,ASCH,Third Party Payments,ECA,14/04/2015,01-11121,1997.13,Silverwood Care Home,,,,,,,,,,
Nottinghamshire County Council,1111/1001,Adult Social Care and Health,ASCH,Third Party Payments,ECA,14/04/2015,01-11142,459.4,Ashley House Nursing Home,,,,,,,,,,
Nottinghamshire County Council,1111/1001,Adult Social Care and Health,ASCH,Third Party Payments,ECA,14/04/2015,01-11147,207.84,Forest Hill Nursing Home,,,,,,,,,,
Nottinghamshire County Council,1111/1001,Adult Social Care and Health,ASCH,Third Party Payments,ECA,14/04/2015,01-11149,1552.46,Forest Hill Nursing Home,,,,,,,,,,
Nottinghamshire County Council,1111/1001,Adult Social Care and Health,ASCH,Third Party Payments,ECA,14/04/2015,01-11151,302.1,Forest Hill Nursing Home,,,,,,,,,,
Nottinghamshire County Council,1111/1001,Adult Social Care and Health,ASCH,Third Party Payments,ECA,14/04/2015,01-11162,270.41,Red Rose Nursing Home,,,,,,,,,,
Nottinghamshire County Council,1111/1001,Adult Social Care and Health,ASCH,Third Party Payments,ECA,14/04/2015,01-11182,666.45,The Firs,,,,,,,,,,
Nottinghamshire County Council,1111/1001,Adult Social Care and Health,ASCH,Third Party Payments,ECA,14/04/2015,01-11184,1268.42,Lowmoor Nursing Home,,,,,,,,,,
Nottinghamshire County Council,1111/1001,Adult Social Care and Health,ASCH,Third Party Payments,ECA,14/04/2015,01-11193,1395.9,Broadgate Nursing Home,,,,,,,,,,
Nottinghamshire County Council,1111/1001,Adult Social Care and Health,ASCH,Third Party Payments,ECA,14/04/2015,01-11210,271.21,Forest Manor Care Home,,,,,,,,,,
Nottinghamshire County Council,1111/1001,Adult Social Care and Health,ASCH,Third Party Payments,ECA,14/04/2015,01-11220,222.1,Jubilee Court Nursing Home,,,,,,,,,,
Nottinghamshire County Council,1111/1001,Adult Social Care and Health,ASCH,Third Party Payments,ECA,14/04/2015,01-11224,221.78,Sherwood Grange Care Ltd,,,,,,,,,,
Nottinghamshire County Council,1111/1001,Adult Social Care and Health,ASCH,Third Party Payments,ECA,14/04/2015,01-11226,554.45,Sherwood Grange Care Ltd,,,,,,,,,,
Nottinghamshire County Council,1111/1001,Adult Social Care and Health,ASCH,Third Party Payments,ECA,14/04/2015,01-11229,665.34,Lancaster Grange Newark,,,,,,,,,,
Nottinghamshire County Council,1111/1001,Adult Social Care and Health,ASCH,Third Party Payments,ECA,14/04/2015,01-11231,1506.84,Ashdale Care Home,,,,,,,,,,
Nottinghamshire County Council,1111/1001,Adult Social Care and Health,ASCH,Third Party Payments,ECA,14/04/2015,01-11237,2314.75,Beeston Lodge Nursing Home,,,,,,,,,,
Nottinghamshire County Council,1111/1001,Adult Social Care and Health,ASCH,Third Party Payments,ECA,14/04/2015,01-11238,1823.67,Beeston Lodge Nursing Home,,,,,,,,,,
Nottinghamshire County Council,1111/1001,Adult Social Care and Health,ASCH,Third Party Payments,ECA,21/04/2015,01-11814,1099.4,Bramcote Hills Care Home,,,,,,,,,,
Nottinghamshire County Council,1111/1001,Adult Social Care and Health,ASCH,Third Party Payments,ECA,21/04/2015,01-11816,449.9,Bramcote Hills Care Home,,,,,,,,,,
Nottinghamshire County Council,1111/1001,Adult Social Care and Health,ASCH,Third Party Payments,ECA,21/04/2015,01-11822,449.9,Bramcote Hills Care Home,,,,,,,,,,
